{"text_format":"1","workbook":"xlsx","n_sheets":3,"sheets":["بيانات الحراس","البداية","الاحد 100"],"not_rendered":{"charts":0,"images":1,"macros":1,"external_links":1,"defined_names":2,"comments":0,"pivot_tables":0},"unopened":[],"bounds":{"document_bytes":16777216,"sheet_cells":100000,"rows_first":2000,"rows_last":500,"rows_between":2000,"halvings":0,"cell_chars":16384,"cell_head_chars":4096},"cells_cut":0,"cells_raw":0,"read":"whole","date_system":"1900"}

{"sheet":"بيانات الحراس","index":0,"n_rows":350,"n_cols":10,"rows_kept":350,"cut":false,"hidden":false,"merged":[[1,1,3,2],[1,5,1,6],[0,3,0,5]]}
[null,null,null,"مهم جدا :   يجب ادراج الطور ",null,null,null,null,null,{"$f":"COUNTA(B7:B350)","v":70}]
[null,"قائمة الاساتذة الحراس",null,null,"عدد الااستذة",{"$f":"F3+F4+F5","v":70}]
[null,null,null,null,"الثانوي",{"$f":"COUNTIF(C7:C330,\"ثانوي\")","v":20}]
[null,null,null,null,"المتوسط",{"$f":"COUNTIF(C7:C330,\"متوسط\")","v":25}]
[null,null,null,null,"الابتدائي",{"$f":"COUNTIF(C7:C300,\"ابتدائي\")","v":25}]
["الرقم","الاسم و اللقب","الاطار","التخصص"]
[{"$f":"IF(ROW($A1)<=$J$1,ROW($A1),\"\")","v":1},"بدر1","ثانوي","أدب عربي"]
[{"$f":"IF(ROW($A2)<=$J$1,ROW($A2),\"\")","v":2},"بدر2","ثانوي","أدب عربي"]
[3,"بدر3","ثانوي","علوم إسلامية"]
[4,"بدر4","ثانوي","رياضيات"]
[5,"بدر5","ثانوي","رياضيات"]
[6,"بدر6","ثانوي","إنجليزية"]
[7,"بدر7","ثانوي","إنجليزية"]
[8,"بدر8","ثانوي","إنجليزية"]
[9,"بدر9","ثانوي","إنجليزية"]
[10,"بدر10","ثانوي","إنجليزية"]
[11,"بدر11","ثانوي","علوم طبيعية"]
[12,"بدر12","ثانوي","اللغة الفرنسية"]
[13,"بدر13","ثانوي","اللغة الفرنسية"]
[14,"بدر14","ثانوي","فيزياء"]
[15,"بدر15","ثانوي","ألمانية"]
[16,"بدر16","ثانوي","اللغة الفرنسية"]
[17,"بدر17","ثانوي","فيزياء"]
[18,"بدر18","ثانوي","ألمانية"]
[19,"بدر19","ثانوي","اللغة الفرنسية"]
[20,"بدر20","ثانوي","فيزياء"]
[21,"بدر21","متوسط","رياضيات"]
[22,"بدر22","متوسط","إنجليزية"]
[23,"بدر23","متوسط","إنجليزية"]
[24,"بدر24","متوسط","إنجليزية"]
[25,"بدر25","متوسط","إنجليزية"]
[26,"بدر26","متوسط","اللغة الفرنسية"]
[27,"بدر27","متوسط","اللغة الفرنسية"]
[28,"بدر28","متوسط","اللغة الفرنسية"]
[29,"بدر29","متوسط","اللغة الفرنسية"]
[30,"بدر30","متوسط","اللغة الفرنسية"]
[31,"بدر31","متوسط","اللغة الفرنسية"]
[32,"بدر32","متوسط","اللغة الفرنسية"]
[33,"بدر33","متوسط","اللغة الفرنسية"]
[34,"بدر34","متوسط","فيزياء"]
[35,"بدر35","متوسط","تربية فنية"]
[36,"بدر36","متوسط","تربية بدنية"]
[37,"بدر37","متوسط","تربية بدنية"]
[38,"بدر38","متوسط","تربية بدنية"]
[39,"بدر39","متوسط","تربية بدنية"]
[40,"بدر40","متوسط","تربية بدنية"]
[41,"بدر41","متوسط","تربية بدنية"]
[42,"بدر42","متوسط","تربية بدنية"]
[43,"بدر43","متوسط","تربية بدنية"]
[44,"بدر44","متوسط","تربية بدنية"]
[45,"بدر45","متوسط","تربية بدنية"]
[46,"بدر46","ابتدائي","اللغة العربية"]
[47,"بدر47","ابتدائي","اللغة العربية"]
[48,"بدر48","ابتدائي","اللغة العربية"]
[49,"بدر49","ابتدائي","اللغة العربية"]
[50,"بدر50","ابتدائي","اللغة العربية"]
[51,"بدر51","ابتدائي","اللغة العربية"]
[52,"بدر52","ابتدائي","اللغة العربية"]
[53,"بدر53","ابتدائي","اللغة العربية"]
[54,"بدر54","ابتدائي","اللغة العربية"]
[55,"بدر55","ابتدائي","اللغة العربية"]
[56,"بدر56","ابتدائي","اللغة العربية"]
[57,"بدر57","ابتدائي","اللغة العربية"]
[58,"بدر58","ابتدائي","اللغة العربية"]
[59,"بدر59","ابتدائي","اللغة العربية"]
[60,"بدر60","ابتدائي","اللغة العربية"]
[61,"بدر61","ابتدائي","اللغة العربية"]
[62,"بدر62","ابتدائي","اللغة العربية"]
[63,"بدر63","ابتدائي","اللغة العربية"]
[64,"بدر64","ابتدائي","اللغة العربية"]
[65,"بدر65","ابتدائي","اللغة العربية"]
[{"$f":"IF(ROW($A66)<=$J$1,ROW($A66),\"\")","v":66},"بدر66","ابتدائي","اللغة العربية"]
[67,"بدر67","ابتدائي","اللغة العربية"]
[68,"بدر68","ابتدائي","اللغة العربية"]
[69,"بدر69","ابتدائي","اللغة العربية"]
[70,"بدر70","ابتدائي","اللغة العربية"]
[""]
[""]
[""]
[""]
[""]
[""]
[""]
[""]
[""]
[""]
[""]
[""]
[""]
[""]
[""]
[""]
[""]
[""]
[""]
[""]
[""]
[""]
[""]
[""]
[""]
[""]
[""]
[""]
[""]
[""]
[""]
[""]
[""]
[""]
[""]
[""]
[""]
[""]
[""]
[""]
[""]
[""]
[""]
[""]
[""]
[""]
[""]
[""]
[""]
[""]
[""]
[""]
[""]
[""]
[""]
[""]
[""]
[""]
[""]
[{"$f":"IF(ROW($A130)<=$J$1,ROW($A130),\"\")","v":""}]
[""]
[""]
[""]
[""]
[""]
[""]
[""]
[""]
[""]
[""]
[""]
[""]
[""]
[""]
[""]
[""]
[""]
[""]
[""]
[""]
[""]
[""]
[""]
[""]
[""]
[""]
[""]
[""]
[""]
[""]
[""]
[""]
[""]
[""]
[""]
[""]
[""]
[""]
[""]
[""]
[""]
[""]
[""]
[""]
[""]
[""]
[""]
[""]
[""]
[""]
[""]
[""]
[""]
[""]
[""]
[""]
[""]
[""]
[""]
[""]
[""]
[""]
[""]
[{"$f":"IF(ROW($A194)<=$J$1,ROW($A194),\"\")","v":""}]
[""]
[""]
[""]
[""]
[""]
[""]
[""]
[""]
[""]
[""]
[""]
[""]
[""]
[""]
[""]
[""]
[""]
[""]
[""]
[""]
[""]
[""]
[""]
[""]
[""]
[""]
[""]
[""]
[""]
[""]
[""]
[""]
[""]
[""]
[""]
[""]
[""]
[""]
[""]
[""]
[""]
[""]
[""]
[""]
[""]
[""]
[""]
[""]
[""]
[""]
[""]
[""]
[""]
[""]
[""]
[""]
[""]
[""]
[""]
[""]
[""]
[""]
[""]
[{"$f":"IF(ROW($A258)<=$J$1,ROW($A258),\"\")","v":""}]
[""]
[""]
[""]
[""]
[""]
[""]
[""]
[""]
[""]
[""]
[""]
[""]
[""]
[""]
[""]
[""]
[""]
[""]
[""]
[""]
[""]
[""]
[""]
[""]
[""]
[""]
[""]
[""]
[""]
[""]
[""]
[""]
[""]
[""]
[""]
[""]
[""]
[""]
[""]
[""]
[""]
[""]
[""]
[""]
[""]
[""]
[""]
[""]
[""]
[""]
[""]
[""]
[""]
[""]
[""]
[""]
[""]
[""]
[""]
[""]
[""]
[""]
[""]
[{"$f":"IF(ROW($A322)<=$J$1,ROW($A322),\"\")","v":""}]
[""]
[""]
[""]
[""]
[""]
[""]
[""]
[""]
[""]
[""]
[""]
[""]
[""]
[""]
[""]
[""]
[""]
[""]
[""]
[""]
[""]
[""]

{"sheet":"البداية","index":1,"n_rows":437,"n_cols":64,"rows_kept":437,"cut":false,"hidden":false,"merged":[[0,14,0,15],[7,14,7,15],[3,16,7,16],[3,17,7,17],[3,18,7,18],[3,19,7,19],[2,16,2,25],[3,28,7,28],[3,29,7,29],[3,30,7,30],[3,20,7,20],[3,21,7,21],[3,22,7,22],[3,23,7,23],[3,24,7,24],[3,25,7,25],[3,33,7,33],[3,34,7,34],[3,35,7,35],[3,36,7,36],[2,27,2,36],[3,32,7,32],[3,31,7,31],[3,27,7,27],[0,1,0,4],[0,5,0,6],[0,7,0,8],[0,9,0,10],[0,11,0,12],[5,2,6,2],[6,1,7,1],[2,9,2,10],[3,1,3,2],[3,9,3,10],[4,1,4,2]]}
[null," الاحتيـــــاط    ....51  ",null,null,null,"301..  الحارس 4 ",null,"201.....  الحارس 3",null,"101.....   الحارس 2",null,"1….  الحارس الرئيسي",null,"الاتصـــال   ...81  ",null,null,null,null,null,null,null,null,null,null,null,null,null,null,null,null,null,null,null,null,null,null,null,null,null,null,null,null,null,null,null,null,null,null,null,null,null,null,null,null,null,null,null,null,null,null,null,null,null,41]
[null,null,null,null,"القاعات",8,"  الاساتذة",{"$f":"SUM('بيانات الحراس'!F3,'بيانات الحراس'!F4,'بيانات الحراس'!F5)","v":70},"النصاب",{"$f":"ROUNDUP(((L4*9)/H2)/2,0)","v":3},"  المــواد",9,"الاحتياط",14]
[null,null,null,null,null,null,null,null,null,"ايام الامتحان",null,5,"الاتصال",2,null,null,"رصد غيابات الحراس",null,null,null,null,null,null,null,null,null,null,"التعويض بالاساتذة غير الحراس"]
[null,null,null,null,null,null,null,null,null,"عدد الحراس كل فترة",null,{"$f":"N2+N3+(N4*F2)","v":40}," الحراس ",3,null,null,{"$f":"M8","v":"أدب عربي"},{"$f":"L8","v":"علوم إسلامية"},{"$f":"K8","v":"رياضيات"},{"$f":"J8","v":"إنجليزية"},{"$f":"I8","v":"علوم طبيعية"},{"$f":"H8","v":"اللغة الفرنسية"},{"$f":"G8","v":"تاريخ "},{"$f":"F8","v":"فيزياء"},{"$f":"E8","v":"فلسفة"},"المجموع",null,{"$f":"Q4","v":"أدب عربي"},"علوم إسلامية","رياضيات","إنجليزية","علوم طبيعية","اللغة الفرنسية","تاريخ ","فيزياء","فلسفة","المجموع"]
[null,"الايام الممنوحة",null,null,{"$f":"$H$2-E6","v":70},70,70,70,70,{"$f":"$H$2-J6","v":70},{"$f":"H2-K6","v":70},{"$f":"H2-L6","v":70},{"$f":"H2-M6","v":30},"المعفيون / راحة"]
[null,{"$f":"5*H2","v":350},"الايام",null,{"$f":"COUNT(E9:E350)","v":0},0,0,0,0,0,0,0,{"$f":"COUNT(M9:M350)","v":40},{"$f":"L4 &\" عدد الحراس \"","v":"40 عدد الحراس "}]
[null,"الراحة",null,null,{"$f":"IF($L$4-E6=0,\"\",$L$4-E6)","v":40},40,40,40,40,40,40,40,{"$f":"IF($L$4-M6=0,\"\",$L$4-M6)","v":""},"الناقص"]
[null,null,{"$f":"SUM(C9:C350)","v":20},null,"فلسفة","فيزياء","تاريخ ","اللغة الفرنسية","علوم طبيعية","إنجليزية","رياضيات","علوم إسلامية","أدب عربي","الاسم"]
[null,{"$f":"IF(C9=\"\",\"\",5-C9)","v":""},{"$f":"IF(SUM((COUNTA(M9,L9,K9,J9,I9,H9,F9,E9)/2),AK9,COUNTA(G9))=0,\"\",SUM((COUNTA(M9,L9,K9,J9,I9,H9,F9,E9)/2),AK9,COUNTA(G9)))","v":""},{"$f":"IF(C9=\"\",0,C9)","v":0},null,null,null,null,null,null,null,null,null,{"$f":"'بيانات الحراس'!B7","v":"بدر1"},{"$f":"'بيانات الحراس'!D7","v":"أدب عربي"},{"$f":"IF(ROW($A1)<='بيانات الحراس'!$F$2,ROW($A1),\"\")","v":1},null,null,null,null,null,null,null,null,null,{"$f":"IF(AM9+AL9=0,\"\",AM9+AL9)","v":""},null,null,null,null,null,null,null,null,null,null,{"$f":"IF(AO9+AP9=0,\"\",AO9+AP9)","v":""},{"$f":"COUNTA(Y9,X9,V9,U9,T9,S9,R9,Q9)/2","v":0},{"$f":"COUNTA(W9)","v":0},null,{"$f":"(COUNTA(AJ9,AI9,AG9,AF9,AE9,AD9,AC9,AB9))/2","v":0},{"$f":"COUNTA(AH9)","v":0}]
[null,{"$f":"IF(C10=\"\",\"\",5-C10)","v":""},{"$f":"IF(SUM((COUNTA(M10,L10,K10,J10,I10,H10,F10,E10)/2),AK10,COUNTA(G10))=0,\"\",SUM((COUNTA(M10,L10,K10,J10,I10,H10,F10,E10)/2),AK10,COUNTA(G10)))","v":""},{"$f":"IF(C10=\"\",0,C10)","v":0},null,null,null,null,null,null,null,null,null,{"$f":"'بيانات الحراس'!B8","v":"بدر2"},{"$f":"'بيانات الحراس'!D8","v":"أدب عربي"},{"$f":"IF(ROW($A2)<='بيانات الحراس'!$F$2,ROW($A2),\"\")","v":2},null,null,null,null,null,null,null,null,null,{"$f":"IF(AM10+AL10=0,\"\",AM10+AL10)","v":""},null,null,null,null,null,null,null,null,null,null,{"$f":"IF(AO10+AP10=0,\"\",AO10+AP10)","v":""},{"$f":"COUNTA(Y10,X10,V10,U10,T10,S10,R10,Q10)/2","v":0},{"$f":"COUNTA(W10)","v":0},null,{"$f":"(COUNTA(AJ10,AI10,AG10,AF10,AE10,AD10,AC10,AB10))/2","v":0},{"$f":"COUNTA(AH10)","v":0}]
[null,"","",0,null,null,null,null,null,null,null,null,null,{"$f":"'بيانات الحراس'!B9","v":"بدر3"},{"$f":"'بيانات الحراس'!D9","v":"علوم إسلامية"},{"$f":"IF(ROW($A3)<='بيانات الحراس'!$F$2,ROW($A3),\"\")","v":3},null,null,null,null,null,null,null,null,null,"",null,null,null,null,null,null,null,null,null,null,"",0,0,null,0,0]
[null,4.5,0.5,0.5,null,null,null,null,null,null,null,null,1,{"$f":"'بيانات الحراس'!B10","v":"بدر4"},{"$f":"'بيانات الحراس'!D10","v":"رياضيات"},{"$f":"IF(ROW($A4)<='بيانات الحراس'!$F$2,ROW($A4),\"\")","v":4},null,null,null,null,null,null,null,null,null,"",null,null,null,null,null,null,null,null,null,null,"",0,0,null,0,0]
[null,4.5,0.5,0.5,null,null,null,null,null,null,null,null,2,{"$f":"'بيانات الحراس'!B11","v":"بدر5"},{"$f":"'بيانات الحراس'!D11","v":"رياضيات"},{"$f":"IF(ROW($A5)<='بيانات الحراس'!$F$2,ROW($A5),\"\")","v":5},null,null,null,null,null,null,null,null,null,"",null,null,null,null,null,null,null,null,null,null,"",0,0,null,0,0]
[null,4.5,0.5,0.5,null,null,null,null,null,null,null,null,3,{"$f":"'بيانات الحراس'!B12","v":"بدر6"},{"$f":"'بيانات الحراس'!D12","v":"إنجليزية"},{"$f":"IF(ROW($A6)<='بيانات الحراس'!$F$2,ROW($A6),\"\")","v":6},null,null,null,null,null,null,null,null,null,"",null,null,null,null,null,null,null,null,null,null,"",0,0,null,0,0]
[null,4.5,0.5,0.5,null,null,null,null,null,null,null,null,4,{"$f":"'بيانات الحراس'!B13","v":"بدر7"},{"$f":"'بيانات الحراس'!D13","v":"إنجليزية"},{"$f":"IF(ROW($A7)<='بيانات الحراس'!$F$2,ROW($A7),\"\")","v":7},null,null,null,null,null,null,null,null,null,"",null,null,null,null,null,null,null,null,null,null,"",0,0,null,0,0]
[null,4.5,0.5,0.5,null,null,null,null,null,null,null,null,5,{"$f":"'بيانات الحراس'!B14","v":"بدر8"},{"$f":"'بيانات الحراس'!D14","v":"إنجليزية"},{"$f":"IF(ROW($A8)<='بيانات الحراس'!$F$2,ROW($A8),\"\")","v":8},null,null,null,null,null,null,null,null,null,"",null,null,null,null,null,null,null,null,null,null,"",0,0,null,0,0]
[null,4.5,0.5,0.5,null,null,null,null,null,null,null,null,6,{"$f":"'بيانات الحراس'!B15","v":"بدر9"},{"$f":"'بيانات الحراس'!D15","v":"إنجليزية"},{"$f":"IF(ROW($A9)<='بيانات الحراس'!$F$2,ROW($A9),\"\")","v":9},null,null,null,null,null,null,null,null,null,"",null,null,null,null,null,null,null,null,null,null,"",0,0,null,0,0]
[null,4.5,0.5,0.5,null,null,null,null,null,null,null,null,7,{"$f":"'بيانات الحراس'!B16","v":"بدر10"},{"$f":"'بيانات الحراس'!D16","v":"إنجليزية"},{"$f":"IF(ROW($A10)<='بيانات الحراس'!$F$2,ROW($A10),\"\")","v":10},null,null,null,null,null,null,null,null,null,"",null,null,null,null,null,null,null,null,null,null,"",0,0,null,0,0]
[null,4.5,0.5,0.5,null,null,null,null,null,null,null,null,8,{"$f":"'بيانات الحراس'!B17","v":"بدر11"},{"$f":"'بيانات الحراس'!D17","v":"علوم طبيعية"},{"$f":"IF(ROW($A11)<='بيانات الحراس'!$F$2,ROW($A11),\"\")","v":11},null,null,null,null,null,null,null,null,null,"",null,null,null,null,null,null,null,null,null,null,"",0,0,null,0,0]
[null,"","",0,null,null,null,null,null,null,null,null,null,{"$f":"'بيانات الحراس'!B18","v":"بدر12"},{"$f":"'بيانات الحراس'!D18","v":"اللغة الفرنسية"},{"$f":"IF(ROW($A12)<='بيانات الحراس'!$F$2,ROW($A12),\"\")","v":12},null,null,null,null,null,null,null,null,null,"",null,null,null,null,null,null,null,null,null,null,"",0,0,null,0,0]
[null,"","",0,null,null,null,null,null,null,null,null,null,{"$f":"'بيانات الحراس'!B19","v":"بدر13"},{"$f":"'بيانات الحراس'!D19","v":"اللغة الفرنسية"},{"$f":"IF(ROW($A13)<='بيانات الحراس'!$F$2,ROW($A13),\"\")","v":13},null,null,null,null,null,null,null,null,null,"",null,null,null,null,null,null,null,null,null,null,"",0,0,null,0,0]
[null,"","",0,null,null,null,null,null,null,null,null,null,{"$f":"'بيانات الحراس'!B20","v":"بدر14"},{"$f":"'بيانات الحراس'!D20","v":"فيزياء"},{"$f":"IF(ROW($A14)<='بيانات الحراس'!$F$2,ROW($A14),\"\")","v":14},null,null,null,null,null,null,null,null,null,"",null,null,null,null,null,null,null,null,null,null,"",0,0,null,0,0]
[null,"","",0,null,null,null,null,null,null,null,null,null,{"$f":"'بيانات الحراس'!B21","v":"بدر15"},{"$f":"'بيانات الحراس'!D21","v":"ألمانية"},{"$f":"IF(ROW($A15)<='بيانات الحراس'!$F$2,ROW($A15),\"\")","v":15},null,null,null,null,null,null,null,null,null,"",null,null,null,null,null,null,null,null,null,null,"",0,0,null,0,0]
[null,"","",0,null,null,null,null,null,null,null,null,null,{"$f":"'بيانات الحراس'!B22","v":"بدر16"},{"$f":"'بيانات الحراس'!D22","v":"اللغة الفرنسية"},{"$f":"IF(ROW($A16)<='بيانات الحراس'!$F$2,ROW($A16),\"\")","v":16},null,null,null,null,null,null,null,null,null,"",null,null,null,null,null,null,null,null,null,null,"",0,0,null,0,0]
[null,"","",0,null,null,null,null,null,null,null,null,null,{"$f":"'بيانات الحراس'!B23","v":"بدر17"},{"$f":"'بيانات الحراس'!D23","v":"فيزياء"},{"$f":"IF(ROW($A17)<='بيانات الحراس'!$F$2,ROW($A17),\"\")","v":17},null,null,null,null,null,null,null,null,null,"",null,null,null,null,null,null,null,null,null,null,"",0,0,null,0,0]
[null,"","",0,null,null,null,null,null,null,null,null,null,{"$f":"'بيانات الحراس'!B24","v":"بدر18"},{"$f":"'بيانات الحراس'!D24","v":"ألمانية"},{"$f":"IF(ROW($A18)<='بيانات الحراس'!$F$2,ROW($A18),\"\")","v":18},null,null,null,null,null,null,null,null,null,"",null,null,null,null,null,null,null,null,null,null,"",0,0,null,0,0]
[null,"","",0,null,null,null,null,null,null,null,null,null,{"$f":"'بيانات الحراس'!B25","v":"بدر19"},{"$f":"'بيانات الحراس'!D25","v":"اللغة الفرنسية"},{"$f":"IF(ROW($A19)<='بيانات الحراس'!$F$2,ROW($A19),\"\")","v":19},null,null,null,null,null,null,null,null,null,"",null,null,null,null,null,null,null,null,null,null,"",0,0,null,0,0]
[null,"","",0,null,null,null,null,null,null,null,null,null,{"$f":"'بيانات الحراس'!B26","v":"بدر20"},{"$f":"'بيانات الحراس'!D26","v":"فيزياء"},{"$f":"IF(ROW($A20)<='بيانات الحراس'!$F$2,ROW($A20),\"\")","v":20},null,null,null,null,null,null,null,null,null,"",null,null,null,null,null,null,null,null,null,null,"",0,0,null,0,0]
[null,4.5,0.5,0.5,null,null,null,null,null,null,null,null,101,{"$f":"'بيانات الحراس'!B27","v":"بدر21"},{"$f":"'بيانات الحراس'!D27","v":"رياضيات"},{"$f":"IF(ROW($A21)<='بيانات الحراس'!$F$2,ROW($A21),\"\")","v":21},null,null,null,null,null,null,null,null,null,"",null,null,null,null,null,null,null,null,null,null,"",0,0,null,0,0]
[null,4.5,0.5,0.5,null,null,null,null,null,null,null,null,102,{"$f":"'بيانات الحراس'!B28","v":"بدر22"},{"$f":"'بيانات الحراس'!D28","v":"إنجليزية"},{"$f":"IF(ROW($A22)<='بيانات الحراس'!$F$2,ROW($A22),\"\")","v":22},null,null,null,null,null,null,null,null,null,"",null,null,null,null,null,null,null,null,null,null,"",0,0,null,0,0]
[null,4.5,0.5,0.5,null,null,null,null,null,null,null,null,103,{"$f":"'بيانات الحراس'!B29","v":"بدر23"},{"$f":"'بيانات الحراس'!D29","v":"إنجليزية"},{"$f":"IF(ROW($A23)<='بيانات الحراس'!$F$2,ROW($A23),\"\")","v":23},null,null,null,null,null,null,null,null,null,"",null,null,null,null,null,null,null,null,null,null,"",0,0,null,0,0]
[null,4.5,0.5,0.5,null,null,null,null,null,null,null,null,104,{"$f":"'بيانات الحراس'!B30","v":"بدر24"},{"$f":"'بيانات الحراس'!D30","v":"إنجليزية"},{"$f":"IF(ROW($A24)<='بيانات الحراس'!$F$2,ROW($A24),\"\")","v":24},null,null,null,null,null,null,null,null,null,"",null,null,null,null,null,null,null,null,null,null,"",0,0,null,0,0]
[null,4.5,0.5,0.5,null,null,null,null,null,null,null,null,105,{"$f":"'بيانات الحراس'!B31","v":"بدر25"},{"$f":"'بيانات الحراس'!D31","v":"إنجليزية"},{"$f":"IF(ROW($A25)<='بيانات الحراس'!$F$2,ROW($A25),\"\")","v":25},null,null,null,null,null,null,null,null,null,"",null,null,null,null,null,null,null,null,null,null,"",0,0,null,0,0]
[null,4.5,0.5,0.5,null,null,null,null,null,null,null,null,106,{"$f":"'بيانات الحراس'!B32","v":"بدر26"},{"$f":"'بيانات الحراس'!D32","v":"اللغة الفرنسية"},{"$f":"IF(ROW($A26)<='بيانات الحراس'!$F$2,ROW($A26),\"\")","v":26},null,null,null,null,null,null,null,null,null,"",null,null,null,null,null,null,null,null,null,null,"",0,0,null,0,0]
[null,4.5,0.5,0.5,null,null,null,null,null,null,null,null,107,{"$f":"'بيانات الحراس'!B33","v":"بدر27"},{"$f":"'بيانات الحراس'!D33","v":"اللغة الفرنسية"},{"$f":"IF(ROW($A27)<='بيانات الحراس'!$F$2,ROW($A27),\"\")","v":27},null,null,null,null,null,null,null,null,null,"",null,null,null,null,null,null,null,null,null,null,"",0,0,null,0,0]
[null,4.5,0.5,0.5,null,null,null,null,null,null,null,null,108,{"$f":"'بيانات الحراس'!B34","v":"بدر28"},{"$f":"'بيانات الحراس'!D34","v":"اللغة الفرنسية"},{"$f":"IF(ROW($A28)<='بيانات الحراس'!$F$2,ROW($A28),\"\")","v":28},null,null,null,null,null,null,null,null,null,"",null,null,null,null,null,null,null,null,null,null,"",0,0,null,0,0]
[null,"","",0,null,null,null,null,null,null,null,null,null,{"$f":"'بيانات الحراس'!B35","v":"بدر29"},{"$f":"'بيانات الحراس'!D35","v":"اللغة الفرنسية"},{"$f":"IF(ROW($A29)<='بيانات الحراس'!$F$2,ROW($A29),\"\")","v":29},null,null,null,null,null,null,null,null,null,"",null,null,null,null,null,null,null,null,null,null,"",0,0,null,0,0]
[null,"","",0,null,null,null,null,null,null,null,null,null,{"$f":"'بيانات الحراس'!B36","v":"بدر30"},{"$f":"'بيانات الحراس'!D36","v":"اللغة الفرنسية"},{"$f":"IF(ROW($A30)<='بيانات الحراس'!$F$2,ROW($A30),\"\")","v":30},null,null,null,null,null,null,null,null,null,"",null,null,null,null,null,null,null,null,null,null,"",0,0,null,0,0]
[null,"","",0,null,null,null,null,null,null,null,null,null,{"$f":"'بيانات الحراس'!B37","v":"بدر31"},{"$f":"'بيانات الحراس'!D37","v":"اللغة الفرنسية"},{"$f":"IF(ROW($A31)<='بيانات الحراس'!$F$2,ROW($A31),\"\")","v":31},null,null,null,null,null,null,null,null,null,"",null,null,null,null,null,null,null,null,null,null,"",0,0,null,0,0]
[null,"","",0,null,null,null,null,null,null,null,null,null,{"$f":"'بيانات الحراس'!B38","v":"بدر32"},{"$f":"'بيانات الحراس'!D38","v":"اللغة الفرنسية"},{"$f":"IF(ROW($A32)<='بيانات الحراس'!$F$2,ROW($A32),\"\")","v":32},null,null,null,null,null,null,null,null,null,"",null,null,null,null,null,null,null,null,null,null,"",0,0,null,0,0]
[null,"","",0,null,null,null,null,null,null,null,null,null,{"$f":"'بيانات الحراس'!B39","v":"بدر33"},{"$f":"'بيانات الحراس'!D39","v":"اللغة الفرنسية"},{"$f":"IF(ROW($A33)<='بيانات الحراس'!$F$2,ROW($A33),\"\")","v":33},null,null,null,null,null,null,null,null,null,"",null,null,null,null,null,null,null,null,null,null,"",0,0,null,0,0]
[null,"","",0,null,null,null,null,null,null,null,null,null,{"$f":"'بيانات الحراس'!B40","v":"بدر34"},{"$f":"'بيانات الحراس'!D40","v":"فيزياء"},{"$f":"IF(ROW($A34)<='بيانات الحراس'!$F$2,ROW($A34),\"\")","v":34},null,null,null,null,null,null,null,null,null,"",null,null,null,null,null,null,null,null,null,null,"",0,0,null,0,0]
[null,"","",0,null,null,null,null,null,null,null,null,null,{"$f":"'بيانات الحراس'!B41","v":"بدر35"},{"$f":"'بيانات الحراس'!D41","v":"تربية فنية"},{"$f":"IF(ROW($A35)<='بيانات الحراس'!$F$2,ROW($A35),\"\")","v":35},null,null,null,null,null,null,null,null,null,"",null,null,null,null,null,null,null,null,null,null,"",0,0,null,0,0]
[null,"","",0,null,null,null,null,null,null,null,null,null,{"$f":"'بيانات الحراس'!B42","v":"بدر36"},{"$f":"'بيانات الحراس'!D42","v":"تربية بدنية"},{"$f":"IF(ROW($A36)<='بيانات الحراس'!$F$2,ROW($A36),\"\")","v":36},null,null,null,null,null,null,null,null,null,"",null,null,null,null,null,null,null,null,null,null,"",0,0,null,0,0]
[null,"","",0,null,null,null,null,null,null,null,null,null,{"$f":"'بيانات الحراس'!B43","v":"بدر37"},{"$f":"'بيانات الحراس'!D43","v":"تربية بدنية"},{"$f":"IF(ROW($A37)<='بيانات الحراس'!$F$2,ROW($A37),\"\")","v":37},null,null,null,null,null,null,null,null,null,"",null,null,null,null,null,null,null,null,null,null,"",0,0,null,0,0]
[null,"","",0,null,null,null,null,null,null,null,null,null,{"$f":"'بيانات الحراس'!B44","v":"بدر38"},{"$f":"'بيانات الحراس'!D44","v":"تربية بدنية"},{"$f":"IF(ROW($A38)<='بيانات الحراس'!$F$2,ROW($A38),\"\")","v":38},null,null,null,null,null,null,null,null,null,"",null,null,null,null,null,null,null,null,null,null,"",0,0,null,0,0]
[null,"","",0,null,null,null,null,null,null,null,null,null,{"$f":"'بيانات الحراس'!B45","v":"بدر39"},{"$f":"'بيانات الحراس'!D45","v":"تربية بدنية"},{"$f":"IF(ROW($A39)<='بيانات الحراس'!$F$2,ROW($A39),\"\")","v":39},null,null,null,null,null,null,null,null,null,"",null,null,null,null,null,null,null,null,null,null,"",0,0,null,0,0]
[null,"","",0,null,null,null,null,null,null,null,null,null,{"$f":"'بيانات الحراس'!B46","v":"بدر40"},{"$f":"'بيانات الحراس'!D46","v":"تربية بدنية"},{"$f":"IF(ROW($A40)<='بيانات الحراس'!$F$2,ROW($A40),\"\")","v":40},null,null,null,null,null,null,null,null,null,"",null,null,null,null,null,null,null,null,null,null,"",0,0,null,0,0]
[null,4.5,0.5,0.5,null,null,null,null,null,null,null,null,51,{"$f":"'بيانات الحراس'!B47","v":"بدر41"},{"$f":"'بيانات الحراس'!D47","v":"تربية بدنية"},{"$f":"IF(ROW($A41)<='بيانات الحراس'!$F$2,ROW($A41),\"\")","v":41},null,null,null,null,null,null,null,null,null,"",null,null,null,null,null,null,null,null,null,null,"",0,0,null,0,0]
[null,4.5,0.5,0.5,null,null,null,null,null,null,null,null,52,{"$f":"'بيانات الحراس'!B48","v":"بدر42"},{"$f":"'بيانات الحراس'!D48","v":"تربية بدنية"},{"$f":"IF(ROW($A42)<='بيانات الحراس'!$F$2,ROW($A42),\"\")","v":42},null,null,null,null,null,null,null,null,null,"",null,null,null,null,null,null,null,null,null,null,"",0,0,null,0,0]
[null,4.5,0.5,0.5,null,null,null,null,null,null,null,null,53,{"$f":"'بيانات الحراس'!B49","v":"بدر43"},{"$f":"'بيانات الحراس'!D49","v":"تربية بدنية"},{"$f":"IF(ROW($A43)<='بيانات الحراس'!$F$2,ROW($A43),\"\")","v":43},null,null,null,null,null,null,null,null,null,"",null,null,null,null,null,null,null,null,null,null,"",0,0,null,0,0]
[null,4.5,0.5,0.5,null,null,null,null,null,null,null,null,54,{"$f":"'بيانات الحراس'!B50","v":"بدر44"},{"$f":"'بيانات الحراس'!D50","v":"تربية بدنية"},{"$f":"IF(ROW($A44)<='بيانات الحراس'!$F$2,ROW($A44),\"\")","v":44},null,null,null,null,null,null,null,null,null,"",null,null,null,null,null,null,null,null,null,null,"",0,0,null,0,0]
[null,4.5,0.5,0.5,null,null,null,null,null,null,null,null,55,{"$f":"'بيانات الحراس'!B51","v":"بدر45"},{"$f":"'بيانات الحراس'!D51","v":"تربية بدنية"},{"$f":"IF(ROW($A45)<='بيانات الحراس'!$F$2,ROW($A45),\"\")","v":45},null,null,null,null,null,null,null,null,null,"",null,null,null,null,null,null,null,null,null,null,"",0,0,null,0,0]
[null,4.5,0.5,0.5,null,null,null,null,null,null,null,null,56,{"$f":"'بيانات الحراس'!B52","v":"بدر46"},{"$f":"'بيانات الحراس'!D52","v":"اللغة العربية"},{"$f":"IF(ROW($A46)<='بيانات الحراس'!$F$2,ROW($A46),\"\")","v":46},null,null,null,null,null,null,null,null,null,"",null,null,null,null,null,null,null,null,null,null,"",0,0,null,0,0]
[null,4.5,0.5,0.5,null,null,null,null,null,null,null,null,57,{"$f":"'بيانات الحراس'!B53","v":"بدر47"},{"$f":"'بيانات الحراس'!D53","v":"اللغة العربية"},{"$f":"IF(ROW($A47)<='بيانات الحراس'!$F$2,ROW($A47),\"\")","v":47},null,null,null,null,null,null,null,null,null,"",null,null,null,null,null,null,null,null,null,null,"",0,0,null,0,0]
[null,4.5,0.5,0.5,null,null,null,null,null,null,null,null,58,{"$f":"'بيانات الحراس'!B54","v":"بدر48"},{"$f":"'بيانات الحراس'!D54","v":"اللغة العربية"},{"$f":"IF(ROW($A48)<='بيانات الحراس'!$F$2,ROW($A48),\"\")","v":48},null,null,null,null,null,null,null,null,null,"",null,null,null,null,null,null,null,null,null,null,"",0,0,null,0,0]
[null,4.5,0.5,0.5,null,null,null,null,null,null,null,null,59,{"$f":"'بيانات الحراس'!B55","v":"بدر49"},{"$f":"'بيانات الحراس'!D55","v":"اللغة العربية"},{"$f":"IF(ROW($A49)<='بيانات الحراس'!$F$2,ROW($A49),\"\")","v":49},null,null,null,null,null,null,null,null,null,"",null,null,null,null,null,null,null,null,null,null,"",0,0,null,0,0]
[null,4.5,0.5,0.5,null,null,null,null,null,null,null,null,60,{"$f":"'بيانات الحراس'!B56","v":"بدر50"},{"$f":"'بيانات الحراس'!D56","v":"اللغة العربية"},{"$f":"IF(ROW($A50)<='بيانات الحراس'!$F$2,ROW($A50),\"\")","v":50},null,null,null,null,null,null,null,null,null,"",null,null,null,null,null,null,null,null,null,null,"",0,0,null,0,0]
[null,4.5,0.5,0.5,null,null,null,null,null,null,null,null,61,{"$f":"'بيانات الحراس'!B57","v":"بدر51"},{"$f":"'بيانات الحراس'!D57","v":"اللغة العربية"},{"$f":"IF(ROW($A51)<='بيانات الحراس'!$F$2,ROW($A51),\"\")","v":51},null,null,null,null,null,null,null,null,null,"",null,null,null,null,null,null,null,null,null,null,"",0,0,null,0,0]
[null,4.5,0.5,0.5,null,null,null,null,null,null,null,null,62,{"$f":"'بيانات الحراس'!B58","v":"بدر52"},{"$f":"'بيانات الحراس'!D58","v":"اللغة العربية"},{"$f":"IF(ROW($A52)<='بيانات الحراس'!$F$2,ROW($A52),\"\")","v":52},null,null,null,null,null,null,null,null,null,"",null,null,null,null,null,null,null,null,null,null,"",0,0,null,0,0]
[null,4.5,0.5,0.5,null,null,null,null,null,null,null,null,63,{"$f":"'بيانات الحراس'!B59","v":"بدر53"},{"$f":"'بيانات الحراس'!D59","v":"اللغة العربية"},{"$f":"IF(ROW($A53)<='بيانات الحراس'!$F$2,ROW($A53),\"\")","v":53},null,null,null,null,null,null,null,null,null,"",null,null,null,null,null,null,null,null,null,null,"",0,0,null,0,0]
[null,4.5,0.5,0.5,null,null,null,null,null,null,null,null,64,{"$f":"'بيانات الحراس'!B60","v":"بدر54"},{"$f":"'بيانات الحراس'!D60","v":"اللغة العربية"},{"$f":"IF(ROW($A54)<='بيانات الحراس'!$F$2,ROW($A54),\"\")","v":54},null,null,null,null,null,null,null,null,null,"",null,null,null,null,null,null,null,null,null,null,"",0,0,null,0,0]
[null,4.5,0.5,0.5,null,null,null,null,null,null,null,null,201,{"$f":"'بيانات الحراس'!B61","v":"بدر55"},{"$f":"'بيانات الحراس'!D61","v":"اللغة العربية"},{"$f":"IF(ROW($A55)<='بيانات الحراس'!$F$2,ROW($A55),\"\")","v":55},null,null,null,null,null,null,null,null,null,"",null,null,null,null,null,null,null,null,null,null,"",0,0,null,0,0]
[null,4.5,0.5,0.5,null,null,null,null,null,null,null,null,202,{"$f":"'بيانات الحراس'!B62","v":"بدر56"},{"$f":"'بيانات الحراس'!D62","v":"اللغة العربية"},{"$f":"IF(ROW($A56)<='بيانات الحراس'!$F$2,ROW($A56),\"\")","v":56},null,null,null,null,null,null,null,null,null,"",null,null,null,null,null,null,null,null,null,null,"",0,0,null,0,0]
[null,4.5,0.5,0.5,null,null,null,null,null,null,null,null,203,{"$f":"'بيانات الحراس'!B63","v":"بدر57"},{"$f":"'بيانات الحراس'!D63","v":"اللغة العربية"},{"$f":"IF(ROW($A57)<='بيانات الحراس'!$F$2,ROW($A57),\"\")","v":57},null,null,null,null,null,null,null,null,null,"",null,null,null,null,null,null,null,null,null,null,"",0,0,null,0,0]
[null,4.5,0.5,0.5,null,null,null,null,null,null,null,null,204,{"$f":"'بيانات الحراس'!B64","v":"بدر58"},{"$f":"'بيانات الحراس'!D64","v":"اللغة العربية"},{"$f":"IF(ROW($A58)<='بيانات الحراس'!$F$2,ROW($A58),\"\")","v":58},null,null,null,null,null,null,null,null,null,"",null,null,null,null,null,null,null,null,null,null,"",0,0,null,0,0]
[null,4.5,0.5,0.5,null,null,null,null,null,null,null,null,205,{"$f":"'بيانات الحراس'!B65","v":"بدر59"},{"$f":"'بيانات الحراس'!D65","v":"اللغة العربية"},{"$f":"IF(ROW($A59)<='بيانات الحراس'!$F$2,ROW($A59),\"\")","v":59},null,null,null,null,null,null,null,null,null,"",null,null,null,null,null,null,null,null,null,null,"",0,0,null,0,0]
[null,4.5,0.5,0.5,null,null,null,null,null,null,null,null,206,{"$f":"'بيانات الحراس'!B66","v":"بدر60"},{"$f":"'بيانات الحراس'!D66","v":"اللغة العربية"},{"$f":"IF(ROW($A60)<='بيانات الحراس'!$F$2,ROW($A60),\"\")","v":60},null,null,null,null,null,null,null,null,null,"",null,null,null,null,null,null,null,null,null,null,"",0,0,null,0,0]
[null,4.5,0.5,0.5,null,null,null,null,null,null,null,null,207,{"$f":"'بيانات الحراس'!B67","v":"بدر61"},{"$f":"'بيانات الحراس'!D67","v":"اللغة العربية"},{"$f":"IF(ROW($A61)<='بيانات الحراس'!$F$2,ROW($A61),\"\")","v":61},null,null,null,null,null,null,null,null,null,"",null,null,null,null,null,null,null,null,null,null,"",0,0,null,0,0]
[null,4.5,0.5,0.5,null,null,null,null,null,null,null,null,208,{"$f":"'بيانات الحراس'!B68","v":"بدر62"},{"$f":"'بيانات الحراس'!D68","v":"اللغة العربية"},{"$f":"IF(ROW($A62)<='بيانات الحراس'!$F$2,ROW($A62),\"\")","v":62},null,null,null,null,null,null,null,null,null,"",null,null,null,null,null,null,null,null,null,null,"",0,0,null,0,0]
[null,4.5,0.5,0.5,null,null,null,null,null,null,null,null,81,{"$f":"'بيانات الحراس'!B69","v":"بدر63"},{"$f":"'بيانات الحراس'!D69","v":"اللغة العربية"},{"$f":"IF(ROW($A63)<='بيانات الحراس'!$F$2,ROW($A63),\"\")","v":63},null,null,null,null,null,null,null,null,null,"",null,null,null,null,null,null,null,null,null,null,"",0,0,null,0,0]
[null,4.5,0.5,0.5,null,null,null,null,null,null,null,null,82,{"$f":"'بيانات الحراس'!B70","v":"بدر64"},{"$f":"'بيانات الحراس'!D70","v":"اللغة العربية"},{"$f":"IF(ROW($A64)<='بيانات الحراس'!$F$2,ROW($A64),\"\")","v":64},null,null,null,null,null,null,null,null,null,"",null,null,null,null,null,null,null,null,null,null,"",0,0,null,0,0]
[null,"","",0,null,null,null,null,null,null,null,null,null,{"$f":"'بيانات الحراس'!B71","v":"بدر65"},{"$f":"'بيانات الحراس'!D71","v":"اللغة العربية"},{"$f":"IF(ROW($A65)<='بيانات الحراس'!$F$2,ROW($A65),\"\")","v":65},null,null,null,null,null,null,null,null,null,"",null,null,null,null,null,null,null,null,null,null,"",0,0,null,0,0]
[null,{"$f":"IF(C74=\"\",\"\",5-C74)","v":""},{"$f":"IF(SUM((COUNTA(M74,L74,K74,J74,I74,H74,F74,E74)/2),AK74,COUNTA(G74))=0,\"\",SUM((COUNTA(M74,L74,K74,J74,I74,H74,F74,E74)/2),AK74,COUNTA(G74)))","v":""},{"$f":"IF(C74=\"\",0,C74)","v":0},null,null,null,null,null,null,null,null,null,{"$f":"'بيانات الحراس'!B72","v":"بدر66"},{"$f":"'بيانات الحراس'!D72","v":"اللغة العربية"},{"$f":"IF(ROW($A66)<='بيانات الحراس'!$F$2,ROW($A66),\"\")","v":66},null,null,null,null,null,null,null,null,null,{"$f":"IF(AM74+AL74=0,\"\",AM74+AL74)","v":""},null,null,null,null,null,null,null,null,null,null,{"$f":"IF(AO74+AP74=0,\"\",AO74+AP74)","v":""},{"$f":"COUNTA(Y74,X74,V74,U74,T74,S74,R74,Q74)/2","v":0},{"$f":"COUNTA(W74)","v":0},null,{"$f":"(COUNTA(AJ74,AI74,AG74,AF74,AE74,AD74,AC74,AB74))/2","v":0},{"$f":"COUNTA(AH74)","v":0}]
[null,"","",0,null,null,null,null,null,null,null,null,null,{"$f":"'بيانات الحراس'!B73","v":"بدر67"},{"$f":"'بيانات الحراس'!D73","v":"اللغة العربية"},{"$f":"IF(ROW($A67)<='بيانات الحراس'!$F$2,ROW($A67),\"\")","v":67},null,null,null,null,null,null,null,null,null,"",null,null,null,null,null,null,null,null,null,null,"",0,0,null,0,0]
[null,"","",0,null,null,null,null,null,null,null,null,null,{"$f":"'بيانات الحراس'!B74","v":"بدر68"},{"$f":"'بيانات الحراس'!D74","v":"اللغة العربية"},{"$f":"IF(ROW($A68)<='بيانات الحراس'!$F$2,ROW($A68),\"\")","v":68},null,null,null,null,null,null,null,null,null,"",null,null,null,null,null,null,null,null,null,null,"",0,0,null,0,0]
[null,"","",0,null,null,null,null,null,null,null,null,null,{"$f":"'بيانات الحراس'!B75","v":"بدر69"},{"$f":"'بيانات الحراس'!D75","v":"اللغة العربية"},{"$f":"IF(ROW($A69)<='بيانات الحراس'!$F$2,ROW($A69),\"\")","v":69},null,null,null,null,null,null,null,null,null,"",null,null,null,null,null,null,null,null,null,null,"",0,0,null,0,0]
[null,"","",0,null,null,null,null,null,null,null,null,null,{"$f":"'بيانات الحراس'!B76","v":"بدر70"},{"$f":"'بيانات الحراس'!D76","v":"اللغة العربية"},{"$f":"IF(ROW($A70)<='بيانات الحراس'!$F$2,ROW($A70),\"\")","v":70},null,null,null,null,null,null,null,null,null,"",null,null,null,null,null,null,null,null,null,null,"",0,0,null,0,0]
[null,"","",0,null,null,null,null,null,null,null,null,null,{"$f":"'بيانات الحراس'!B77","v":0},{"$f":"'بيانات الحراس'!D77","v":0},{"$f":"IF(ROW($A71)<='بيانات الحراس'!$F$2,ROW($A71),\"\")","v":""},null,null,null,null,null,null,null,null,null,"",null,null,null,null,null,null,null,null,null,null,"",0,0,null,0,0]
[null,"","",0,null,null,null,null,null,null,null,null,null,{"$f":"'بيانات الحراس'!B78","v":0},{"$f":"'بيانات الحراس'!D78","v":0},{"$f":"IF(ROW($A72)<='بيانات الحراس'!$F$2,ROW($A72),\"\")","v":""},null,null,null,null,null,null,null,null,null,"",null,null,null,null,null,null,null,null,null,null,"",0,0,null,0,0]
[null,"","",0,null,null,null,null,null,null,null,null,null,{"$f":"'بيانات الحراس'!B79","v":0},{"$f":"'بيانات الحراس'!D79","v":0},{"$f":"IF(ROW($A73)<='بيانات الحراس'!$F$2,ROW($A73),\"\")","v":""},null,null,null,null,null,null,null,null,null,"",null,null,null,null,null,null,null,null,null,null,"",0,0,null,0,0]
[null,"","",0,null,null,null,null,null,null,null,null,null,{"$f":"'بيانات الحراس'!B80","v":0},{"$f":"'بيانات الحراس'!D80","v":0},{"$f":"IF(ROW($A74)<='بيانات الحراس'!$F$2,ROW($A74),\"\")","v":""},null,null,null,null,null,null,null,null,null,"",null,null,null,null,null,null,null,null,null,null,"",0,0,null,0,0]
[null,"","",0,null,null,null,null,null,null,null,null,null,{"$f":"'بيانات الحراس'!B81","v":0},{"$f":"'بيانات الحراس'!D81","v":0},{"$f":"IF(ROW($A75)<='بيانات الحراس'!$F$2,ROW($A75),\"\")","v":""},null,null,null,null,null,null,null,null,null,"",null,null,null,null,null,null,null,null,null,null,"",0,0,null,0,0]
[null,"","",0,null,null,null,null,null,null,null,null,null,{"$f":"'بيانات الحراس'!B82","v":0},{"$f":"'بيانات الحراس'!D82","v":0},{"$f":"IF(ROW($A76)<='بيانات الحراس'!$F$2,ROW($A76),\"\")","v":""},null,null,null,null,null,null,null,null,null,"",null,null,null,null,null,null,null,null,null,null,"",0,0,null,0,0]
[null,"","",0,null,null,null,null,null,null,null,null,null,{"$f":"'بيانات الحراس'!B83","v":0},{"$f":"'بيانات الحراس'!D83","v":0},{"$f":"IF(ROW($A77)<='بيانات الحراس'!$F$2,ROW($A77),\"\")","v":""},null,null,null,null,null,null,null,null,null,"",null,null,null,null,null,null,null,null,null,null,"",0,0,null,0,0]
[null,"","",0,null,null,null,null,null,null,null,null,null,{"$f":"'بيانات الحراس'!B84","v":0},{"$f":"'بيانات الحراس'!D84","v":0},{"$f":"IF(ROW($A78)<='بيانات الحراس'!$F$2,ROW($A78),\"\")","v":""},null,null,null,null,null,null,null,null,null,"",null,null,null,null,null,null,null,null,null,null,"",0,0,null,0,0]
[null,"","",0,null,null,null,null,null,null,null,null,null,{"$f":"'بيانات الحراس'!B85","v":0},{"$f":"'بيانات الحراس'!D85","v":0},{"$f":"IF(ROW($A79)<='بيانات الحراس'!$F$2,ROW($A79),\"\")","v":""},null,null,null,null,null,null,null,null,null,"",null,null,null,null,null,null,null,null,null,null,"",0,0,null,0,0]
[null,"","",0,null,null,null,null,null,null,null,null,null,{"$f":"'بيانات الحراس'!B86","v":0},{"$f":"'بيانات الحراس'!D86","v":0},{"$f":"IF(ROW($A80)<='بيانات الحراس'!$F$2,ROW($A80),\"\")","v":""},null,null,null,null,null,null,null,null,null,"",null,null,null,null,null,null,null,null,null,null,"",0,0,null,0,0]
[null,"","",0,null,null,null,null,null,null,null,null,null,{"$f":"'بيانات الحراس'!B87","v":0},{"$f":"'بيانات الحراس'!D87","v":0},{"$f":"IF(ROW($A81)<='بيانات الحراس'!$F$2,ROW($A81),\"\")","v":""},null,null,null,null,null,null,null,null,null,"",null,null,null,null,null,null,null,null,null,null,"",0,0,null,0,0]
[null,"","",0,null,null,null,null,null,null,null,null,null,{"$f":"'بيانات الحراس'!B88","v":0},{"$f":"'بيانات الحراس'!D88","v":0},{"$f":"IF(ROW($A82)<='بيانات الحراس'!$F$2,ROW($A82),\"\")","v":""},null,null,null,null,null,null,null,null,null,"",null,null,null,null,null,null,null,null,null,null,"",0,0,null,0,0]
[null,"","",0,null,null,null,null,null,null,null,null,null,{"$f":"'بيانات الحراس'!B89","v":0},{"$f":"'بيانات الحراس'!D89","v":0},{"$f":"IF(ROW($A83)<='بيانات الحراس'!$F$2,ROW($A83),\"\")","v":""},null,null,null,null,null,null,null,null,null,"",null,null,null,null,null,null,null,null,null,null,"",0,0,null,0,0]
[null,"","",0,null,null,null,null,null,null,null,null,null,{"$f":"'بيانات الحراس'!B90","v":0},{"$f":"'بيانات الحراس'!D90","v":0},{"$f":"IF(ROW($A84)<='بيانات الحراس'!$F$2,ROW($A84),\"\")","v":""},null,null,null,null,null,null,null,null,null,"",null,null,null,null,null,null,null,null,null,null,"",0,0,null,0,0]
[null,"","",0,null,null,null,null,null,null,null,null,null,{"$f":"'بيانات الحراس'!B91","v":0},{"$f":"'بيانات الحراس'!D91","v":0},{"$f":"IF(ROW($A85)<='بيانات الحراس'!$F$2,ROW($A85),\"\")","v":""},null,null,null,null,null,null,null,null,null,"",null,null,null,null,null,null,null,null,null,null,"",0,0,null,0,0]
[null,"","",0,null,null,null,null,null,null,null,null,null,{"$f":"'بيانات الحراس'!B92","v":0},{"$f":"'بيانات الحراس'!D92","v":0},{"$f":"IF(ROW($A86)<='بيانات الحراس'!$F$2,ROW($A86),\"\")","v":""},null,null,null,null,null,null,null,null,null,"",null,null,null,null,null,null,null,null,null,null,"",0,0,null,0,0]
[null,"","",0,null,null,null,null,null,null,null,null,null,{"$f":"'بيانات الحراس'!B93","v":0},{"$f":"'بيانات الحراس'!D93","v":0},{"$f":"IF(ROW($A87)<='بيانات الحراس'!$F$2,ROW($A87),\"\")","v":""},null,null,null,null,null,null,null,null,null,"",null,null,null,null,null,null,null,null,null,null,"",0,0,null,0,0]
[null,"","",0,null,null,null,null,null,null,null,null,null,{"$f":"'بيانات الحراس'!B94","v":0},{"$f":"'بيانات الحراس'!D94","v":0},{"$f":"IF(ROW($A88)<='بيانات الحراس'!$F$2,ROW($A88),\"\")","v":""},null,null,null,null,null,null,null,null,null,"",null,null,null,null,null,null,null,null,null,null,"",0,0,null,0,0]
[null,"","",0,null,null,null,null,null,null,null,null,null,{"$f":"'بيانات الحراس'!B95","v":0},{"$f":"'بيانات الحراس'!D95","v":0},{"$f":"IF(ROW($A89)<='بيانات الحراس'!$F$2,ROW($A89),\"\")","v":""},null,null,null,null,null,null,null,null,null,"",null,null,null,null,null,null,null,null,null,null,"",0,0,null,0,0]
[null,"","",0,null,null,null,null,null,null,null,null,null,{"$f":"'بيانات الحراس'!B96","v":0},{"$f":"'بيانات الحراس'!D96","v":0},{"$f":"IF(ROW($A90)<='بيانات الحراس'!$F$2,ROW($A90),\"\")","v":""},null,null,null,null,null,null,null,null,null,"",null,null,null,null,null,null,null,null,null,null,"",0,0,null,0,0]
[null,"","",0,null,null,null,null,null,null,null,null,null,{"$f":"'بيانات الحراس'!B97","v":0},{"$f":"'بيانات الحراس'!D97","v":0},{"$f":"IF(ROW($A91)<='بيانات الحراس'!$F$2,ROW($A91),\"\")","v":""},null,null,null,null,null,null,null,null,null,"",null,null,null,null,null,null,null,null,null,null,"",0,0,null,0,0]
[null,"","",0,null,null,null,null,null,null,null,null,null,{"$f":"'بيانات الحراس'!B98","v":0},{"$f":"'بيانات الحراس'!D98","v":0},{"$f":"IF(ROW($A92)<='بيانات الحراس'!$F$2,ROW($A92),\"\")","v":""},null,null,null,null,null,null,null,null,null,"",null,null,null,null,null,null,null,null,null,null,"",0,0,null,0,0]
[null,"","",0,null,null,null,null,null,null,null,null,null,{"$f":"'بيانات الحراس'!B99","v":0},{"$f":"'بيانات الحراس'!D99","v":0},{"$f":"IF(ROW($A93)<='بيانات الحراس'!$F$2,ROW($A93),\"\")","v":""},null,null,null,null,null,null,null,null,null,"",null,null,null,null,null,null,null,null,null,null,"",0,0,null,0,0]
[null,"","",0,null,null,null,null,null,null,null,null,null,{"$f":"'بيانات الحراس'!B100","v":0},{"$f":"'بيانات الحراس'!D100","v":0},{"$f":"IF(ROW($A94)<='بيانات الحراس'!$F$2,ROW($A94),\"\")","v":""},null,null,null,null,null,null,null,null,null,"",null,null,null,null,null,null,null,null,null,null,"",0,0,null,0,0]
[null,"","",0,null,null,null,null,null,null,null,null,null,{"$f":"'بيانات الحراس'!B101","v":0},{"$f":"'بيانات الحراس'!D101","v":0},{"$f":"IF(ROW($A95)<='بيانات الحراس'!$F$2,ROW($A95),\"\")","v":""},null,null,null,null,null,null,null,null,null,"",null,null,null,null,null,null,null,null,null,null,"",0,0,null,0,0]
[null,"","",0,null,null,null,null,null,null,null,null,null,{"$f":"'بيانات الحراس'!B102","v":0},{"$f":"'بيانات الحراس'!D102","v":0},{"$f":"IF(ROW($A96)<='بيانات الحراس'!$F$2,ROW($A96),\"\")","v":""},null,null,null,null,null,null,null,null,null,"",null,null,null,null,null,null,null,null,null,null,"",0,0,null,0,0]
[null,"","",0,null,null,null,null,null,null,null,null,null,{"$f":"'بيانات الحراس'!B103","v":0},{"$f":"'بيانات الحراس'!D103","v":0},{"$f":"IF(ROW($A97)<='بيانات الحراس'!$F$2,ROW($A97),\"\")","v":""},null,null,null,null,null,null,null,null,null,"",null,null,null,null,null,null,null,null,null,null,"",0,0,null,0,0]
[null,"","",0,null,null,null,null,null,null,null,null,null,{"$f":"'بيانات الحراس'!B104","v":0},{"$f":"'بيانات الحراس'!D104","v":0},{"$f":"IF(ROW($A98)<='بيانات الحراس'!$F$2,ROW($A98),\"\")","v":""},null,null,null,null,null,null,null,null,null,"",null,null,null,null,null,null,null,null,null,null,"",0,0,null,0,0]
[null,"","",0,null,null,null,null,null,null,null,null,null,{"$f":"'بيانات الحراس'!B105","v":0},{"$f":"'بيانات الحراس'!D105","v":0},{"$f":"IF(ROW($A99)<='بيانات الحراس'!$F$2,ROW($A99),\"\")","v":""},null,null,null,null,null,null,null,null,null,"",null,null,null,null,null,null,null,null,null,null,"",0,0,null,0,0]
[null,"","",0,null,null,null,null,null,null,null,null,null,{"$f":"'بيانات الحراس'!B106","v":0},{"$f":"'بيانات الحراس'!D106","v":0},{"$f":"IF(ROW($A100)<='بيانات الحراس'!$F$2,ROW($A100),\"\")","v":""},null,null,null,null,null,null,null,null,null,"",null,null,null,null,null,null,null,null,null,null,"",0,0,null,0,0]
[null,"","",0,null,null,null,null,null,null,null,null,null,{"$f":"'بيانات الحراس'!B107","v":0},{"$f":"'بيانات الحراس'!D107","v":0},{"$f":"IF(ROW($A101)<='بيانات الحراس'!$F$2,ROW($A101),\"\")","v":""},null,null,null,null,null,null,null,null,null,"",null,null,null,null,null,null,null,null,null,null,"",0,0,null,0,0]
[null,"","",0,null,null,null,null,null,null,null,null,null,{"$f":"'بيانات الحراس'!B108","v":0},{"$f":"'بيانات الحراس'!D108","v":0},{"$f":"IF(ROW($A102)<='بيانات الحراس'!$F$2,ROW($A102),\"\")","v":""},null,null,null,null,null,null,null,null,null,"",null,null,null,null,null,null,null,null,null,null,"",0,0,null,0,0]
[null,"","",0,null,null,null,null,null,null,null,null,null,{"$f":"'بيانات الحراس'!B109","v":0},{"$f":"'بيانات الحراس'!D109","v":0},{"$f":"IF(ROW($A103)<='بيانات الحراس'!$F$2,ROW($A103),\"\")","v":""},null,null,null,null,null,null,null,null,null,"",null,null,null,null,null,null,null,null,null,null,"",0,0,null,0,0]
[null,"","",0,null,null,null,null,null,null,null,null,null,{"$f":"'بيانات الحراس'!B110","v":0},{"$f":"'بيانات الحراس'!D110","v":0},{"$f":"IF(ROW($A104)<='بيانات الحراس'!$F$2,ROW($A104),\"\")","v":""},null,null,null,null,null,null,null,null,null,"",null,null,null,null,null,null,null,null,null,null,"",0,0,null,0,0]
[null,"","",0,null,null,null,null,null,null,null,null,null,{"$f":"'بيانات الحراس'!B111","v":0},{"$f":"'بيانات الحراس'!D111","v":0},{"$f":"IF(ROW($A105)<='بيانات الحراس'!$F$2,ROW($A105),\"\")","v":""},null,null,null,null,null,null,null,null,null,"",null,null,null,null,null,null,null,null,null,null,"",0,0,null,0,0]
[null,"","",0,null,null,null,null,null,null,null,null,null,{"$f":"'بيانات الحراس'!B112","v":0},{"$f":"'بيانات الحراس'!D112","v":0},{"$f":"IF(ROW($A106)<='بيانات الحراس'!$F$2,ROW($A106),\"\")","v":""},null,null,null,null,null,null,null,null,null,"",null,null,null,null,null,null,null,null,null,null,"",0,0,null,0,0]
[null,"","",0,null,null,null,null,null,null,null,null,null,{"$f":"'بيانات الحراس'!B113","v":0},{"$f":"'بيانات الحراس'!D113","v":0},{"$f":"IF(ROW($A107)<='بيانات الحراس'!$F$2,ROW($A107),\"\")","v":""},null,null,null,null,null,null,null,null,null,"",null,null,null,null,null,null,null,null,null,null,"",0,0,null,0,0]
[null,"","",0,null,null,null,null,null,null,null,null,null,{"$f":"'بيانات الحراس'!B114","v":0},{"$f":"'بيانات الحراس'!D114","v":0},{"$f":"IF(ROW($A108)<='بيانات الحراس'!$F$2,ROW($A108),\"\")","v":""},null,null,null,null,null,null,null,null,null,"",null,null,null,null,null,null,null,null,null,null,"",0,0,null,0,0]
[null,"","",0,null,null,null,null,null,null,null,null,null,{"$f":"'بيانات الحراس'!B115","v":0},{"$f":"'بيانات الحراس'!D115","v":0},{"$f":"IF(ROW($A109)<='بيانات الحراس'!$F$2,ROW($A109),\"\")","v":""},null,null,null,null,null,null,null,null,null,"",null,null,null,null,null,null,null,null,null,null,"",0,0,null,0,0]
[null,"","",0,null,null,null,null,null,null,null,null,null,{"$f":"'بيانات الحراس'!B116","v":0},{"$f":"'بيانات الحراس'!D116","v":0},{"$f":"IF(ROW($A110)<='بيانات الحراس'!$F$2,ROW($A110),\"\")","v":""},null,null,null,null,null,null,null,null,null,"",null,null,null,null,null,null,null,null,null,null,"",0,0,null,0,0]
[null,"","",0,null,null,null,null,null,null,null,null,null,{"$f":"'بيانات الحراس'!B117","v":0},{"$f":"'بيانات الحراس'!D117","v":0},{"$f":"IF(ROW($A111)<='بيانات الحراس'!$F$2,ROW($A111),\"\")","v":""},null,null,null,null,null,null,null,null,null,"",null,null,null,null,null,null,null,null,null,null,"",0,0,null,0,0]
[null,"","",0,null,null,null,null,null,null,null,null,null,{"$f":"'بيانات الحراس'!B118","v":0},{"$f":"'بيانات الحراس'!D118","v":0},{"$f":"IF(ROW($A112)<='بيانات الحراس'!$F$2,ROW($A112),\"\")","v":""},null,null,null,null,null,null,null,null,null,"",null,null,null,null,null,null,null,null,null,null,"",0,0,null,0,0]
[null,"","",0,null,null,null,null,null,null,null,null,null,{"$f":"'بيانات الحراس'!B119","v":0},{"$f":"'بيانات الحراس'!D119","v":0},{"$f":"IF(ROW($A113)<='بيانات الحراس'!$F$2,ROW($A113),\"\")","v":""},null,null,null,null,null,null,null,null,null,"",null,null,null,null,null,null,null,null,null,null,"",0,0,null,0,0]
[null,"","",0,null,null,null,null,null,null,null,null,null,{"$f":"'بيانات الحراس'!B120","v":0},{"$f":"'بيانات الحراس'!D120","v":0},{"$f":"IF(ROW($A114)<='بيانات الحراس'!$F$2,ROW($A114),\"\")","v":""},null,null,null,null,null,null,null,null,null,"",null,null,null,null,null,null,null,null,null,null,"",0,0,null,0,0]
[null,"","",0,null,null,null,null,null,null,null,null,null,{"$f":"'بيانات الحراس'!B121","v":0},{"$f":"'بيانات الحراس'!D121","v":0},{"$f":"IF(ROW($A115)<='بيانات الحراس'!$F$2,ROW($A115),\"\")","v":""},null,null,null,null,null,null,null,null,null,"",null,null,null,null,null,null,null,null,null,null,"",0,0,null,0,0]
[null,"","",0,null,null,null,null,null,null,null,null,null,{"$f":"'بيانات الحراس'!B122","v":0},{"$f":"'بيانات الحراس'!D122","v":0},{"$f":"IF(ROW($A116)<='بيانات الحراس'!$F$2,ROW($A116),\"\")","v":""},null,null,null,null,null,null,null,null,null,"",null,null,null,null,null,null,null,null,null,null,"",0,0,null,0,0]
[null,"","",0,null,null,null,null,null,null,null,null,null,{"$f":"'بيانات الحراس'!B123","v":0},{"$f":"'بيانات الحراس'!D123","v":0},{"$f":"IF(ROW($A117)<='بيانات الحراس'!$F$2,ROW($A117),\"\")","v":""},null,null,null,null,null,null,null,null,null,"",null,null,null,null,null,null,null,null,null,null,"",0,0,null,0,0]
[null,"","",0,null,null,null,null,null,null,null,null,null,{"$f":"'بيانات الحراس'!B124","v":0},{"$f":"'بيانات الحراس'!D124","v":0},{"$f":"IF(ROW($A118)<='بيانات الحراس'!$F$2,ROW($A118),\"\")","v":""},null,null,null,null,null,null,null,null,null,"",null,null,null,null,null,null,null,null,null,null,"",0,0,null,0,0]
[null,"","",0,null,null,null,null,null,null,null,null,null,{"$f":"'بيانات الحراس'!B125","v":0},{"$f":"'بيانات الحراس'!D125","v":0},{"$f":"IF(ROW($A119)<='بيانات الحراس'!$F$2,ROW($A119),\"\")","v":""},null,null,null,null,null,null,null,null,null,"",null,null,null,null,null,null,null,null,null,null,"",0,0,null,0,0]
[null,"","",0,null,null,null,null,null,null,null,null,null,{"$f":"'بيانات الحراس'!B126","v":0},{"$f":"'بيانات الحراس'!D126","v":0},{"$f":"IF(ROW($A120)<='بيانات الحراس'!$F$2,ROW($A120),\"\")","v":""},null,null,null,null,null,null,null,null,null,"",null,null,null,null,null,null,null,null,null,null,"",0,0,null,0,0]
[null,"","",0,null,null,null,null,null,null,null,null,null,{"$f":"'بيانات الحراس'!B127","v":0},{"$f":"'بيانات الحراس'!D127","v":0},{"$f":"IF(ROW($A121)<='بيانات الحراس'!$F$2,ROW($A121),\"\")","v":""},null,null,null,null,null,null,null,null,null,"",null,null,null,null,null,null,null,null,null,null,"",0,0,null,0,0]
[null,"","",0,null,null,null,null,null,null,null,null,null,{"$f":"'بيانات الحراس'!B128","v":0},{"$f":"'بيانات الحراس'!D128","v":0},{"$f":"IF(ROW($A122)<='بيانات الحراس'!$F$2,ROW($A122),\"\")","v":""},null,null,null,null,null,null,null,null,null,"",null,null,null,null,null,null,null,null,null,null,"",0,0,null,0,0]
[null,"","",0,null,null,null,null,null,null,null,null,null,{"$f":"'بيانات الحراس'!B129","v":0},{"$f":"'بيانات الحراس'!D129","v":0},{"$f":"IF(ROW($A123)<='بيانات الحراس'!$F$2,ROW($A123),\"\")","v":""},null,null,null,null,null,null,null,null,null,"",null,null,null,null,null,null,null,null,null,null,"",0,0,null,0,0]
[null,"","",0,null,null,null,null,null,null,null,null,null,{"$f":"'بيانات الحراس'!B130","v":0},{"$f":"'بيانات الحراس'!D130","v":0},{"$f":"IF(ROW($A124)<='بيانات الحراس'!$F$2,ROW($A124),\"\")","v":""},null,null,null,null,null,null,null,null,null,"",null,null,null,null,null,null,null,null,null,null,"",0,0,null,0,0]
[null,"","",0,null,null,null,null,null,null,null,null,null,{"$f":"'بيانات الحراس'!B131","v":0},{"$f":"'بيانات الحراس'!D131","v":0},{"$f":"IF(ROW($A125)<='بيانات الحراس'!$F$2,ROW($A125),\"\")","v":""},null,null,null,null,null,null,null,null,null,"",null,null,null,null,null,null,null,null,null,null,"",0,0,null,0,0]
[null,"","",0,null,null,null,null,null,null,null,null,null,{"$f":"'بيانات الحراس'!B132","v":0},{"$f":"'بيانات الحراس'!D132","v":0},{"$f":"IF(ROW($A126)<='بيانات الحراس'!$F$2,ROW($A126),\"\")","v":""},null,null,null,null,null,null,null,null,null,"",null,null,null,null,null,null,null,null,null,null,"",0,0,null,0,0]
[null,"","",0,null,null,null,null,null,null,null,null,null,{"$f":"'بيانات الحراس'!B133","v":0},{"$f":"'بيانات الحراس'!D133","v":0},{"$f":"IF(ROW($A127)<='بيانات الحراس'!$F$2,ROW($A127),\"\")","v":""},null,null,null,null,null,null,null,null,null,"",null,null,null,null,null,null,null,null,null,null,"",0,0,null,0,0]
[null,"","",0,null,null,null,null,null,null,null,null,null,{"$f":"'بيانات الحراس'!B134","v":0},{"$f":"'بيانات الحراس'!D134","v":0},{"$f":"IF(ROW($A128)<='بيانات الحراس'!$F$2,ROW($A128),\"\")","v":""},null,null,null,null,null,null,null,null,null,"",null,null,null,null,null,null,null,null,null,null,"",0,0,null,0,0]
[null,"","",0,null,null,null,null,null,null,null,null,null,{"$f":"'بيانات الحراس'!B135","v":0},{"$f":"'بيانات الحراس'!D135","v":0},{"$f":"IF(ROW($A129)<='بيانات الحراس'!$F$2,ROW($A129),\"\")","v":""},null,null,null,null,null,null,null,null,null,"",null,null,null,null,null,null,null,null,null,null,"",0,0,null,0,0]
[null,{"$f":"IF(C138=\"\",\"\",5-C138)","v":""},{"$f":"IF(SUM((COUNTA(M138,L138,K138,J138,I138,H138,F138,E138)/2),AK138,COUNTA(G138))=0,\"\",SUM((COUNTA(M138,L138,K138,J138,I138,H138,F138,E138)/2),AK138,COUNTA(G138)))","v":""},{"$f":"IF(C138=\"\",0,C138)","v":0},null,null,null,null,null,null,null,null,null,{"$f":"'بيانات الحراس'!B136","v":0},{"$f":"'بيانات الحراس'!D136","v":0},{"$f":"IF(ROW($A130)<='بيانات الحراس'!$F$2,ROW($A130),\"\")","v":""},null,null,null,null,null,null,null,null,null,{"$f":"IF(AM138+AL138=0,\"\",AM138+AL138)","v":""},null,null,null,null,null,null,null,null,null,null,{"$f":"IF(AO138+AP138=0,\"\",AO138+AP138)","v":""},{"$f":"COUNTA(Y138,X138,V138,U138,T138,S138,R138,Q138)/2","v":0},{"$f":"COUNTA(W138)","v":0},null,{"$f":"(COUNTA(AJ138,AI138,AG138,AF138,AE138,AD138,AC138,AB138))/2","v":0},{"$f":"COUNTA(AH138)","v":0}]
[null,"","",0,null,null,null,null,null,null,null,null,null,{"$f":"'بيانات الحراس'!B137","v":0},{"$f":"'بيانات الحراس'!D137","v":0},{"$f":"IF(ROW($A131)<='بيانات الحراس'!$F$2,ROW($A131),\"\")","v":""},null,null,null,null,null,null,null,null,null,"",null,null,null,null,null,null,null,null,null,null,"",0,0,null,0,0]
[null,"","",0,null,null,null,null,null,null,null,null,null,{"$f":"'بيانات الحراس'!B138","v":0},{"$f":"'بيانات الحراس'!D138","v":0},{"$f":"IF(ROW($A132)<='بيانات الحراس'!$F$2,ROW($A132),\"\")","v":""},null,null,null,null,null,null,null,null,null,"",null,null,null,null,null,null,null,null,null,null,"",0,0,null,0,0]
[null,"","",0,null,null,null,null,null,null,null,null,null,{"$f":"'بيانات الحراس'!B139","v":0},{"$f":"'بيانات الحراس'!D139","v":0},{"$f":"IF(ROW($A133)<='بيانات الحراس'!$F$2,ROW($A133),\"\")","v":""},null,null,null,null,null,null,null,null,null,"",null,null,null,null,null,null,null,null,null,null,"",0,0,null,0,0]
[null,"","",0,null,null,null,null,null,null,null,null,null,{"$f":"'بيانات الحراس'!B140","v":0},{"$f":"'بيانات الحراس'!D140","v":0},{"$f":"IF(ROW($A134)<='بيانات الحراس'!$F$2,ROW($A134),\"\")","v":""},null,null,null,null,null,null,null,null,null,"",null,null,null,null,null,null,null,null,null,null,"",0,0,null,0,0]
[null,"","",0,null,null,null,null,null,null,null,null,null,{"$f":"'بيانات الحراس'!B141","v":0},{"$f":"'بيانات الحراس'!D141","v":0},{"$f":"IF(ROW($A135)<='بيانات الحراس'!$F$2,ROW($A135),\"\")","v":""},null,null,null,null,null,null,null,null,null,"",null,null,null,null,null,null,null,null,null,null,"",0,0,null,0,0]
[null,"","",0,null,null,null,null,null,null,null,null,null,{"$f":"'بيانات الحراس'!B142","v":0},{"$f":"'بيانات الحراس'!D142","v":0},{"$f":"IF(ROW($A136)<='بيانات الحراس'!$F$2,ROW($A136),\"\")","v":""},null,null,null,null,null,null,null,null,null,"",null,null,null,null,null,null,null,null,null,null,"",0,0,null,0,0]
[null,"","",0,null,null,null,null,null,null,null,null,null,{"$f":"'بيانات الحراس'!B143","v":0},{"$f":"'بيانات الحراس'!D143","v":0},{"$f":"IF(ROW($A137)<='بيانات الحراس'!$F$2,ROW($A137),\"\")","v":""},null,null,null,null,null,null,null,null,null,"",null,null,null,null,null,null,null,null,null,null,"",0,0,null,0,0]
[null,"","",0,null,null,null,null,null,null,null,null,null,{"$f":"'بيانات الحراس'!B144","v":0},{"$f":"'بيانات الحراس'!D144","v":0},{"$f":"IF(ROW($A138)<='بيانات الحراس'!$F$2,ROW($A138),\"\")","v":""},null,null,null,null,null,null,null,null,null,"",null,null,null,null,null,null,null,null,null,null,"",0,0,null,0,0]
[null,"","",0,null,null,null,null,null,null,null,null,null,{"$f":"'بيانات الحراس'!B145","v":0},{"$f":"'بيانات الحراس'!D145","v":0},{"$f":"IF(ROW($A139)<='بيانات الحراس'!$F$2,ROW($A139),\"\")","v":""},null,null,null,null,null,null,null,null,null,"",null,null,null,null,null,null,null,null,null,null,"",0,0,null,0,0]
[null,"","",0,null,null,null,null,null,null,null,null,null,{"$f":"'بيانات الحراس'!B146","v":0},{"$f":"'بيانات الحراس'!D146","v":0},{"$f":"IF(ROW($A140)<='بيانات الحراس'!$F$2,ROW($A140),\"\")","v":""},null,null,null,null,null,null,null,null,null,"",null,null,null,null,null,null,null,null,null,null,"",0,0,null,0,0]
[null,"","",0,null,null,null,null,null,null,null,null,null,{"$f":"'بيانات الحراس'!B147","v":0},{"$f":"'بيانات الحراس'!D147","v":0},{"$f":"IF(ROW($A141)<='بيانات الحراس'!$F$2,ROW($A141),\"\")","v":""},null,null,null,null,null,null,null,null,null,"",null,null,null,null,null,null,null,null,null,null,"",0,0,null,0,0]
[null,"","",0,null,null,null,null,null,null,null,null,null,{"$f":"'بيانات الحراس'!B148","v":0},{"$f":"'بيانات الحراس'!D148","v":0},{"$f":"IF(ROW($A142)<='بيانات الحراس'!$F$2,ROW($A142),\"\")","v":""},null,null,null,null,null,null,null,null,null,"",null,null,null,null,null,null,null,null,null,null,"",0,0,null,0,0]
[null,"","",0,null,null,null,null,null,null,null,null,null,{"$f":"'بيانات الحراس'!B149","v":0},{"$f":"'بيانات الحراس'!D149","v":0},{"$f":"IF(ROW($A143)<='بيانات الحراس'!$F$2,ROW($A143),\"\")","v":""},null,null,null,null,null,null,null,null,null,"",null,null,null,null,null,null,null,null,null,null,"",0,0,null,0,0]
[null,"","",0,null,null,null,null,null,null,null,null,null,{"$f":"'بيانات الحراس'!B150","v":0},{"$f":"'بيانات الحراس'!D150","v":0},{"$f":"IF(ROW($A144)<='بيانات الحراس'!$F$2,ROW($A144),\"\")","v":""},null,null,null,null,null,null,null,null,null,"",null,null,null,null,null,null,null,null,null,null,"",0,0,null,0,0]
[null,"","",0,null,null,null,null,null,null,null,null,null,{"$f":"'بيانات الحراس'!B151","v":0},{"$f":"'بيانات الحراس'!D151","v":0},{"$f":"IF(ROW($A145)<='بيانات الحراس'!$F$2,ROW($A145),\"\")","v":""},null,null,null,null,null,null,null,null,null,"",null,null,null,null,null,null,null,null,null,null,"",0,0,null,0,0]
[null,"","",0,null,null,null,null,null,null,null,null,null,{"$f":"'بيانات الحراس'!B152","v":0},{"$f":"'بيانات الحراس'!D152","v":0},{"$f":"IF(ROW($A146)<='بيانات الحراس'!$F$2,ROW($A146),\"\")","v":""},null,null,null,null,null,null,null,null,null,"",null,null,null,null,null,null,null,null,null,null,"",0,0,null,0,0]
[null,"","",0,null,null,null,null,null,null,null,null,null,{"$f":"'بيانات الحراس'!B153","v":0},{"$f":"'بيانات الحراس'!D153","v":0},{"$f":"IF(ROW($A147)<='بيانات الحراس'!$F$2,ROW($A147),\"\")","v":""},null,null,null,null,null,null,null,null,null,"",null,null,null,null,null,null,null,null,null,null,"",0,0,null,0,0]
[null,"","",0,null,null,null,null,null,null,null,null,null,{"$f":"'بيانات الحراس'!B154","v":0},{"$f":"'بيانات الحراس'!D154","v":0},{"$f":"IF(ROW($A148)<='بيانات الحراس'!$F$2,ROW($A148),\"\")","v":""},null,null,null,null,null,null,null,null,null,"",null,null,null,null,null,null,null,null,null,null,"",0,0,null,0,0]
[null,"","",0,null,null,null,null,null,null,null,null,null,{"$f":"'بيانات الحراس'!B155","v":0},{"$f":"'بيانات الحراس'!D155","v":0},{"$f":"IF(ROW($A149)<='بيانات الحراس'!$F$2,ROW($A149),\"\")","v":""},null,null,null,null,null,null,null,null,null,"",null,null,null,null,null,null,null,null,null,null,"",0,0,null,0,0]
[null,"","",0,null,null,null,null,null,null,null,null,null,{"$f":"'بيانات الحراس'!B156","v":0},{"$f":"'بيانات الحراس'!D156","v":0},{"$f":"IF(ROW($A150)<='بيانات الحراس'!$F$2,ROW($A150),\"\")","v":""},null,null,null,null,null,null,null,null,null,"",null,null,null,null,null,null,null,null,null,null,"",0,0,null,0,0]
[null,"","",0,null,null,null,null,null,null,null,null,null,{"$f":"'بيانات الحراس'!B157","v":0},{"$f":"'بيانات الحراس'!D157","v":0},{"$f":"IF(ROW($A151)<='بيانات الحراس'!$F$2,ROW($A151),\"\")","v":""},null,null,null,null,null,null,null,null,null,"",null,null,null,null,null,null,null,null,null,null,"",0,0,null,0,0]
[null,"","",0,null,null,null,null,null,null,null,null,null,{"$f":"'بيانات الحراس'!B158","v":0},{"$f":"'بيانات الحراس'!D158","v":0},{"$f":"IF(ROW($A152)<='بيانات الحراس'!$F$2,ROW($A152),\"\")","v":""},null,null,null,null,null,null,null,null,null,"",null,null,null,null,null,null,null,null,null,null,"",0,0,null,0,0]
[null,"","",0,null,null,null,null,null,null,null,null,null,{"$f":"'بيانات الحراس'!B159","v":0},{"$f":"'بيانات الحراس'!D159","v":0},{"$f":"IF(ROW($A153)<='بيانات الحراس'!$F$2,ROW($A153),\"\")","v":""},null,null,null,null,null,null,null,null,null,"",null,null,null,null,null,null,null,null,null,null,"",0,0,null,0,0]
[null,"","",0,null,null,null,null,null,null,null,null,null,{"$f":"'بيانات الحراس'!B160","v":0},{"$f":"'بيانات الحراس'!D160","v":0},{"$f":"IF(ROW($A154)<='بيانات الحراس'!$F$2,ROW($A154),\"\")","v":""},null,null,null,null,null,null,null,null,null,"",null,null,null,null,null,null,null,null,null,null,"",0,0,null,0,0]
[null,"","",0,null,null,null,null,null,null,null,null,null,{"$f":"'بيانات الحراس'!B161","v":0},{"$f":"'بيانات الحراس'!D161","v":0},{"$f":"IF(ROW($A155)<='بيانات الحراس'!$F$2,ROW($A155),\"\")","v":""},null,null,null,null,null,null,null,null,null,"",null,null,null,null,null,null,null,null,null,null,"",0,0,null,0,0]
[null,"","",0,null,null,null,null,null,null,null,null,null,{"$f":"'بيانات الحراس'!B162","v":0},{"$f":"'بيانات الحراس'!D162","v":0},{"$f":"IF(ROW($A156)<='بيانات الحراس'!$F$2,ROW($A156),\"\")","v":""},null,null,null,null,null,null,null,null,null,"",null,null,null,null,null,null,null,null,null,null,"",0,0,null,0,0]
[null,"","",0,null,null,null,null,null,null,null,null,null,{"$f":"'بيانات الحراس'!B163","v":0},{"$f":"'بيانات الحراس'!D163","v":0},{"$f":"IF(ROW($A157)<='بيانات الحراس'!$F$2,ROW($A157),\"\")","v":""},null,null,null,null,null,null,null,null,null,"",null,null,null,null,null,null,null,null,null,null,"",0,0,null,0,0]
[null,"","",0,null,null,null,null,null,null,null,null,null,{"$f":"'بيانات الحراس'!B164","v":0},{"$f":"'بيانات الحراس'!D164","v":0},{"$f":"IF(ROW($A158)<='بيانات الحراس'!$F$2,ROW($A158),\"\")","v":""},null,null,null,null,null,null,null,null,null,"",null,null,null,null,null,null,null,null,null,null,"",0,0,null,0,0]
[null,"","",0,null,null,null,null,null,null,null,null,null,{"$f":"'بيانات الحراس'!B165","v":0},{"$f":"'بيانات الحراس'!D165","v":0},{"$f":"IF(ROW($A159)<='بيانات الحراس'!$F$2,ROW($A159),\"\")","v":""},null,null,null,null,null,null,null,null,null,"",null,null,null,null,null,null,null,null,null,null,"",0,0,null,0,0]
[null,"","",0,null,null,null,null,null,null,null,null,null,{"$f":"'بيانات الحراس'!B166","v":0},{"$f":"'بيانات الحراس'!D166","v":0},{"$f":"IF(ROW($A160)<='بيانات الحراس'!$F$2,ROW($A160),\"\")","v":""},null,null,null,null,null,null,null,null,null,"",null,null,null,null,null,null,null,null,null,null,"",0,0,null,0,0]
[null,"","",0,null,null,null,null,null,null,null,null,null,{"$f":"'بيانات الحراس'!B167","v":0},{"$f":"'بيانات الحراس'!D167","v":0},{"$f":"IF(ROW($A161)<='بيانات الحراس'!$F$2,ROW($A161),\"\")","v":""},null,null,null,null,null,null,null,null,null,"",null,null,null,null,null,null,null,null,null,null,"",0,0,null,0,0]
[null,"","",0,null,null,null,null,null,null,null,null,null,{"$f":"'بيانات الحراس'!B168","v":0},{"$f":"'بيانات الحراس'!D168","v":0},{"$f":"IF(ROW($A162)<='بيانات الحراس'!$F$2,ROW($A162),\"\")","v":""},null,null,null,null,null,null,null,null,null,"",null,null,null,null,null,null,null,null,null,null,"",0,0,null,0,0]
[null,"","",0,null,null,null,null,null,null,null,null,null,{"$f":"'بيانات الحراس'!B169","v":0},{"$f":"'بيانات الحراس'!D169","v":0},{"$f":"IF(ROW($A163)<='بيانات الحراس'!$F$2,ROW($A163),\"\")","v":""},null,null,null,null,null,null,null,null,null,"",null,null,null,null,null,null,null,null,null,null,"",0,0,null,0,0]
[null,"","",0,null,null,null,null,null,null,null,null,null,{"$f":"'بيانات الحراس'!B170","v":0},{"$f":"'بيانات الحراس'!D170","v":0},{"$f":"IF(ROW($A164)<='بيانات الحراس'!$F$2,ROW($A164),\"\")","v":""},null,null,null,null,null,null,null,null,null,"",null,null,null,null,null,null,null,null,null,null,"",0,0,null,0,0]
[null,"","",0,null,null,null,null,null,null,null,null,null,{"$f":"'بيانات الحراس'!B171","v":0},{"$f":"'بيانات الحراس'!D171","v":0},{"$f":"IF(ROW($A165)<='بيانات الحراس'!$F$2,ROW($A165),\"\")","v":""},null,null,null,null,null,null,null,null,null,"",null,null,null,null,null,null,null,null,null,null,"",0,0,null,0,0]
[null,"","",0,null,null,null,null,null,null,null,null,null,{"$f":"'بيانات الحراس'!B172","v":0},{"$f":"'بيانات الحراس'!D172","v":0},{"$f":"IF(ROW($A166)<='بيانات الحراس'!$F$2,ROW($A166),\"\")","v":""},null,null,null,null,null,null,null,null,null,"",null,null,null,null,null,null,null,null,null,null,"",0,0,null,0,0]
[null,"","",0,null,null,null,null,null,null,null,null,null,{"$f":"'بيانات الحراس'!B173","v":0},{"$f":"'بيانات الحراس'!D173","v":0},{"$f":"IF(ROW($A167)<='بيانات الحراس'!$F$2,ROW($A167),\"\")","v":""},null,null,null,null,null,null,null,null,null,"",null,null,null,null,null,null,null,null,null,null,"",0,0,null,0,0]
[null,"","",0,null,null,null,null,null,null,null,null,null,{"$f":"'بيانات الحراس'!B174","v":0},{"$f":"'بيانات الحراس'!D174","v":0},{"$f":"IF(ROW($A168)<='بيانات الحراس'!$F$2,ROW($A168),\"\")","v":""},null,null,null,null,null,null,null,null,null,"",null,null,null,null,null,null,null,null,null,null,"",0,0,null,0,0]
[null,"","",0,null,null,null,null,null,null,null,null,null,{"$f":"'بيانات الحراس'!B175","v":0},{"$f":"'بيانات الحراس'!D175","v":0},{"$f":"IF(ROW($A169)<='بيانات الحراس'!$F$2,ROW($A169),\"\")","v":""},null,null,null,null,null,null,null,null,null,"",null,null,null,null,null,null,null,null,null,null,"",0,0,null,0,0]
[null,"","",0,null,null,null,null,null,null,null,null,null,{"$f":"'بيانات الحراس'!B176","v":0},{"$f":"'بيانات الحراس'!D176","v":0},{"$f":"IF(ROW($A170)<='بيانات الحراس'!$F$2,ROW($A170),\"\")","v":""},null,null,null,null,null,null,null,null,null,"",null,null,null,null,null,null,null,null,null,null,"",0,0,null,0,0]
[null,"","",0,null,null,null,null,null,null,null,null,null,{"$f":"'بيانات الحراس'!B177","v":0},{"$f":"'بيانات الحراس'!D177","v":0},{"$f":"IF(ROW($A171)<='بيانات الحراس'!$F$2,ROW($A171),\"\")","v":""},null,null,null,null,null,null,null,null,null,"",null,null,null,null,null,null,null,null,null,null,"",0,0,null,0,0]
[null,"","",0,null,null,null,null,null,null,null,null,null,{"$f":"'بيانات الحراس'!B178","v":0},{"$f":"'بيانات الحراس'!D178","v":0},{"$f":"IF(ROW($A172)<='بيانات الحراس'!$F$2,ROW($A172),\"\")","v":""},null,null,null,null,null,null,null,null,null,"",null,null,null,null,null,null,null,null,null,null,"",0,0,null,0,0]
[null,"","",0,null,null,null,null,null,null,null,null,null,{"$f":"'بيانات الحراس'!B179","v":0},{"$f":"'بيانات الحراس'!D179","v":0},{"$f":"IF(ROW($A173)<='بيانات الحراس'!$F$2,ROW($A173),\"\")","v":""},null,null,null,null,null,null,null,null,null,"",null,null,null,null,null,null,null,null,null,null,"",0,0,null,0,0]
[null,"","",0,null,null,null,null,null,null,null,null,null,{"$f":"'بيانات الحراس'!B180","v":0},{"$f":"'بيانات الحراس'!D180","v":0},{"$f":"IF(ROW($A174)<='بيانات الحراس'!$F$2,ROW($A174),\"\")","v":""},null,null,null,null,null,null,null,null,null,"",null,null,null,null,null,null,null,null,null,null,"",0,0,null,0,0]
[null,"","",0,null,null,null,null,null,null,null,null,null,{"$f":"'بيانات الحراس'!B181","v":0},{"$f":"'بيانات الحراس'!D181","v":0},{"$f":"IF(ROW($A175)<='بيانات الحراس'!$F$2,ROW($A175),\"\")","v":""},null,null,null,null,null,null,null,null,null,"",null,null,null,null,null,null,null,null,null,null,"",0,0,null,0,0]
[null,"","",0,null,null,null,null,null,null,null,null,null,{"$f":"'بيانات الحراس'!B182","v":0},{"$f":"'بيانات الحراس'!D182","v":0},{"$f":"IF(ROW($A176)<='بيانات الحراس'!$F$2,ROW($A176),\"\")","v":""},null,null,null,null,null,null,null,null,null,"",null,null,null,null,null,null,null,null,null,null,"",0,0,null,0,0]
[null,"","",0,null,null,null,null,null,null,null,null,null,{"$f":"'بيانات الحراس'!B183","v":0},{"$f":"'بيانات الحراس'!D183","v":0},{"$f":"IF(ROW($A177)<='بيانات الحراس'!$F$2,ROW($A177),\"\")","v":""},null,null,null,null,null,null,null,null,null,"",null,null,null,null,null,null,null,null,null,null,"",0,0,null,0,0]
[null,"","",0,null,null,null,null,null,null,null,null,null,{"$f":"'بيانات الحراس'!B184","v":0},{"$f":"'بيانات الحراس'!D184","v":0},{"$f":"IF(ROW($A178)<='بيانات الحراس'!$F$2,ROW($A178),\"\")","v":""},null,null,null,null,null,null,null,null,null,"",null,null,null,null,null,null,null,null,null,null,"",0,0,null,0,0]
[null,"","",0,null,null,null,null,null,null,null,null,null,{"$f":"'بيانات الحراس'!B185","v":0},{"$f":"'بيانات الحراس'!D185","v":0},{"$f":"IF(ROW($A179)<='بيانات الحراس'!$F$2,ROW($A179),\"\")","v":""},null,null,null,null,null,null,null,null,null,"",null,null,null,null,null,null,null,null,null,null,"",0,0,null,0,0]
[null,"","",0,null,null,null,null,null,null,null,null,null,{"$f":"'بيانات الحراس'!B186","v":0},{"$f":"'بيانات الحراس'!D186","v":0},{"$f":"IF(ROW($A180)<='بيانات الحراس'!$F$2,ROW($A180),\"\")","v":""},null,null,null,null,null,null,null,null,null,"",null,null,null,null,null,null,null,null,null,null,"",0,0,null,0,0]
[null,"","",0,null,null,null,null,null,null,null,null,null,{"$f":"'بيانات الحراس'!B187","v":0},{"$f":"'بيانات الحراس'!D187","v":0},{"$f":"IF(ROW($A181)<='بيانات الحراس'!$F$2,ROW($A181),\"\")","v":""},null,null,null,null,null,null,null,null,null,"",null,null,null,null,null,null,null,null,null,null,"",0,0,null,0,0]
[null,"","",0,null,null,null,null,null,null,null,null,null,{"$f":"'بيانات الحراس'!B188","v":0},{"$f":"'بيانات الحراس'!D188","v":0},{"$f":"IF(ROW($A182)<='بيانات الحراس'!$F$2,ROW($A182),\"\")","v":""},null,null,null,null,null,null,null,null,null,"",null,null,null,null,null,null,null,null,null,null,"",0,0,null,0,0]
[null,"","",0,null,null,null,null,null,null,null,null,null,{"$f":"'بيانات الحراس'!B189","v":0},{"$f":"'بيانات الحراس'!D189","v":0},{"$f":"IF(ROW($A183)<='بيانات الحراس'!$F$2,ROW($A183),\"\")","v":""},null,null,null,null,null,null,null,null,null,"",null,null,null,null,null,null,null,null,null,null,"",0,0,null,0,0]
[null,"","",0,null,null,null,null,null,null,null,null,null,{"$f":"'بيانات الحراس'!B190","v":0},{"$f":"'بيانات الحراس'!D190","v":0},{"$f":"IF(ROW($A184)<='بيانات الحراس'!$F$2,ROW($A184),\"\")","v":""},null,null,null,null,null,null,null,null,null,"",null,null,null,null,null,null,null,null,null,null,"",0,0,null,0,0]
[null,"","",0,null,null,null,null,null,null,null,null,null,{"$f":"'بيانات الحراس'!B191","v":0},{"$f":"'بيانات الحراس'!D191","v":0},{"$f":"IF(ROW($A185)<='بيانات الحراس'!$F$2,ROW($A185),\"\")","v":""},null,null,null,null,null,null,null,null,null,"",null,null,null,null,null,null,null,null,null,null,"",0,0,null,0,0]
[null,"","",0,null,null,null,null,null,null,null,null,null,{"$f":"'بيانات الحراس'!B192","v":0},{"$f":"'بيانات الحراس'!D192","v":0},{"$f":"IF(ROW($A186)<='بيانات الحراس'!$F$2,ROW($A186),\"\")","v":""},null,null,null,null,null,null,null,null,null,"",null,null,null,null,null,null,null,null,null,null,"",0,0,null,0,0]
[null,"","",0,null,null,null,null,null,null,null,null,null,{"$f":"'بيانات الحراس'!B193","v":0},{"$f":"'بيانات الحراس'!D193","v":0},{"$f":"IF(ROW($A187)<='بيانات الحراس'!$F$2,ROW($A187),\"\")","v":""},null,null,null,null,null,null,null,null,null,"",null,null,null,null,null,null,null,null,null,null,"",0,0,null,0,0]
[null,"","",0,null,null,null,null,null,null,null,null,null,{"$f":"'بيانات الحراس'!B194","v":0},{"$f":"'بيانات الحراس'!D194","v":0},{"$f":"IF(ROW($A188)<='بيانات الحراس'!$F$2,ROW($A188),\"\")","v":""},null,null,null,null,null,null,null,null,null,"",null,null,null,null,null,null,null,null,null,null,"",0,0,null,0,0]
[null,"","",0,null,null,null,null,null,null,null,null,null,{"$f":"'بيانات الحراس'!B195","v":0},{"$f":"'بيانات الحراس'!D195","v":0},{"$f":"IF(ROW($A189)<='بيانات الحراس'!$F$2,ROW($A189),\"\")","v":""},null,null,null,null,null,null,null,null,null,"",null,null,null,null,null,null,null,null,null,null,"",0,0,null,0,0]
[null,"","",0,null,null,null,null,null,null,null,null,null,{"$f":"'بيانات الحراس'!B196","v":0},{"$f":"'بيانات الحراس'!D196","v":0},{"$f":"IF(ROW($A190)<='بيانات الحراس'!$F$2,ROW($A190),\"\")","v":""},null,null,null,null,null,null,null,null,null,"",null,null,null,null,null,null,null,null,null,null,"",0,0,null,0,0]
[null,"","",0,null,null,null,null,null,null,null,null,null,{"$f":"'بيانات الحراس'!B197","v":0},{"$f":"'بيانات الحراس'!D197","v":0},{"$f":"IF(ROW($A191)<='بيانات الحراس'!$F$2,ROW($A191),\"\")","v":""},null,null,null,null,null,null,null,null,null,"",null,null,null,null,null,null,null,null,null,null,"",0,0,null,0,0]
[null,"","",0,null,null,null,null,null,null,null,null,null,{"$f":"'بيانات الحراس'!B198","v":0},{"$f":"'بيانات الحراس'!D198","v":0},{"$f":"IF(ROW($A192)<='بيانات الحراس'!$F$2,ROW($A192),\"\")","v":""},null,null,null,null,null,null,null,null,null,"",null,null,null,null,null,null,null,null,null,null,"",0,0,null,0,0]
[null,"","",0,null,null,null,null,null,null,null,null,null,{"$f":"'بيانات الحراس'!B199","v":0},{"$f":"'بيانات الحراس'!D199","v":0},{"$f":"IF(ROW($A193)<='بيانات الحراس'!$F$2,ROW($A193),\"\")","v":""},null,null,null,null,null,null,null,null,null,"",null,null,null,null,null,null,null,null,null,null,"",0,0,null,0,0]
[null,{"$f":"IF(C202=\"\",\"\",5-C202)","v":""},{"$f":"IF(SUM((COUNTA(M202,L202,K202,J202,I202,H202,F202,E202)/2),AK202,COUNTA(G202))=0,\"\",SUM((COUNTA(M202,L202,K202,J202,I202,H202,F202,E202)/2),AK202,COUNTA(G202)))","v":""},{"$f":"IF(C202=\"\",0,C202)","v":0},null,null,null,null,null,null,null,null,null,{"$f":"'بيانات الحراس'!B200","v":0},{"$f":"'بيانات الحراس'!D200","v":0},{"$f":"IF(ROW($A194)<='بيانات الحراس'!$F$2,ROW($A194),\"\")","v":""},null,null,null,null,null,null,null,null,null,{"$f":"IF(AM202+AL202=0,\"\",AM202+AL202)","v":""},null,null,null,null,null,null,null,null,null,null,{"$f":"IF(AO202+AP202=0,\"\",AO202+AP202)","v":""},{"$f":"COUNTA(Y202,X202,V202,U202,T202,S202,R202,Q202)/2","v":0},{"$f":"COUNTA(W202)","v":0},null,{"$f":"(COUNTA(AJ202,AI202,AG202,AF202,AE202,AD202,AC202,AB202))/2","v":0},{"$f":"COUNTA(AH202)","v":0}]
[null,"","",0,null,null,null,null,null,null,null,null,null,{"$f":"'بيانات الحراس'!B201","v":0},{"$f":"'بيانات الحراس'!D201","v":0},{"$f":"IF(ROW($A195)<='بيانات الحراس'!$F$2,ROW($A195),\"\")","v":""},null,null,null,null,null,null,null,null,null,"",null,null,null,null,null,null,null,null,null,null,"",0,0,null,0,0]
[null,"","",0,null,null,null,null,null,null,null,null,null,{"$f":"'بيانات الحراس'!B202","v":0},{"$f":"'بيانات الحراس'!D202","v":0},{"$f":"IF(ROW($A196)<='بيانات الحراس'!$F$2,ROW($A196),\"\")","v":""},null,null,null,null,null,null,null,null,null,"",null,null,null,null,null,null,null,null,null,null,"",0,0,null,0,0]
[null,"","",0,null,null,null,null,null,null,null,null,null,{"$f":"'بيانات الحراس'!B203","v":0},{"$f":"'بيانات الحراس'!D203","v":0},{"$f":"IF(ROW($A197)<='بيانات الحراس'!$F$2,ROW($A197),\"\")","v":""},null,null,null,null,null,null,null,null,null,"",null,null,null,null,null,null,null,null,null,null,"",0,0,null,0,0]
[null,"","",0,null,null,null,null,null,null,null,null,null,{"$f":"'بيانات الحراس'!B204","v":0},{"$f":"'بيانات الحراس'!D204","v":0},{"$f":"IF(ROW($A198)<='بيانات الحراس'!$F$2,ROW($A198),\"\")","v":""},null,null,null,null,null,null,null,null,null,"",null,null,null,null,null,null,null,null,null,null,"",0,0,null,0,0]
[null,"","",0,null,null,null,null,null,null,null,null,null,{"$f":"'بيانات الحراس'!B205","v":0},{"$f":"'بيانات الحراس'!D205","v":0},{"$f":"IF(ROW($A199)<='بيانات الحراس'!$F$2,ROW($A199),\"\")","v":""},null,null,null,null,null,null,null,null,null,"",null,null,null,null,null,null,null,null,null,null,"",0,0,null,0,0]
[null,"","",0,null,null,null,null,null,null,null,null,null,{"$f":"'بيانات الحراس'!B206","v":0},{"$f":"'بيانات الحراس'!D206","v":0},{"$f":"IF(ROW($A200)<='بيانات الحراس'!$F$2,ROW($A200),\"\")","v":""},null,null,null,null,null,null,null,null,null,"",null,null,null,null,null,null,null,null,null,null,"",0,0,null,0,0]
[null,"","",0,null,null,null,null,null,null,null,null,null,{"$f":"'بيانات الحراس'!B207","v":0},{"$f":"'بيانات الحراس'!D207","v":0},{"$f":"IF(ROW($A201)<='بيانات الحراس'!$F$2,ROW($A201),\"\")","v":""},null,null,null,null,null,null,null,null,null,"",null,null,null,null,null,null,null,null,null,null,"",0,0,null,0,0]
[null,"","",0,null,null,null,null,null,null,null,null,null,{"$f":"'بيانات الحراس'!B208","v":0},{"$f":"'بيانات الحراس'!D208","v":0},{"$f":"IF(ROW($A202)<='بيانات الحراس'!$F$2,ROW($A202),\"\")","v":""},null,null,null,null,null,null,null,null,null,"",null,null,null,null,null,null,null,null,null,null,"",0,0,null,0,0]
[null,"","",0,null,null,null,null,null,null,null,null,null,{"$f":"'بيانات الحراس'!B209","v":0},{"$f":"'بيانات الحراس'!D209","v":0},{"$f":"IF(ROW($A203)<='بيانات الحراس'!$F$2,ROW($A203),\"\")","v":""},null,null,null,null,null,null,null,null,null,"",null,null,null,null,null,null,null,null,null,null,"",0,0,null,0,0]
[null,"","",0,null,null,null,null,null,null,null,null,null,{"$f":"'بيانات الحراس'!B210","v":0},{"$f":"'بيانات الحراس'!D210","v":0},{"$f":"IF(ROW($A204)<='بيانات الحراس'!$F$2,ROW($A204),\"\")","v":""},null,null,null,null,null,null,null,null,null,"",null,null,null,null,null,null,null,null,null,null,"",0,0,null,0,0]
[null,"","",0,null,null,null,null,null,null,null,null,null,{"$f":"'بيانات الحراس'!B211","v":0},{"$f":"'بيانات الحراس'!D211","v":0},{"$f":"IF(ROW($A205)<='بيانات الحراس'!$F$2,ROW($A205),\"\")","v":""},null,null,null,null,null,null,null,null,null,"",null,null,null,null,null,null,null,null,null,null,"",0,0,null,0,0]
[null,"","",0,null,null,null,null,null,null,null,null,null,{"$f":"'بيانات الحراس'!B212","v":0},{"$f":"'بيانات الحراس'!D212","v":0},{"$f":"IF(ROW($A206)<='بيانات الحراس'!$F$2,ROW($A206),\"\")","v":""},null,null,null,null,null,null,null,null,null,"",null,null,null,null,null,null,null,null,null,null,"",0,0,null,0,0]
[null,"","",0,null,null,null,null,null,null,null,null,null,{"$f":"'بيانات الحراس'!B213","v":0},{"$f":"'بيانات الحراس'!D213","v":0},{"$f":"IF(ROW($A207)<='بيانات الحراس'!$F$2,ROW($A207),\"\")","v":""},null,null,null,null,null,null,null,null,null,"",null,null,null,null,null,null,null,null,null,null,"",0,0,null,0,0]
[null,"","",0,null,null,null,null,null,null,null,null,null,{"$f":"'بيانات الحراس'!B214","v":0},{"$f":"'بيانات الحراس'!D214","v":0},{"$f":"IF(ROW($A208)<='بيانات الحراس'!$F$2,ROW($A208),\"\")","v":""},null,null,null,null,null,null,null,null,null,"",null,null,null,null,null,null,null,null,null,null,"",0,0,null,0,0]
[null,"","",0,null,null,null,null,null,null,null,null,null,{"$f":"'بيانات الحراس'!B215","v":0},{"$f":"'بيانات الحراس'!D215","v":0},{"$f":"IF(ROW($A209)<='بيانات الحراس'!$F$2,ROW($A209),\"\")","v":""},null,null,null,null,null,null,null,null,null,"",null,null,null,null,null,null,null,null,null,null,"",0,0,null,0,0]
[null,"","",0,null,null,null,null,null,null,null,null,null,{"$f":"'بيانات الحراس'!B216","v":0},{"$f":"'بيانات الحراس'!D216","v":0},{"$f":"IF(ROW($A210)<='بيانات الحراس'!$F$2,ROW($A210),\"\")","v":""},null,null,null,null,null,null,null,null,null,"",null,null,null,null,null,null,null,null,null,null,"",0,0,null,0,0]
[null,"","",0,null,null,null,null,null,null,null,null,null,{"$f":"'بيانات الحراس'!B217","v":0},{"$f":"'بيانات الحراس'!D217","v":0},{"$f":"IF(ROW($A211)<='بيانات الحراس'!$F$2,ROW($A211),\"\")","v":""},null,null,null,null,null,null,null,null,null,"",null,null,null,null,null,null,null,null,null,null,"",0,0,null,0,0]
[null,"","",0,null,null,null,null,null,null,null,null,null,{"$f":"'بيانات الحراس'!B218","v":0},{"$f":"'بيانات الحراس'!D218","v":0},{"$f":"IF(ROW($A212)<='بيانات الحراس'!$F$2,ROW($A212),\"\")","v":""},null,null,null,null,null,null,null,null,null,"",null,null,null,null,null,null,null,null,null,null,"",0,0,null,0,0]
[null,"","",0,null,null,null,null,null,null,null,null,null,{"$f":"'بيانات الحراس'!B219","v":0},{"$f":"'بيانات الحراس'!D219","v":0},{"$f":"IF(ROW($A213)<='بيانات الحراس'!$F$2,ROW($A213),\"\")","v":""},null,null,null,null,null,null,null,null,null,"",null,null,null,null,null,null,null,null,null,null,"",0,0,null,0,0]
[null,"","",0,null,null,null,null,null,null,null,null,null,{"$f":"'بيانات الحراس'!B220","v":0},{"$f":"'بيانات الحراس'!D220","v":0},{"$f":"IF(ROW($A214)<='بيانات الحراس'!$F$2,ROW($A214),\"\")","v":""},null,null,null,null,null,null,null,null,null,"",null,null,null,null,null,null,null,null,null,null,"",0,0,null,0,0]
[null,"","",0,null,null,null,null,null,null,null,null,null,{"$f":"'بيانات الحراس'!B221","v":0},{"$f":"'بيانات الحراس'!D221","v":0},{"$f":"IF(ROW($A215)<='بيانات الحراس'!$F$2,ROW($A215),\"\")","v":""},null,null,null,null,null,null,null,null,null,"",null,null,null,null,null,null,null,null,null,null,"",0,0,null,0,0]
[null,"","",0,null,null,null,null,null,null,null,null,null,{"$f":"'بيانات الحراس'!B222","v":0},{"$f":"'بيانات الحراس'!D222","v":0},{"$f":"IF(ROW($A216)<='بيانات الحراس'!$F$2,ROW($A216),\"\")","v":""},null,null,null,null,null,null,null,null,null,"",null,null,null,null,null,null,null,null,null,null,"",0,0,null,0,0]
[null,"","",0,null,null,null,null,null,null,null,null,null,{"$f":"'بيانات الحراس'!B223","v":0},{"$f":"'بيانات الحراس'!D223","v":0},{"$f":"IF(ROW($A217)<='بيانات الحراس'!$F$2,ROW($A217),\"\")","v":""},null,null,null,null,null,null,null,null,null,"",null,null,null,null,null,null,null,null,null,null,"",0,0,null,0,0]
[null,"","",0,null,null,null,null,null,null,null,null,null,{"$f":"'بيانات الحراس'!B224","v":0},{"$f":"'بيانات الحراس'!D224","v":0},{"$f":"IF(ROW($A218)<='بيانات الحراس'!$F$2,ROW($A218),\"\")","v":""},null,null,null,null,null,null,null,null,null,"",null,null,null,null,null,null,null,null,null,null,"",0,0,null,0,0]
[null,"","",0,null,null,null,null,null,null,null,null,null,{"$f":"'بيانات الحراس'!B225","v":0},{"$f":"'بيانات الحراس'!D225","v":0},{"$f":"IF(ROW($A219)<='بيانات الحراس'!$F$2,ROW($A219),\"\")","v":""},null,null,null,null,null,null,null,null,null,"",null,null,null,null,null,null,null,null,null,null,"",0,0,null,0,0]
[null,"","",0,null,null,null,null,null,null,null,null,null,{"$f":"'بيانات الحراس'!B226","v":0},{"$f":"'بيانات الحراس'!D226","v":0},{"$f":"IF(ROW($A220)<='بيانات الحراس'!$F$2,ROW($A220),\"\")","v":""},null,null,null,null,null,null,null,null,null,"",null,null,null,null,null,null,null,null,null,null,"",0,0,null,0,0]
[null,"","",0,null,null,null,null,null,null,null,null,null,{"$f":"'بيانات الحراس'!B227","v":0},{"$f":"'بيانات الحراس'!D227","v":0},{"$f":"IF(ROW($A221)<='بيانات الحراس'!$F$2,ROW($A221),\"\")","v":""},null,null,null,null,null,null,null,null,null,"",null,null,null,null,null,null,null,null,null,null,"",0,0,null,0,0]
[null,"","",0,null,null,null,null,null,null,null,null,null,{"$f":"'بيانات الحراس'!B228","v":0},{"$f":"'بيانات الحراس'!D228","v":0},{"$f":"IF(ROW($A222)<='بيانات الحراس'!$F$2,ROW($A222),\"\")","v":""},null,null,null,null,null,null,null,null,null,"",null,null,null,null,null,null,null,null,null,null,"",0,0,null,0,0]
[null,"","",0,null,null,null,null,null,null,null,null,null,{"$f":"'بيانات الحراس'!B229","v":0},{"$f":"'بيانات الحراس'!D229","v":0},{"$f":"IF(ROW($A223)<='بيانات الحراس'!$F$2,ROW($A223),\"\")","v":""},null,null,null,null,null,null,null,null,null,"",null,null,null,null,null,null,null,null,null,null,"",0,0,null,0,0]
[null,"","",0,null,null,null,null,null,null,null,null,null,{"$f":"'بيانات الحراس'!B230","v":0},{"$f":"'بيانات الحراس'!D230","v":0},{"$f":"IF(ROW($A224)<='بيانات الحراس'!$F$2,ROW($A224),\"\")","v":""},null,null,null,null,null,null,null,null,null,"",null,null,null,null,null,null,null,null,null,null,"",0,0,null,0,0]
[null,"","",0,null,null,null,null,null,null,null,null,null,{"$f":"'بيانات الحراس'!B231","v":0},{"$f":"'بيانات الحراس'!D231","v":0},{"$f":"IF(ROW($A225)<='بيانات الحراس'!$F$2,ROW($A225),\"\")","v":""},null,null,null,null,null,null,null,null,null,"",null,null,null,null,null,null,null,null,null,null,"",0,0,null,0,0]
[null,"","",0,null,null,null,null,null,null,null,null,null,{"$f":"'بيانات الحراس'!B232","v":0},{"$f":"'بيانات الحراس'!D232","v":0},{"$f":"IF(ROW($A226)<='بيانات الحراس'!$F$2,ROW($A226),\"\")","v":""},null,null,null,null,null,null,null,null,null,"",null,null,null,null,null,null,null,null,null,null,"",0,0,null,0,0]
[null,"","",0,null,null,null,null,null,null,null,null,null,{"$f":"'بيانات الحراس'!B233","v":0},{"$f":"'بيانات الحراس'!D233","v":0},{"$f":"IF(ROW($A227)<='بيانات الحراس'!$F$2,ROW($A227),\"\")","v":""},null,null,null,null,null,null,null,null,null,"",null,null,null,null,null,null,null,null,null,null,"",0,0,null,0,0]
[null,"","",0,null,null,null,null,null,null,null,null,null,{"$f":"'بيانات الحراس'!B234","v":0},{"$f":"'بيانات الحراس'!D234","v":0},{"$f":"IF(ROW($A228)<='بيانات الحراس'!$F$2,ROW($A228),\"\")","v":""},null,null,null,null,null,null,null,null,null,"",null,null,null,null,null,null,null,null,null,null,"",0,0,null,0,0]
[null,"","",0,null,null,null,null,null,null,null,null,null,{"$f":"'بيانات الحراس'!B235","v":0},{"$f":"'بيانات الحراس'!D235","v":0},{"$f":"IF(ROW($A229)<='بيانات الحراس'!$F$2,ROW($A229),\"\")","v":""},null,null,null,null,null,null,null,null,null,"",null,null,null,null,null,null,null,null,null,null,"",0,0,null,0,0]
[null,"","",0,null,null,null,null,null,null,null,null,null,{"$f":"'بيانات الحراس'!B236","v":0},{"$f":"'بيانات الحراس'!D236","v":0},{"$f":"IF(ROW($A230)<='بيانات الحراس'!$F$2,ROW($A230),\"\")","v":""},null,null,null,null,null,null,null,null,null,"",null,null,null,null,null,null,null,null,null,null,"",0,0,null,0,0]
[null,"","",0,null,null,null,null,null,null,null,null,null,{"$f":"'بيانات الحراس'!B237","v":0},{"$f":"'بيانات الحراس'!D237","v":0},{"$f":"IF(ROW($A231)<='بيانات الحراس'!$F$2,ROW($A231),\"\")","v":""},null,null,null,null,null,null,null,null,null,"",null,null,null,null,null,null,null,null,null,null,"",0,0,null,0,0]
[null,"","",0,null,null,null,null,null,null,null,null,null,{"$f":"'بيانات الحراس'!B238","v":0},{"$f":"'بيانات الحراس'!D238","v":0},{"$f":"IF(ROW($A232)<='بيانات الحراس'!$F$2,ROW($A232),\"\")","v":""},null,null,null,null,null,null,null,null,null,"",null,null,null,null,null,null,null,null,null,null,"",0,0,null,0,0]
[null,"","",0,null,null,null,null,null,null,null,null,null,{"$f":"'بيانات الحراس'!B239","v":0},{"$f":"'بيانات الحراس'!D239","v":0},{"$f":"IF(ROW($A233)<='بيانات الحراس'!$F$2,ROW($A233),\"\")","v":""},null,null,null,null,null,null,null,null,null,"",null,null,null,null,null,null,null,null,null,null,"",0,0,null,0,0]
[null,"","",0,null,null,null,null,null,null,null,null,null,{"$f":"'بيانات الحراس'!B240","v":0},{"$f":"'بيانات الحراس'!D240","v":0},{"$f":"IF(ROW($A234)<='بيانات الحراس'!$F$2,ROW($A234),\"\")","v":""},null,null,null,null,null,null,null,null,null,"",null,null,null,null,null,null,null,null,null,null,"",0,0,null,0,0]
[null,"","",0,null,null,null,null,null,null,null,null,null,{"$f":"'بيانات الحراس'!B241","v":0},{"$f":"'بيانات الحراس'!D241","v":0},{"$f":"IF(ROW($A235)<='بيانات الحراس'!$F$2,ROW($A235),\"\")","v":""},null,null,null,null,null,null,null,null,null,"",null,null,null,null,null,null,null,null,null,null,"",0,0,null,0,0]
[null,"","",0,null,null,null,null,null,null,null,null,null,{"$f":"'بيانات الحراس'!B242","v":0},{"$f":"'بيانات الحراس'!D242","v":0},{"$f":"IF(ROW($A236)<='بيانات الحراس'!$F$2,ROW($A236),\"\")","v":""},null,null,null,null,null,null,null,null,null,"",null,null,null,null,null,null,null,null,null,null,"",0,0,null,0,0]
[null,"","",0,null,null,null,null,null,null,null,null,null,{"$f":"'بيانات الحراس'!B243","v":0},{"$f":"'بيانات الحراس'!D243","v":0},{"$f":"IF(ROW($A237)<='بيانات الحراس'!$F$2,ROW($A237),\"\")","v":""},null,null,null,null,null,null,null,null,null,"",null,null,null,null,null,null,null,null,null,null,"",0,0,null,0,0]
[null,"","",0,null,null,null,null,null,null,null,null,null,{"$f":"'بيانات الحراس'!B244","v":0},{"$f":"'بيانات الحراس'!D244","v":0},{"$f":"IF(ROW($A238)<='بيانات الحراس'!$F$2,ROW($A238),\"\")","v":""},null,null,null,null,null,null,null,null,null,"",null,null,null,null,null,null,null,null,null,null,"",0,0,null,0,0]
[null,"","",0,null,null,null,null,null,null,null,null,null,{"$f":"'بيانات الحراس'!B245","v":0},{"$f":"'بيانات الحراس'!D245","v":0},{"$f":"IF(ROW($A239)<='بيانات الحراس'!$F$2,ROW($A239),\"\")","v":""},null,null,null,null,null,null,null,null,null,"",null,null,null,null,null,null,null,null,null,null,"",0,0,null,0,0]
[null,"","",0,null,null,null,null,null,null,null,null,null,{"$f":"'بيانات الحراس'!B246","v":0},{"$f":"'بيانات الحراس'!D246","v":0},{"$f":"IF(ROW($A240)<='بيانات الحراس'!$F$2,ROW($A240),\"\")","v":""},null,null,null,null,null,null,null,null,null,"",null,null,null,null,null,null,null,null,null,null,"",0,0,null,0,0]
[null,"","",0,null,null,null,null,null,null,null,null,null,{"$f":"'بيانات الحراس'!B247","v":0},{"$f":"'بيانات الحراس'!D247","v":0},{"$f":"IF(ROW($A241)<='بيانات الحراس'!$F$2,ROW($A241),\"\")","v":""},null,null,null,null,null,null,null,null,null,"",null,null,null,null,null,null,null,null,null,null,"",0,0,null,0,0]
[null,"","",0,null,null,null,null,null,null,null,null,null,{"$f":"'بيانات الحراس'!B248","v":0},{"$f":"'بيانات الحراس'!D248","v":0},{"$f":"IF(ROW($A242)<='بيانات الحراس'!$F$2,ROW($A242),\"\")","v":""},null,null,null,null,null,null,null,null,null,"",null,null,null,null,null,null,null,null,null,null,"",0,0,null,0,0]
[null,"","",0,null,null,null,null,null,null,null,null,null,{"$f":"'بيانات الحراس'!B249","v":0},{"$f":"'بيانات الحراس'!D249","v":0},{"$f":"IF(ROW($A243)<='بيانات الحراس'!$F$2,ROW($A243),\"\")","v":""},null,null,null,null,null,null,null,null,null,"",null,null,null,null,null,null,null,null,null,null,"",0,0,null,0,0]
[null,"","",0,null,null,null,null,null,null,null,null,null,{"$f":"'بيانات الحراس'!B250","v":0},{"$f":"'بيانات الحراس'!D250","v":0},{"$f":"IF(ROW($A244)<='بيانات الحراس'!$F$2,ROW($A244),\"\")","v":""},null,null,null,null,null,null,null,null,null,"",null,null,null,null,null,null,null,null,null,null,"",0,0,null,0,0]
[null,"","",0,null,null,null,null,null,null,null,null,null,{"$f":"'بيانات الحراس'!B251","v":0},{"$f":"'بيانات الحراس'!D251","v":0},{"$f":"IF(ROW($A245)<='بيانات الحراس'!$F$2,ROW($A245),\"\")","v":""},null,null,null,null,null,null,null,null,null,"",null,null,null,null,null,null,null,null,null,null,"",0,0,null,0,0]
[null,"","",0,null,null,null,null,null,null,null,null,null,{"$f":"'بيانات الحراس'!B252","v":0},{"$f":"'بيانات الحراس'!D252","v":0},{"$f":"IF(ROW($A246)<='بيانات الحراس'!$F$2,ROW($A246),\"\")","v":""},null,null,null,null,null,null,null,null,null,"",null,null,null,null,null,null,null,null,null,null,"",0,0,null,0,0]
[null,"","",0,null,null,null,null,null,null,null,null,null,{"$f":"'بيانات الحراس'!B253","v":0},{"$f":"'بيانات الحراس'!D253","v":0},{"$f":"IF(ROW($A247)<='بيانات الحراس'!$F$2,ROW($A247),\"\")","v":""},null,null,null,null,null,null,null,null,null,"",null,null,null,null,null,null,null,null,null,null,"",0,0,null,0,0]
[null,"","",0,null,null,null,null,null,null,null,null,null,{"$f":"'بيانات الحراس'!B254","v":0},{"$f":"'بيانات الحراس'!D254","v":0},{"$f":"IF(ROW($A248)<='بيانات الحراس'!$F$2,ROW($A248),\"\")","v":""},null,null,null,null,null,null,null,null,null,"",null,null,null,null,null,null,null,null,null,null,"",0,0,null,0,0]
[null,"","",0,null,null,null,null,null,null,null,null,null,{"$f":"'بيانات الحراس'!B255","v":0},{"$f":"'بيانات الحراس'!D255","v":0},{"$f":"IF(ROW($A249)<='بيانات الحراس'!$F$2,ROW($A249),\"\")","v":""},null,null,null,null,null,null,null,null,null,"",null,null,null,null,null,null,null,null,null,null,"",0,0,null,0,0]
[null,"","",0,null,null,null,null,null,null,null,null,null,{"$f":"'بيانات الحراس'!B256","v":0},{"$f":"'بيانات الحراس'!D256","v":0},{"$f":"IF(ROW($A250)<='بيانات الحراس'!$F$2,ROW($A250),\"\")","v":""},null,null,null,null,null,null,null,null,null,"",null,null,null,null,null,null,null,null,null,null,"",0,0,null,0,0]
[null,"","",0,null,null,null,null,null,null,null,null,null,{"$f":"'بيانات الحراس'!B257","v":0},{"$f":"'بيانات الحراس'!D257","v":0},{"$f":"IF(ROW($A251)<='بيانات الحراس'!$F$2,ROW($A251),\"\")","v":""},null,null,null,null,null,null,null,null,null,"",null,null,null,null,null,null,null,null,null,null,"",0,0,null,0,0]
[null,"","",0,null,null,null,null,null,null,null,null,null,{"$f":"'بيانات الحراس'!B258","v":0},{"$f":"'بيانات الحراس'!D258","v":0},{"$f":"IF(ROW($A252)<='بيانات الحراس'!$F$2,ROW($A252),\"\")","v":""},null,null,null,null,null,null,null,null,null,"",null,null,null,null,null,null,null,null,null,null,"",0,0,null,0,0]
[null,"","",0,null,null,null,null,null,null,null,null,null,{"$f":"'بيانات الحراس'!B259","v":0},{"$f":"'بيانات الحراس'!D259","v":0},{"$f":"IF(ROW($A253)<='بيانات الحراس'!$F$2,ROW($A253),\"\")","v":""},null,null,null,null,null,null,null,null,null,"",null,null,null,null,null,null,null,null,null,null,"",0,0,null,0,0]
[null,"","",0,null,null,null,null,null,null,null,null,null,{"$f":"'بيانات الحراس'!B260","v":0},{"$f":"'بيانات الحراس'!D260","v":0},{"$f":"IF(ROW($A254)<='بيانات الحراس'!$F$2,ROW($A254),\"\")","v":""},null,null,null,null,null,null,null,null,null,"",null,null,null,null,null,null,null,null,null,null,"",0,0,null,0,0]
[null,"","",0,null,null,null,null,null,null,null,null,null,{"$f":"'بيانات الحراس'!B261","v":0},{"$f":"'بيانات الحراس'!D261","v":0},{"$f":"IF(ROW($A255)<='بيانات الحراس'!$F$2,ROW($A255),\"\")","v":""},null,null,null,null,null,null,null,null,null,"",null,null,null,null,null,null,null,null,null,null,"",0,0,null,0,0]
[null,"","",0,null,null,null,null,null,null,null,null,null,{"$f":"'بيانات الحراس'!B262","v":0},{"$f":"'بيانات الحراس'!D262","v":0},{"$f":"IF(ROW($A256)<='بيانات الحراس'!$F$2,ROW($A256),\"\")","v":""},null,null,null,null,null,null,null,null,null,"",null,null,null,null,null,null,null,null,null,null,"",0,0,null,0,0]
[null,"","",0,null,null,null,null,null,null,null,null,null,{"$f":"'بيانات الحراس'!B263","v":0},{"$f":"'بيانات الحراس'!D263","v":0},{"$f":"IF(ROW($A257)<='بيانات الحراس'!$F$2,ROW($A257),\"\")","v":""},null,null,null,null,null,null,null,null,null,"",null,null,null,null,null,null,null,null,null,null,"",0,0,null,0,0]
[null,{"$f":"IF(C266=\"\",\"\",5-C266)","v":""},{"$f":"IF(SUM((COUNTA(M266,L266,K266,J266,I266,H266,F266,E266)/2),AK266,COUNTA(G266))=0,\"\",SUM((COUNTA(M266,L266,K266,J266,I266,H266,F266,E266)/2),AK266,COUNTA(G266)))","v":""},{"$f":"IF(C266=\"\",0,C266)","v":0},null,null,null,null,null,null,null,null,null,{"$f":"'بيانات الحراس'!B264","v":0},{"$f":"'بيانات الحراس'!D264","v":0},{"$f":"IF(ROW($A258)<='بيانات الحراس'!$F$2,ROW($A258),\"\")","v":""},null,null,null,null,null,null,null,null,null,{"$f":"IF(AM266+AL266=0,\"\",AM266+AL266)","v":""},null,null,null,null,null,null,null,null,null,null,{"$f":"IF(AO266+AP266=0,\"\",AO266+AP266)","v":""},{"$f":"COUNTA(Y266,X266,V266,U266,T266,S266,R266,Q266)/2","v":0},{"$f":"COUNTA(W266)","v":0},null,{"$f":"(COUNTA(AJ266,AI266,AG266,AF266,AE266,AD266,AC266,AB266))/2","v":0},{"$f":"COUNTA(AH266)","v":0}]
[null,"","",0,null,null,null,null,null,null,null,null,null,{"$f":"'بيانات الحراس'!B265","v":0},{"$f":"'بيانات الحراس'!D265","v":0},{"$f":"IF(ROW($A259)<='بيانات الحراس'!$F$2,ROW($A259),\"\")","v":""},null,null,null,null,null,null,null,null,null,"",null,null,null,null,null,null,null,null,null,null,"",0,0,null,0,0]
[null,"","",0,null,null,null,null,null,null,null,null,null,{"$f":"'بيانات الحراس'!B266","v":0},{"$f":"'بيانات الحراس'!D266","v":0},{"$f":"IF(ROW($A260)<='بيانات الحراس'!$F$2,ROW($A260),\"\")","v":""},null,null,null,null,null,null,null,null,null,"",null,null,null,null,null,null,null,null,null,null,"",0,0,null,0,0]
[null,"","",0,null,null,null,null,null,null,null,null,null,{"$f":"'بيانات الحراس'!B267","v":0},{"$f":"'بيانات الحراس'!D267","v":0},{"$f":"IF(ROW($A261)<='بيانات الحراس'!$F$2,ROW($A261),\"\")","v":""},null,null,null,null,null,null,null,null,null,"",null,null,null,null,null,null,null,null,null,null,"",0,0,null,0,0]
[null,"","",0,null,null,null,null,null,null,null,null,null,{"$f":"'بيانات الحراس'!B268","v":0},{"$f":"'بيانات الحراس'!D268","v":0},{"$f":"IF(ROW($A262)<='بيانات الحراس'!$F$2,ROW($A262),\"\")","v":""},null,null,null,null,null,null,null,null,null,"",null,null,null,null,null,null,null,null,null,null,"",0,0,null,0,0]
[null,"","",0,null,null,null,null,null,null,null,null,null,{"$f":"'بيانات الحراس'!B269","v":0},{"$f":"'بيانات الحراس'!D269","v":0},{"$f":"IF(ROW($A263)<='بيانات الحراس'!$F$2,ROW($A263),\"\")","v":""},null,null,null,null,null,null,null,null,null,"",null,null,null,null,null,null,null,null,null,null,"",0,0,null,0,0]
[null,"","",0,null,null,null,null,null,null,null,null,null,{"$f":"'بيانات الحراس'!B270","v":0},{"$f":"'بيانات الحراس'!D270","v":0},{"$f":"IF(ROW($A264)<='بيانات الحراس'!$F$2,ROW($A264),\"\")","v":""},null,null,null,null,null,null,null,null,null,"",null,null,null,null,null,null,null,null,null,null,"",0,0,null,0,0]
[null,"","",0,null,null,null,null,null,null,null,null,null,{"$f":"'بيانات الحراس'!B271","v":0},{"$f":"'بيانات الحراس'!D271","v":0},{"$f":"IF(ROW($A265)<='بيانات الحراس'!$F$2,ROW($A265),\"\")","v":""},null,null,null,null,null,null,null,null,null,"",null,null,null,null,null,null,null,null,null,null,"",0,0,null,0,0]
[null,"","",0,null,null,null,null,null,null,null,null,null,{"$f":"'بيانات الحراس'!B272","v":0},{"$f":"'بيانات الحراس'!D272","v":0},{"$f":"IF(ROW($A266)<='بيانات الحراس'!$F$2,ROW($A266),\"\")","v":""},null,null,null,null,null,null,null,null,null,"",null,null,null,null,null,null,null,null,null,null,"",0,0,null,0,0]
[null,"","",0,null,null,null,null,null,null,null,null,null,{"$f":"'بيانات الحراس'!B273","v":0},{"$f":"'بيانات الحراس'!D273","v":0},{"$f":"IF(ROW($A267)<='بيانات الحراس'!$F$2,ROW($A267),\"\")","v":""},null,null,null,null,null,null,null,null,null,"",null,null,null,null,null,null,null,null,null,null,"",0,0,null,0,0]
[null,"","",0,null,null,null,null,null,null,null,null,null,{"$f":"'بيانات الحراس'!B274","v":0},{"$f":"'بيانات الحراس'!D274","v":0},{"$f":"IF(ROW($A268)<='بيانات الحراس'!$F$2,ROW($A268),\"\")","v":""},null,null,null,null,null,null,null,null,null,"",null,null,null,null,null,null,null,null,null,null,"",0,0,null,0,0]
[null,"","",0,null,null,null,null,null,null,null,null,null,{"$f":"'بيانات الحراس'!B275","v":0},{"$f":"'بيانات الحراس'!D275","v":0},{"$f":"IF(ROW($A269)<='بيانات الحراس'!$F$2,ROW($A269),\"\")","v":""},null,null,null,null,null,null,null,null,null,"",null,null,null,null,null,null,null,null,null,null,"",0,0,null,0,0]
[null,"","",0,null,null,null,null,null,null,null,null,null,{"$f":"'بيانات الحراس'!B276","v":0},{"$f":"'بيانات الحراس'!D276","v":0},{"$f":"IF(ROW($A270)<='بيانات الحراس'!$F$2,ROW($A270),\"\")","v":""},null,null,null,null,null,null,null,null,null,"",null,null,null,null,null,null,null,null,null,null,"",0,0,null,0,0]
[null,"","",0,null,null,null,null,null,null,null,null,null,{"$f":"'بيانات الحراس'!B277","v":0},{"$f":"'بيانات الحراس'!D277","v":0},{"$f":"IF(ROW($A271)<='بيانات الحراس'!$F$2,ROW($A271),\"\")","v":""},null,null,null,null,null,null,null,null,null,"",null,null,null,null,null,null,null,null,null,null,"",0,0,null,0,0]
[null,"","",0,null,null,null,null,null,null,null,null,null,{"$f":"'بيانات الحراس'!B278","v":0},{"$f":"'بيانات الحراس'!D278","v":0},{"$f":"IF(ROW($A272)<='بيانات الحراس'!$F$2,ROW($A272),\"\")","v":""},null,null,null,null,null,null,null,null,null,"",null,null,null,null,null,null,null,null,null,null,"",0,0,null,0,0]
[null,"","",0,null,null,null,null,null,null,null,null,null,{"$f":"'بيانات الحراس'!B279","v":0},{"$f":"'بيانات الحراس'!D279","v":0},{"$f":"IF(ROW($A273)<='بيانات الحراس'!$F$2,ROW($A273),\"\")","v":""},null,null,null,null,null,null,null,null,null,"",null,null,null,null,null,null,null,null,null,null,"",0,0,null,0,0]
[null,"","",0,null,null,null,null,null,null,null,null,null,{"$f":"'بيانات الحراس'!B280","v":0},{"$f":"'بيانات الحراس'!D280","v":0},{"$f":"IF(ROW($A274)<='بيانات الحراس'!$F$2,ROW($A274),\"\")","v":""},null,null,null,null,null,null,null,null,null,"",null,null,null,null,null,null,null,null,null,null,"",0,0,null,0,0]
[null,"","",0,null,null,null,null,null,null,null,null,null,{"$f":"'بيانات الحراس'!B281","v":0},{"$f":"'بيانات الحراس'!D281","v":0},{"$f":"IF(ROW($A275)<='بيانات الحراس'!$F$2,ROW($A275),\"\")","v":""},null,null,null,null,null,null,null,null,null,"",null,null,null,null,null,null,null,null,null,null,"",0,0,null,0,0]
[null,"","",0,null,null,null,null,null,null,null,null,null,{"$f":"'بيانات الحراس'!B282","v":0},{"$f":"'بيانات الحراس'!D282","v":0},{"$f":"IF(ROW($A276)<='بيانات الحراس'!$F$2,ROW($A276),\"\")","v":""},null,null,null,null,null,null,null,null,null,"",null,null,null,null,null,null,null,null,null,null,"",0,0,null,0,0]
[null,"","",0,null,null,null,null,null,null,null,null,null,{"$f":"'بيانات الحراس'!B283","v":0},{"$f":"'بيانات الحراس'!D283","v":0},{"$f":"IF(ROW($A277)<='بيانات الحراس'!$F$2,ROW($A277),\"\")","v":""},null,null,null,null,null,null,null,null,null,"",null,null,null,null,null,null,null,null,null,null,"",0,0,null,0,0]
[null,"","",0,null,null,null,null,null,null,null,null,null,{"$f":"'بيانات الحراس'!B284","v":0},{"$f":"'بيانات الحراس'!D284","v":0},{"$f":"IF(ROW($A278)<='بيانات الحراس'!$F$2,ROW($A278),\"\")","v":""},null,null,null,null,null,null,null,null,null,"",null,null,null,null,null,null,null,null,null,null,"",0,0,null,0,0]
[null,"","",0,null,null,null,null,null,null,null,null,null,{"$f":"'بيانات الحراس'!B285","v":0},{"$f":"'بيانات الحراس'!D285","v":0},{"$f":"IF(ROW($A279)<='بيانات الحراس'!$F$2,ROW($A279),\"\")","v":""},null,null,null,null,null,null,null,null,null,"",null,null,null,null,null,null,null,null,null,null,"",0,0,null,0,0]
[null,"","",0,null,null,null,null,null,null,null,null,null,{"$f":"'بيانات الحراس'!B286","v":0},{"$f":"'بيانات الحراس'!D286","v":0},{"$f":"IF(ROW($A280)<='بيانات الحراس'!$F$2,ROW($A280),\"\")","v":""},null,null,null,null,null,null,null,null,null,"",null,null,null,null,null,null,null,null,null,null,"",0,0,null,0,0]
[null,"","",0,null,null,null,null,null,null,null,null,null,{"$f":"'بيانات الحراس'!B287","v":0},{"$f":"'بيانات الحراس'!D287","v":0},{"$f":"IF(ROW($A281)<='بيانات الحراس'!$F$2,ROW($A281),\"\")","v":""},null,null,null,null,null,null,null,null,null,"",null,null,null,null,null,null,null,null,null,null,"",0,0,null,0,0]
[null,"","",0,null,null,null,null,null,null,null,null,null,{"$f":"'بيانات الحراس'!B288","v":0},{"$f":"'بيانات الحراس'!D288","v":0},{"$f":"IF(ROW($A282)<='بيانات الحراس'!$F$2,ROW($A282),\"\")","v":""},null,null,null,null,null,null,null,null,null,"",null,null,null,null,null,null,null,null,null,null,"",0,0,null,0,0]
[null,"","",0,null,null,null,null,null,null,null,null,null,{"$f":"'بيانات الحراس'!B289","v":0},{"$f":"'بيانات الحراس'!D289","v":0},{"$f":"IF(ROW($A283)<='بيانات الحراس'!$F$2,ROW($A283),\"\")","v":""},null,null,null,null,null,null,null,null,null,"",null,null,null,null,null,null,null,null,null,null,"",0,0,null,0,0]
[null,"","",0,null,null,null,null,null,null,null,null,null,{"$f":"'بيانات الحراس'!B290","v":0},{"$f":"'بيانات الحراس'!D290","v":0},{"$f":"IF(ROW($A284)<='بيانات الحراس'!$F$2,ROW($A284),\"\")","v":""},null,null,null,null,null,null,null,null,null,"",null,null,null,null,null,null,null,null,null,null,"",0,0,null,0,0]
[null,"","",0,null,null,null,null,null,null,null,null,null,{"$f":"'بيانات الحراس'!B291","v":0},{"$f":"'بيانات الحراس'!D291","v":0},{"$f":"IF(ROW($A285)<='بيانات الحراس'!$F$2,ROW($A285),\"\")","v":""},null,null,null,null,null,null,null,null,null,"",null,null,null,null,null,null,null,null,null,null,"",0,0,null,0,0]
[null,"","",0,null,null,null,null,null,null,null,null,null,{"$f":"'بيانات الحراس'!B292","v":0},{"$f":"'بيانات الحراس'!D292","v":0},{"$f":"IF(ROW($A286)<='بيانات الحراس'!$F$2,ROW($A286),\"\")","v":""},null,null,null,null,null,null,null,null,null,"",null,null,null,null,null,null,null,null,null,null,"",0,0,null,0,0]
[null,"","",0,null,null,null,null,null,null,null,null,null,{"$f":"'بيانات الحراس'!B293","v":0},{"$f":"'بيانات الحراس'!D293","v":0},{"$f":"IF(ROW($A287)<='بيانات الحراس'!$F$2,ROW($A287),\"\")","v":""},null,null,null,null,null,null,null,null,null,"",null,null,null,null,null,null,null,null,null,null,"",0,0,null,0,0]
[null,"","",0,null,null,null,null,null,null,null,null,null,{"$f":"'بيانات الحراس'!B294","v":0},{"$f":"'بيانات الحراس'!D294","v":0},{"$f":"IF(ROW($A288)<='بيانات الحراس'!$F$2,ROW($A288),\"\")","v":""},null,null,null,null,null,null,null,null,null,"",null,null,null,null,null,null,null,null,null,null,"",0,0,null,0,0]
[null,"","",0,null,null,null,null,null,null,null,null,null,{"$f":"'بيانات الحراس'!B295","v":0},{"$f":"'بيانات الحراس'!D295","v":0},{"$f":"IF(ROW($A289)<='بيانات الحراس'!$F$2,ROW($A289),\"\")","v":""},null,null,null,null,null,null,null,null,null,"",null,null,null,null,null,null,null,null,null,null,"",0,0,null,0,0]
[null,"","",0,null,null,null,null,null,null,null,null,null,{"$f":"'بيانات الحراس'!B296","v":0},{"$f":"'بيانات الحراس'!D296","v":0},{"$f":"IF(ROW($A290)<='بيانات الحراس'!$F$2,ROW($A290),\"\")","v":""},null,null,null,null,null,null,null,null,null,"",null,null,null,null,null,null,null,null,null,null,"",0,0,null,0,0]
[null,"","",0,null,null,null,null,null,null,null,null,null,{"$f":"'بيانات الحراس'!B297","v":0},{"$f":"'بيانات الحراس'!D297","v":0},{"$f":"IF(ROW($A291)<='بيانات الحراس'!$F$2,ROW($A291),\"\")","v":""},null,null,null,null,null,null,null,null,null,"",null,null,null,null,null,null,null,null,null,null,"",0,0,null,0,0]
[null,"","",0,null,null,null,null,null,null,null,null,null,{"$f":"'بيانات الحراس'!B298","v":0},{"$f":"'بيانات الحراس'!D298","v":0},{"$f":"IF(ROW($A292)<='بيانات الحراس'!$F$2,ROW($A292),\"\")","v":""},null,null,null,null,null,null,null,null,null,"",null,null,null,null,null,null,null,null,null,null,"",0,0,null,0,0]
[null,"","",0,null,null,null,null,null,null,null,null,null,{"$f":"'بيانات الحراس'!B299","v":0},{"$f":"'بيانات الحراس'!D299","v":0},{"$f":"IF(ROW($A293)<='بيانات الحراس'!$F$2,ROW($A293),\"\")","v":""},null,null,null,null,null,null,null,null,null,"",null,null,null,null,null,null,null,null,null,null,"",0,0,null,0,0]
[null,"","",0,null,null,null,null,null,null,null,null,null,{"$f":"'بيانات الحراس'!B300","v":0},{"$f":"'بيانات الحراس'!D300","v":0},{"$f":"IF(ROW($A294)<='بيانات الحراس'!$F$2,ROW($A294),\"\")","v":""},null,null,null,null,null,null,null,null,null,"",null,null,null,null,null,null,null,null,null,null,"",0,0,null,0,0]
[null,"","",0,null,null,null,null,null,null,null,null,null,{"$f":"'بيانات الحراس'!B301","v":0},{"$f":"'بيانات الحراس'!D301","v":0},{"$f":"IF(ROW($A295)<='بيانات الحراس'!$F$2,ROW($A295),\"\")","v":""},null,null,null,null,null,null,null,null,null,"",null,null,null,null,null,null,null,null,null,null,"",0,0,null,0,0]
[null,"","",0,null,null,null,null,null,null,null,null,null,{"$f":"'بيانات الحراس'!B302","v":0},{"$f":"'بيانات الحراس'!D302","v":0},{"$f":"IF(ROW($A296)<='بيانات الحراس'!$F$2,ROW($A296),\"\")","v":""},null,null,null,null,null,null,null,null,null,"",null,null,null,null,null,null,null,null,null,null,"",0,0,null,0,0]
[null,"","",0,null,null,null,null,null,null,null,null,null,{"$f":"'بيانات الحراس'!B303","v":0},{"$f":"'بيانات الحراس'!D303","v":0},{"$f":"IF(ROW($A297)<='بيانات الحراس'!$F$2,ROW($A297),\"\")","v":""},null,null,null,null,null,null,null,null,null,"",null,null,null,null,null,null,null,null,null,null,"",0,0,null,0,0]
[null,"","",0,null,null,null,null,null,null,null,null,null,{"$f":"'بيانات الحراس'!B304","v":0},{"$f":"'بيانات الحراس'!D304","v":0},{"$f":"IF(ROW($A298)<='بيانات الحراس'!$F$2,ROW($A298),\"\")","v":""},null,null,null,null,null,null,null,null,null,"",null,null,null,null,null,null,null,null,null,null,"",0,0,null,0,0]
[null,"","",0,null,null,null,null,null,null,null,null,null,{"$f":"'بيانات الحراس'!B305","v":0},{"$f":"'بيانات الحراس'!D305","v":0},{"$f":"IF(ROW($A299)<='بيانات الحراس'!$F$2,ROW($A299),\"\")","v":""},null,null,null,null,null,null,null,null,null,"",null,null,null,null,null,null,null,null,null,null,"",0,0,null,0,0]
[null,"","",0,null,null,null,null,null,null,null,null,null,{"$f":"'بيانات الحراس'!B306","v":0},{"$f":"'بيانات الحراس'!D306","v":0},{"$f":"IF(ROW($A300)<='بيانات الحراس'!$F$2,ROW($A300),\"\")","v":""},null,null,null,null,null,null,null,null,null,"",null,null,null,null,null,null,null,null,null,null,"",0,0,null,0,0]
[null,"","",0,null,null,null,null,null,null,null,null,null,{"$f":"'بيانات الحراس'!B307","v":0},{"$f":"'بيانات الحراس'!D307","v":0},{"$f":"IF(ROW($A301)<='بيانات الحراس'!$F$2,ROW($A301),\"\")","v":""},null,null,null,null,null,null,null,null,null,"",null,null,null,null,null,null,null,null,null,null,"",0,0,null,0,0]
[null,"","",0,null,null,null,null,null,null,null,null,null,{"$f":"'بيانات الحراس'!B308","v":0},{"$f":"'بيانات الحراس'!D308","v":0},{"$f":"IF(ROW($A302)<='بيانات الحراس'!$F$2,ROW($A302),\"\")","v":""},null,null,null,null,null,null,null,null,null,"",null,null,null,null,null,null,null,null,null,null,"",0,0,null,0,0]
[null,"","",0,null,null,null,null,null,null,null,null,null,{"$f":"'بيانات الحراس'!B309","v":0},{"$f":"'بيانات الحراس'!D309","v":0},{"$f":"IF(ROW($A303)<='بيانات الحراس'!$F$2,ROW($A303),\"\")","v":""},null,null,null,null,null,null,null,null,null,"",null,null,null,null,null,null,null,null,null,null,"",0,0,null,0,0]
[null,"","",0,null,null,null,null,null,null,null,null,null,{"$f":"'بيانات الحراس'!B310","v":0},{"$f":"'بيانات الحراس'!D310","v":0},{"$f":"IF(ROW($A304)<='بيانات الحراس'!$F$2,ROW($A304),\"\")","v":""},null,null,null,null,null,null,null,null,null,"",null,null,null,null,null,null,null,null,null,null,"",0,0,null,0,0]
[null,"","",0,null,null,null,null,null,null,null,null,null,{"$f":"'بيانات الحراس'!B311","v":0},{"$f":"'بيانات الحراس'!D311","v":0},{"$f":"IF(ROW($A305)<='بيانات الحراس'!$F$2,ROW($A305),\"\")","v":""},null,null,null,null,null,null,null,null,null,"",null,null,null,null,null,null,null,null,null,null,"",0,0,null,0,0]
[null,"","",0,null,null,null,null,null,null,null,null,null,{"$f":"'بيانات الحراس'!B312","v":0},{"$f":"'بيانات الحراس'!D312","v":0},{"$f":"IF(ROW($A306)<='بيانات الحراس'!$F$2,ROW($A306),\"\")","v":""},null,null,null,null,null,null,null,null,null,"",null,null,null,null,null,null,null,null,null,null,"",0,0,null,0,0]
[null,"","",0,null,null,null,null,null,null,null,null,null,{"$f":"'بيانات الحراس'!B313","v":0},{"$f":"'بيانات الحراس'!D313","v":0},{"$f":"IF(ROW($A307)<='بيانات الحراس'!$F$2,ROW($A307),\"\")","v":""},null,null,null,null,null,null,null,null,null,"",null,null,null,null,null,null,null,null,null,null,"",0,0,null,0,0]
[null,"","",0,null,null,null,null,null,null,null,null,null,{"$f":"'بيانات الحراس'!B314","v":0},{"$f":"'بيانات الحراس'!D314","v":0},{"$f":"IF(ROW($A308)<='بيانات الحراس'!$F$2,ROW($A308),\"\")","v":""},null,null,null,null,null,null,null,null,null,"",null,null,null,null,null,null,null,null,null,null,"",0,0,null,0,0]
[null,"","",0,null,null,null,null,null,null,null,null,null,{"$f":"'بيانات الحراس'!B315","v":0},{"$f":"'بيانات الحراس'!D315","v":0},{"$f":"IF(ROW($A309)<='بيانات الحراس'!$F$2,ROW($A309),\"\")","v":""},null,null,null,null,null,null,null,null,null,"",null,null,null,null,null,null,null,null,null,null,"",0,0,null,0,0]
[null,"","",0,null,null,null,null,null,null,null,null,null,{"$f":"'بيانات الحراس'!B316","v":0},{"$f":"'بيانات الحراس'!D316","v":0},{"$f":"IF(ROW($A310)<='بيانات الحراس'!$F$2,ROW($A310),\"\")","v":""},null,null,null,null,null,null,null,null,null,"",null,null,null,null,null,null,null,null,null,null,"",0,0,null,0,0]
[null,"","",0,null,null,null,null,null,null,null,null,null,{"$f":"'بيانات الحراس'!B317","v":0},{"$f":"'بيانات الحراس'!D317","v":0},{"$f":"IF(ROW($A311)<='بيانات الحراس'!$F$2,ROW($A311),\"\")","v":""},null,null,null,null,null,null,null,null,null,"",null,null,null,null,null,null,null,null,null,null,"",0,0,null,0,0]
[null,"","",0,null,null,null,null,null,null,null,null,null,{"$f":"'بيانات الحراس'!B318","v":0},{"$f":"'بيانات الحراس'!D318","v":0},{"$f":"IF(ROW($A312)<='بيانات الحراس'!$F$2,ROW($A312),\"\")","v":""},null,null,null,null,null,null,null,null,null,"",null,null,null,null,null,null,null,null,null,null,"",0,0,null,0,0]
[null,"","",0,null,null,null,null,null,null,null,null,null,{"$f":"'بيانات الحراس'!B319","v":0},{"$f":"'بيانات الحراس'!D319","v":0},{"$f":"IF(ROW($A313)<='بيانات الحراس'!$F$2,ROW($A313),\"\")","v":""},null,null,null,null,null,null,null,null,null,"",null,null,null,null,null,null,null,null,null,null,"",0,0,null,0,0]
[null,"","",0,null,null,null,null,null,null,null,null,null,{"$f":"'بيانات الحراس'!B320","v":0},{"$f":"'بيانات الحراس'!D320","v":0},{"$f":"IF(ROW($A314)<='بيانات الحراس'!$F$2,ROW($A314),\"\")","v":""},null,null,null,null,null,null,null,null,null,"",null,null,null,null,null,null,null,null,null,null,"",0,0,null,0,0]
[null,"","",0,null,null,null,null,null,null,null,null,null,{"$f":"'بيانات الحراس'!B321","v":0},{"$f":"'بيانات الحراس'!D321","v":0},{"$f":"IF(ROW($A315)<='بيانات الحراس'!$F$2,ROW($A315),\"\")","v":""},null,null,null,null,null,null,null,null,null,"",null,null,null,null,null,null,null,null,null,null,"",0,0,null,0,0]
[null,"","",0,null,null,null,null,null,null,null,null,null,{"$f":"'بيانات الحراس'!B322","v":0},{"$f":"'بيانات الحراس'!D322","v":0},{"$f":"IF(ROW($A316)<='بيانات الحراس'!$F$2,ROW($A316),\"\")","v":""},null,null,null,null,null,null,null,null,null,"",null,null,null,null,null,null,null,null,null,null,"",0,0,null,0,0]
[null,"","",0,null,null,null,null,null,null,null,null,null,{"$f":"'بيانات الحراس'!B323","v":0},{"$f":"'بيانات الحراس'!D323","v":0},{"$f":"IF(ROW($A317)<='بيانات الحراس'!$F$2,ROW($A317),\"\")","v":""},null,null,null,null,null,null,null,null,null,"",null,null,null,null,null,null,null,null,null,null,"",0,0,null,0,0]
[null,"","",0,null,null,null,null,null,null,null,null,null,{"$f":"'بيانات الحراس'!B324","v":0},{"$f":"'بيانات الحراس'!D324","v":0},{"$f":"IF(ROW($A318)<='بيانات الحراس'!$F$2,ROW($A318),\"\")","v":""},null,null,null,null,null,null,null,null,null,"",null,null,null,null,null,null,null,null,null,null,"",0,0,null,0,0]
[null,"","",0,null,null,null,null,null,null,null,null,null,{"$f":"'بيانات الحراس'!B325","v":0},{"$f":"'بيانات الحراس'!D325","v":0},{"$f":"IF(ROW($A319)<='بيانات الحراس'!$F$2,ROW($A319),\"\")","v":""},null,null,null,null,null,null,null,null,null,"",null,null,null,null,null,null,null,null,null,null,"",0,0,null,0,0]
[null,"","",0,null,null,null,null,null,null,null,null,null,{"$f":"'بيانات الحراس'!B326","v":0},{"$f":"'بيانات الحراس'!D326","v":0},{"$f":"IF(ROW($A320)<='بيانات الحراس'!$F$2,ROW($A320),\"\")","v":""},null,null,null,null,null,null,null,null,null,"",null,null,null,null,null,null,null,null,null,null,"",0,0,null,0,0]
[null,"","",0,null,null,null,null,null,null,null,null,null,{"$f":"'بيانات الحراس'!B327","v":0},{"$f":"'بيانات الحراس'!D327","v":0},{"$f":"IF(ROW($A321)<='بيانات الحراس'!$F$2,ROW($A321),\"\")","v":""},null,null,null,null,null,null,null,null,null,"",null,null,null,null,null,null,null,null,null,null,"",0,0,null,0,0]
[null,{"$f":"IF(C330=\"\",\"\",5-C330)","v":""},{"$f":"IF(SUM((COUNTA(M330,L330,K330,J330,I330,H330,F330,E330)/2),AK330,COUNTA(G330))=0,\"\",SUM((COUNTA(M330,L330,K330,J330,I330,H330,F330,E330)/2),AK330,COUNTA(G330)))","v":""},{"$f":"IF(C330=\"\",0,C330)","v":0},null,null,null,null,null,null,null,null,null,{"$f":"'بيانات الحراس'!B328","v":0},{"$f":"'بيانات الحراس'!D328","v":0},{"$f":"IF(ROW($A322)<='بيانات الحراس'!$F$2,ROW($A322),\"\")","v":""},null,null,null,null,null,null,null,null,null,{"$f":"IF(AM330+AL330=0,\"\",AM330+AL330)","v":""},null,null,null,null,null,null,null,null,null,null,{"$f":"IF(AO330+AP330=0,\"\",AO330+AP330)","v":""},{"$f":"COUNTA(Y330,X330,V330,U330,T330,S330,R330,Q330)/2","v":0},{"$f":"COUNTA(W330)","v":0},null,{"$f":"(COUNTA(AJ330,AI330,AG330,AF330,AE330,AD330,AC330,AB330))/2","v":0},{"$f":"COUNTA(AH330)","v":0}]
[null,"","",0,null,null,null,null,null,null,null,null,null,{"$f":"'بيانات الحراس'!B329","v":0},{"$f":"'بيانات الحراس'!D329","v":0},{"$f":"IF(ROW($A323)<='بيانات الحراس'!$F$2,ROW($A323),\"\")","v":""},null,null,null,null,null,null,null,null,null,"",null,null,null,null,null,null,null,null,null,null,"",0,0,null,0,0]
[null,"","",0,null,null,null,null,null,null,null,null,null,{"$f":"'بيانات الحراس'!B330","v":0},{"$f":"'بيانات الحراس'!D330","v":0},{"$f":"IF(ROW($A324)<='بيانات الحراس'!$F$2,ROW($A324),\"\")","v":""},null,null,null,null,null,null,null,null,null,"",null,null,null,null,null,null,null,null,null,null,"",0,0,null,0,0]
[null,"","",0,null,null,null,null,null,null,null,null,null,{"$f":"'بيانات الحراس'!B331","v":0},{"$f":"'بيانات الحراس'!D331","v":0},{"$f":"IF(ROW($A325)<='بيانات الحراس'!$F$2,ROW($A325),\"\")","v":""},null,null,null,null,null,null,null,null,null,"",null,null,null,null,null,null,null,null,null,null,"",0,0,null,0,0]
[null,"","",0,null,null,null,null,null,null,null,null,null,{"$f":"'بيانات الحراس'!B332","v":0},{"$f":"'بيانات الحراس'!D332","v":0},{"$f":"IF(ROW($A326)<='بيانات الحراس'!$F$2,ROW($A326),\"\")","v":""},null,null,null,null,null,null,null,null,null,"",null,null,null,null,null,null,null,null,null,null,"",0,0,null,0,0]
[null,"","",0,null,null,null,null,null,null,null,null,null,{"$f":"'بيانات الحراس'!B333","v":0},{"$f":"'بيانات الحراس'!D333","v":0},{"$f":"IF(ROW($A327)<='بيانات الحراس'!$F$2,ROW($A327),\"\")","v":""},null,null,null,null,null,null,null,null,null,"",null,null,null,null,null,null,null,null,null,null,"",0,0,null,0,0]
[null,"","",0,null,null,null,null,null,null,null,null,null,{"$f":"'بيانات الحراس'!B334","v":0},{"$f":"'بيانات الحراس'!D334","v":0},{"$f":"IF(ROW($A328)<='بيانات الحراس'!$F$2,ROW($A328),\"\")","v":""},null,null,null,null,null,null,null,null,null,"",null,null,null,null,null,null,null,null,null,null,"",0,0,null,0,0]
[null,"","",0,null,null,null,null,null,null,null,null,null,{"$f":"'بيانات الحراس'!B335","v":0},{"$f":"'بيانات الحراس'!D335","v":0},{"$f":"IF(ROW($A329)<='بيانات الحراس'!$F$2,ROW($A329),\"\")","v":""},null,null,null,null,null,null,null,null,null,"",null,null,null,null,null,null,null,null,null,null,"",0,0,null,0,0]
[null,"","",0,null,null,null,null,null,null,null,null,null,{"$f":"'بيانات الحراس'!B336","v":0},{"$f":"'بيانات الحراس'!D336","v":0},{"$f":"IF(ROW($A330)<='بيانات الحراس'!$F$2,ROW($A330),\"\")","v":""},null,null,null,null,null,null,null,null,null,"",null,null,null,null,null,null,null,null,null,null,"",0,0,null,0,0]
[null,"","",0,null,null,null,null,null,null,null,null,null,{"$f":"'بيانات الحراس'!B337","v":0},{"$f":"'بيانات الحراس'!D337","v":0},{"$f":"IF(ROW($A331)<='بيانات الحراس'!$F$2,ROW($A331),\"\")","v":""},null,null,null,null,null,null,null,null,null,"",null,null,null,null,null,null,null,null,null,null,"",0,0,null,0,0]
[null,"","",0,null,null,null,null,null,null,null,null,null,{"$f":"'بيانات الحراس'!B338","v":0},{"$f":"'بيانات الحراس'!D338","v":0},{"$f":"IF(ROW($A332)<='بيانات الحراس'!$F$2,ROW($A332),\"\")","v":""},null,null,null,null,null,null,null,null,null,"",null,null,null,null,null,null,null,null,null,null,"",0,0,null,0,0]
[null,"","",0,null,null,null,null,null,null,null,null,null,{"$f":"'بيانات الحراس'!B339","v":0},{"$f":"'بيانات الحراس'!D339","v":0},{"$f":"IF(ROW($A333)<='بيانات الحراس'!$F$2,ROW($A333),\"\")","v":""},null,null,null,null,null,null,null,null,null,"",null,null,null,null,null,null,null,null,null,null,"",0,0,null,0,0]
[null,"","",0,null,null,null,null,null,null,null,null,null,{"$f":"'بيانات الحراس'!B340","v":0},{"$f":"'بيانات الحراس'!D340","v":0},{"$f":"IF(ROW($A334)<='بيانات الحراس'!$F$2,ROW($A334),\"\")","v":""},null,null,null,null,null,null,null,null,null,"",null,null,null,null,null,null,null,null,null,null,"",0,0,null,0,0]
[null,"","",0,null,null,null,null,null,null,null,null,null,{"$f":"'بيانات الحراس'!B341","v":0},{"$f":"'بيانات الحراس'!D341","v":0},{"$f":"IF(ROW($A335)<='بيانات الحراس'!$F$2,ROW($A335),\"\")","v":""},null,null,null,null,null,null,null,null,null,"",null,null,null,null,null,null,null,null,null,null,"",0,0,null,0,0]
[null,"","",0,null,null,null,null,null,null,null,null,null,{"$f":"'بيانات الحراس'!B342","v":0},{"$f":"'بيانات الحراس'!D342","v":0},{"$f":"IF(ROW($A336)<='بيانات الحراس'!$F$2,ROW($A336),\"\")","v":""},null,null,null,null,null,null,null,null,null,"",null,null,null,null,null,null,null,null,null,null,"",0,0,null,0,0]
[null,"","",0,null,null,null,null,null,null,null,null,null,{"$f":"'بيانات الحراس'!B343","v":0},{"$f":"'بيانات الحراس'!D343","v":0},{"$f":"IF(ROW($A337)<='بيانات الحراس'!$F$2,ROW($A337),\"\")","v":""},null,null,null,null,null,null,null,null,null,"",null,null,null,null,null,null,null,null,null,null,"",0,0,null,0,0]
[null,"","",0,null,null,null,null,null,null,null,null,null,{"$f":"'بيانات الحراس'!B344","v":0},{"$f":"'بيانات الحراس'!D344","v":0},{"$f":"IF(ROW($A338)<='بيانات الحراس'!$F$2,ROW($A338),\"\")","v":""},null,null,null,null,null,null,null,null,null,"",null,null,null,null,null,null,null,null,null,null,"",0,0,null,0,0]
[null,"","",0,null,null,null,null,null,null,null,null,null,{"$f":"'بيانات الحراس'!B345","v":0},{"$f":"'بيانات الحراس'!D345","v":0},{"$f":"IF(ROW($A339)<='بيانات الحراس'!$F$2,ROW($A339),\"\")","v":""},null,null,null,null,null,null,null,null,null,"",null,null,null,null,null,null,null,null,null,null,"",0,0,null,0,0]
[null,"","",0,null,null,null,null,null,null,null,null,null,{"$f":"'بيانات الحراس'!B346","v":0},{"$f":"'بيانات الحراس'!D346","v":0},{"$f":"IF(ROW($A340)<='بيانات الحراس'!$F$2,ROW($A340),\"\")","v":""},null,null,null,null,null,null,null,null,null,"",null,null,null,null,null,null,null,null,null,null,"",0,0,null,0,0]
[null,"","",0,null,null,null,null,null,null,null,null,null,{"$f":"'بيانات الحراس'!B347","v":0},{"$f":"'بيانات الحراس'!D347","v":0},{"$f":"IF(ROW($A341)<='بيانات الحراس'!$F$2,ROW($A341),\"\")","v":""},null,null,null,null,null,null,null,null,null,"",null,null,null,null,null,null,null,null,null,null,null,0,0]
[null,"","",{"$f":"IF(C350=\"\",0,C350)","v":0},null,null,null,null,null,null,null,null,null,{"$f":"'بيانات الحراس'!B348","v":0},{"$f":"'بيانات الحراس'!D348","v":0},{"$f":"IF(ROW($A342)<='بيانات الحراس'!$F$2,ROW($A342),\"\")","v":""},null,null,null,null,null,null,null,null,null,"",null,null,null,null,null,null,null,null,null,null,null,0,0]
[null,null,"",null,null,null,null,null,null,null,null,null,null,null,null,{"$f":"IF(ROW($A343)<='بيانات الحراس'!$F$2,ROW($A343),\"\")","v":""},null,null,null,null,null,null,null,null,null,""]
[null,null,"",null,null,null,null,null,null,null,null,null,null,null,null,{"$f":"IF(ROW($A344)<='بيانات الحراس'!$F$2,ROW($A344),\"\")","v":""},null,null,null,null,null,null,null,null,null,""]
[null,null,"",null,null,null,null,null,null,null,null,null,null,null,null,{"$f":"IF(ROW($A345)<='بيانات الحراس'!$F$2,ROW($A345),\"\")","v":""},null,null,null,null,null,null,null,null,null,""]
[null,null,"",null,null,null,null,null,null,null,null,null,null,null,null,{"$f":"IF(ROW($A346)<='بيانات الحراس'!$F$2,ROW($A346),\"\")","v":""},null,null,null,null,null,null,null,null,null,""]
[null,null,"",null,null,null,null,null,null,null,null,null,null,null,null,{"$f":"IF(ROW($A347)<='بيانات الحراس'!$F$2,ROW($A347),\"\")","v":""},null,null,null,null,null,null,null,null,null,""]
[null,null,"",null,null,null,null,null,null,null,null,null,null,null,null,{"$f":"IF(ROW($A348)<='بيانات الحراس'!$F$2,ROW($A348),\"\")","v":""},null,null,null,null,null,null,null,null,null,""]
[null,null,"",null,null,null,null,null,null,null,null,null,null,null,null,{"$f":"IF(ROW($A349)<='بيانات الحراس'!$F$2,ROW($A349),\"\")","v":""},null,null,null,null,null,null,null,null,null,""]
[null,null,"",null,null,null,null,null,null,null,null,null,null,null,null,{"$f":"IF(ROW($A350)<='بيانات الحراس'!$F$2,ROW($A350),\"\")","v":""},null,null,null,null,null,null,null,null,null,""]
[null,null,"",null,null,null,null,null,null,null,null,null,null,null,null,{"$f":"IF(ROW($A351)<='بيانات الحراس'!$F$2,ROW($A351),\"\")","v":""},null,null,null,null,null,null,null,null,null,""]
[null,null,"",null,null,null,null,null,null,null,null,null,null,null,null,{"$f":"IF(ROW($A352)<='بيانات الحراس'!$F$2,ROW($A352),\"\")","v":""},null,null,null,null,null,null,null,null,null,""]
[null,null,"",null,null,null,null,null,null,null,null,null,null,null,null,{"$f":"IF(ROW($A353)<='بيانات الحراس'!$F$2,ROW($A353),\"\")","v":""},null,null,null,null,null,null,null,null,null,""]
[null,null,"",null,null,null,null,null,null,null,null,null,null,null,null,{"$f":"IF(ROW($A354)<='بيانات الحراس'!$F$2,ROW($A354),\"\")","v":""},null,null,null,null,null,null,null,null,null,""]
[null,null,"",null,null,null,null,null,null,null,null,null,null,null,null,{"$f":"IF(ROW($A355)<='بيانات الحراس'!$F$2,ROW($A355),\"\")","v":""},null,null,null,null,null,null,null,null,null,""]
[null,null,"",null,null,null,null,null,null,null,null,null,null,null,null,{"$f":"IF(ROW($A356)<='بيانات الحراس'!$F$2,ROW($A356),\"\")","v":""},null,null,null,null,null,null,null,null,null,""]
[null,null,"",null,null,null,null,null,null,null,null,null,null,null,null,{"$f":"IF(ROW($A357)<='بيانات الحراس'!$F$2,ROW($A357),\"\")","v":""},null,null,null,null,null,null,null,null,null,""]
[null,null,"",null,null,null,null,null,null,null,null,null,null,null,null,{"$f":"IF(ROW($A358)<='بيانات الحراس'!$F$2,ROW($A358),\"\")","v":""},null,null,null,null,null,null,null,null,null,""]
[null,null,"",null,null,null,null,null,null,null,null,null,null,null,null,{"$f":"IF(ROW($A359)<='بيانات الحراس'!$F$2,ROW($A359),\"\")","v":""},null,null,null,null,null,null,null,null,null,""]
[null,null,"",null,null,null,null,null,null,null,null,null,null,null,null,{"$f":"IF(ROW($A360)<='بيانات الحراس'!$F$2,ROW($A360),\"\")","v":""},null,null,null,null,null,null,null,null,null,""]
[null,null,"",null,null,null,null,null,null,null,null,null,null,null,null,{"$f":"IF(ROW($A361)<='بيانات الحراس'!$F$2,ROW($A361),\"\")","v":""},null,null,null,null,null,null,null,null,null,""]
[null,null,"",null,null,null,null,null,null,null,null,null,null,null,null,{"$f":"IF(ROW($A362)<='بيانات الحراس'!$F$2,ROW($A362),\"\")","v":""},null,null,null,null,null,null,null,null,null,""]
[null,null,"",null,null,null,null,null,null,null,null,null,null,null,null,{"$f":"IF(ROW($A363)<='بيانات الحراس'!$F$2,ROW($A363),\"\")","v":""},null,null,null,null,null,null,null,null,null,""]
[null,null,"",null,null,null,null,null,null,null,null,null,null,null,null,{"$f":"IF(ROW($A364)<='بيانات الحراس'!$F$2,ROW($A364),\"\")","v":""},null,null,null,null,null,null,null,null,null,""]
[null,null,"",null,null,null,null,null,null,null,null,null,null,null,null,{"$f":"IF(ROW($A365)<='بيانات الحراس'!$F$2,ROW($A365),\"\")","v":""},null,null,null,null,null,null,null,null,null,""]
[null,null,"",null,null,null,null,null,null,null,null,null,null,null,null,{"$f":"IF(ROW($A366)<='بيانات الحراس'!$F$2,ROW($A366),\"\")","v":""},null,null,null,null,null,null,null,null,null,""]
[null,null,"",null,null,null,null,null,null,null,null,null,null,null,null,{"$f":"IF(ROW($A367)<='بيانات الحراس'!$F$2,ROW($A367),\"\")","v":""},null,null,null,null,null,null,null,null,null,""]
[null,null,"",null,null,null,null,null,null,null,null,null,null,null,null,{"$f":"IF(ROW($A368)<='بيانات الحراس'!$F$2,ROW($A368),\"\")","v":""},null,null,null,null,null,null,null,null,null,""]
[null,null,"",null,null,null,null,null,null,null,null,null,null,null,null,{"$f":"IF(ROW($A369)<='بيانات الحراس'!$F$2,ROW($A369),\"\")","v":""},null,null,null,null,null,null,null,null,null,""]
[null,null,"",null,null,null,null,null,null,null,null,null,null,null,null,{"$f":"IF(ROW($A370)<='بيانات الحراس'!$F$2,ROW($A370),\"\")","v":""},null,null,null,null,null,null,null,null,null,""]
[null,null,"",null,null,null,null,null,null,null,null,null,null,null,null,{"$f":"IF(ROW($A371)<='بيانات الحراس'!$F$2,ROW($A371),\"\")","v":""},null,null,null,null,null,null,null,null,null,""]
[null,null,"",null,null,null,null,null,null,null,null,null,null,null,null,{"$f":"IF(ROW($A372)<='بيانات الحراس'!$F$2,ROW($A372),\"\")","v":""},null,null,null,null,null,null,null,null,null,""]
[null,null,"",null,null,null,null,null,null,null,null,null,null,null,null,{"$f":"IF(ROW($A373)<='بيانات الحراس'!$F$2,ROW($A373),\"\")","v":""},null,null,null,null,null,null,null,null,null,""]
[null,null,"",null,null,null,null,null,null,null,null,null,null,null,null,{"$f":"IF(ROW($A374)<='بيانات الحراس'!$F$2,ROW($A374),\"\")","v":""},null,null,null,null,null,null,null,null,null,""]
[null,null,"",null,null,null,null,null,null,null,null,null,null,null,null,{"$f":"IF(ROW($A375)<='بيانات الحراس'!$F$2,ROW($A375),\"\")","v":""},null,null,null,null,null,null,null,null,null,""]
[null,null,"",null,null,null,null,null,null,null,null,null,null,null,null,{"$f":"IF(ROW($A376)<='بيانات الحراس'!$F$2,ROW($A376),\"\")","v":""},null,null,null,null,null,null,null,null,null,""]
[null,null,"",null,null,null,null,null,null,null,null,null,null,null,null,{"$f":"IF(ROW($A377)<='بيانات الحراس'!$F$2,ROW($A377),\"\")","v":""},null,null,null,null,null,null,null,null,null,""]
[null,null,"",null,null,null,null,null,null,null,null,null,null,null,null,{"$f":"IF(ROW($A378)<='بيانات الحراس'!$F$2,ROW($A378),\"\")","v":""},null,null,null,null,null,null,null,null,null,""]
[null,null,"",null,null,null,null,null,null,null,null,null,null,null,null,{"$f":"IF(ROW($A379)<='بيانات الحراس'!$F$2,ROW($A379),\"\")","v":""},null,null,null,null,null,null,null,null,null,""]
[null,null,"",null,null,null,null,null,null,null,null,null,null,null,null,{"$f":"IF(ROW($A380)<='بيانات الحراس'!$F$2,ROW($A380),\"\")","v":""},null,null,null,null,null,null,null,null,null,""]
[null,null,"",null,null,null,null,null,null,null,null,null,null,null,null,{"$f":"IF(ROW($A381)<='بيانات الحراس'!$F$2,ROW($A381),\"\")","v":""},null,null,null,null,null,null,null,null,null,""]
[null,null,"",null,null,null,null,null,null,null,null,null,null,null,null,{"$f":"IF(ROW($A382)<='بيانات الحراس'!$F$2,ROW($A382),\"\")","v":""},null,null,null,null,null,null,null,null,null,""]
[null,null,"",null,null,null,null,null,null,null,null,null,null,null,null,{"$f":"IF(ROW($A383)<='بيانات الحراس'!$F$2,ROW($A383),\"\")","v":""},null,null,null,null,null,null,null,null,null,""]
[null,null,""]
[null,null,""]
[null,null,{"$f":"IF(SUM((COUNTA(M394,L394,K394,J394,I394,H394,F394,E394)/2),AK394,COUNTA(G394))=0,\"\",SUM((COUNTA(M394,L394,K394,J394,I394,H394,F394,E394)/2),AK394,COUNTA(G394)))","v":""}]
[null,null,""]
[null,null,""]
[null,null,""]
[null,null,""]
[null,null,""]
[null,null,""]
[null,null,""]
[null,null,""]
[null,null,""]
[null,null,""]
[null,null,""]
[null,null,""]
[null,null,""]
[null,null,""]
[null,null,""]
[null,null,""]
[null,null,""]
[null,null,""]
[null,null,""]
[null,null,""]
[null,null,""]
[null,null,""]
[null,null,""]
[null,null,""]
[null,null,""]
[null,null,""]
[null,null,""]
[null,null,""]
[null,null,""]
[null,null,""]
[null,null,""]
[null,null,""]
[null,null,""]
[null,null,""]
[null,null,""]
[null,null,""]
[null,null,""]
[null,null,""]
[null,null,""]
[null,null,""]
[null,null,""]
[null,null,""]
[null,null,""]

{"sheet":"الاحد 100","index":2,"n_rows":48,"n_cols":7,"rows_kept":48,"cut":false,"hidden":false,"merged":[[0,0,0,6],[1,0,1,6],[44,4,44,5],[6,2,6,4],[3,0,3,2],[2,0,2,2],[43,5,43,6],[2,4,2,6],[3,4,3,6]]}
["الجمهورية الجزائرية الديمقراطية الشعبية"]
["وزارة التربية الوطنية"]
["مديرية التربية لولاية",null,null,null,"الديوان الوطني للامتحانات و المسابقات"]
["مركز الاجراء",null,null,null,"                                                     رمز المركز:"]
[]
[]
[null,null,"قائمة الاساتذة الحراس"]
["يوم:",null,null,{"$f":"البداية!M8","v":"أدب عربي"},null,"الفترة:"]
["القاعة",{"$f":"IF(COLUMN(A$1)<=البداية!$N$4,\"الحارس\" & \" \" &COLUMN(A$1),\"\")","v":"الحارس 1"},{"$f":"IF(COLUMN(B$1)<=البداية!$N$4,\"الحارس\" & \" \" &COLUMN(B$1),\"\")","v":"الحارس 2"},{"$f":"IF(COLUMN(C$1)<=البداية!$N$4,\"الحارس\" & \" \" &COLUMN(C$1),\"\")","v":"الحارس 3"},{"$f":"IF(COLUMN(D$1)<=البداية!$N$4,\"الحارس\" & \" \" &COLUMN(D$1),\"\")","v":""},"الرقم"," الاحتياط"]
[{"$f":"IF(ROW($A1)<=البداية!$F$2,ROW($A1),\"\")","v":1},{"$f":"IFERROR(VLOOKUP(A10,البداية!M9:N350,2,0),\"\")","v":"بدر4"},{"$f":"IFERROR(VLOOKUP(100+A10,البداية!$M$9:N350,2,0),\"\")","v":"بدر21"},{"$f":"IFERROR(VLOOKUP(200+A10,البداية!$M$9:N350,2,0),\"\")","v":"بدر55"},{"$f":"IFERROR(VLOOKUP(300+A10,البداية!$M$9:N350,2,0),\"\")","v":""},{"$f":"IF(ROW($A1)<=البداية!$N$2,ROW($A1),\"\")","v":1},{"$f":"IFERROR(VLOOKUP(50+F10,البداية!$M$9:N350,2,0),\"\")","v":"بدر41"}]
[{"$f":"IF(ROW($A2)<=البداية!$F$2,ROW($A2),\"\")","v":2},{"$f":"IFERROR(VLOOKUP(A11,البداية!M10:N351,2,0),\"\")","v":"بدر5"},{"$f":"IFERROR(VLOOKUP(100+A11,البداية!$M$9:N351,2,0),\"\")","v":"بدر22"},{"$f":"IFERROR(VLOOKUP(200+A11,البداية!$M$9:N351,2,0),\"\")","v":"بدر56"},{"$f":"IFERROR(VLOOKUP(300+A11,البداية!$M$9:N351,2,0),\"\")","v":""},{"$f":"IF(ROW($A2)<=البداية!$N$2,ROW($A2),\"\")","v":2},{"$f":"IFERROR(VLOOKUP(50+F11,البداية!$M$9:N351,2,0),\"\")","v":"بدر42"}]
[{"$f":"IF(ROW($A3)<=البداية!$F$2,ROW($A3),\"\")","v":3},{"$f":"IFERROR(VLOOKUP(A12,البداية!M11:N352,2,0),\"\")","v":"بدر6"},{"$f":"IFERROR(VLOOKUP(100+A12,البداية!$M$9:N352,2,0),\"\")","v":"بدر23"},{"$f":"IFERROR(VLOOKUP(200+A12,البداية!$M$9:N352,2,0),\"\")","v":"بدر57"},{"$f":"IFERROR(VLOOKUP(300+A12,البداية!$M$9:N352,2,0),\"\")","v":""},{"$f":"IF(ROW($A3)<=البداية!$N$2,ROW($A3),\"\")","v":3},{"$f":"IFERROR(VLOOKUP(50+F12,البداية!$M$9:N352,2,0),\"\")","v":"بدر43"}]
[{"$f":"IF(ROW($A4)<=البداية!$F$2,ROW($A4),\"\")","v":4},{"$f":"IFERROR(VLOOKUP(A13,البداية!M12:N353,2,0),\"\")","v":"بدر7"},{"$f":"IFERROR(VLOOKUP(100+A13,البداية!$M$9:N353,2,0),\"\")","v":"بدر24"},{"$f":"IFERROR(VLOOKUP(200+A13,البداية!$M$9:N353,2,0),\"\")","v":"بدر58"},{"$f":"IFERROR(VLOOKUP(300+A13,البداية!$M$9:N353,2,0),\"\")","v":""},{"$f":"IF(ROW($A4)<=البداية!$N$2,ROW($A4),\"\")","v":4},{"$f":"IFERROR(VLOOKUP(50+F13,البداية!$M$9:N353,2,0),\"\")","v":"بدر44"}]
[{"$f":"IF(ROW($A5)<=البداية!$F$2,ROW($A5),\"\")","v":5},{"$f":"IFERROR(VLOOKUP(A14,البداية!M13:N354,2,0),\"\")","v":"بدر8"},{"$f":"IFERROR(VLOOKUP(100+A14,البداية!$M$9:N354,2,0),\"\")","v":"بدر25"},{"$f":"IFERROR(VLOOKUP(200+A14,البداية!$M$9:N354,2,0),\"\")","v":"بدر59"},{"$f":"IFERROR(VLOOKUP(300+A14,البداية!$M$9:N354,2,0),\"\")","v":""},{"$f":"IF(ROW($A5)<=البداية!$N$2,ROW($A5),\"\")","v":5},{"$f":"IFERROR(VLOOKUP(50+F14,البداية!$M$9:N354,2,0),\"\")","v":"بدر45"}]
[{"$f":"IF(ROW($A6)<=البداية!$F$2,ROW($A6),\"\")","v":6},{"$f":"IFERROR(VLOOKUP(A15,البداية!M14:N355,2,0),\"\")","v":"بدر9"},{"$f":"IFERROR(VLOOKUP(100+A15,البداية!$M$9:N355,2,0),\"\")","v":"بدر26"},{"$f":"IFERROR(VLOOKUP(200+A15,البداية!$M$9:N355,2,0),\"\")","v":"بدر60"},{"$f":"IFERROR(VLOOKUP(300+A15,البداية!$M$9:N355,2,0),\"\")","v":""},{"$f":"IF(ROW($A6)<=البداية!$N$2,ROW($A6),\"\")","v":6},{"$f":"IFERROR(VLOOKUP(50+F15,البداية!$M$9:N355,2,0),\"\")","v":"بدر46"}]
[{"$f":"IF(ROW($A7)<=البداية!$F$2,ROW($A7),\"\")","v":7},{"$f":"IFERROR(VLOOKUP(A16,البداية!M15:N356,2,0),\"\")","v":"بدر10"},{"$f":"IFERROR(VLOOKUP(100+A16,البداية!$M$9:N356,2,0),\"\")","v":"بدر27"},{"$f":"IFERROR(VLOOKUP(200+A16,البداية!$M$9:N356,2,0),\"\")","v":"بدر61"},{"$f":"IFERROR(VLOOKUP(300+A16,البداية!$M$9:N356,2,0),\"\")","v":""},{"$f":"IF(ROW($A7)<=البداية!$N$2,ROW($A7),\"\")","v":7},{"$f":"IFERROR(VLOOKUP(50+F16,البداية!$M$9:N356,2,0),\"\")","v":"بدر47"}]
[{"$f":"IF(ROW($A8)<=البداية!$F$2,ROW($A8),\"\")","v":8},{"$f":"IFERROR(VLOOKUP(A17,البداية!M16:N357,2,0),\"\")","v":"بدر11"},{"$f":"IFERROR(VLOOKUP(100+A17,البداية!$M$9:N357,2,0),\"\")","v":"بدر28"},{"$f":"IFERROR(VLOOKUP(200+A17,البداية!$M$9:N357,2,0),\"\")","v":"بدر62"},{"$f":"IFERROR(VLOOKUP(300+A17,البداية!$M$9:N357,2,0),\"\")","v":""},{"$f":"IF(ROW($A8)<=البداية!$N$2,ROW($A8),\"\")","v":8},{"$f":"IFERROR(VLOOKUP(50+F17,البداية!$M$9:N357,2,0),\"\")","v":"بدر48"}]
[{"$f":"IF(ROW($A9)<=البداية!$F$2,ROW($A9),\"\")","v":""},{"$f":"IFERROR(VLOOKUP(A18,البداية!M17:N358,2,0),\"\")","v":""},{"$f":"IFERROR(VLOOKUP(100+A18,البداية!$M$9:N358,2,0),\"\")","v":""},{"$f":"IFERROR(VLOOKUP(200+A18,البداية!$M$9:N358,2,0),\"\")","v":""},{"$f":"IFERROR(VLOOKUP(300+A18,البداية!$M$9:N358,2,0),\"\")","v":""},{"$f":"IF(ROW($A9)<=البداية!$N$2,ROW($A9),\"\")","v":9},{"$f":"IFERROR(VLOOKUP(50+F18,البداية!$M$9:N358,2,0),\"\")","v":"بدر49"}]
[{"$f":"IF(ROW($A10)<=البداية!$F$2,ROW($A10),\"\")","v":""},{"$f":"IFERROR(VLOOKUP(A19,البداية!M18:N359,2,0),\"\")","v":""},{"$f":"IFERROR(VLOOKUP(100+A19,البداية!$M$9:N359,2,0),\"\")","v":""},{"$f":"IFERROR(VLOOKUP(200+A19,البداية!$M$9:N359,2,0),\"\")","v":""},null,{"$f":"IF(ROW($A10)<=البداية!$N$2,ROW($A10),\"\")","v":10},{"$f":"IFERROR(VLOOKUP(50+F19,البداية!$M$9:N359,2,0),\"\")","v":"بدر50"}]
[{"$f":"IF(ROW($A11)<=البداية!$F$2,ROW($A11),\"\")","v":""},{"$f":"IFERROR(VLOOKUP(A20,البداية!M19:N360,2,0),\"\")","v":""},{"$f":"IFERROR(VLOOKUP(100+A20,البداية!$M$9:N360,2,0),\"\")","v":""},{"$f":"IFERROR(VLOOKUP(200+A20,البداية!$M$9:N360,2,0),\"\")","v":""},{"$f":"IFERROR(VLOOKUP(300+A20,البداية!$M$9:N360,2,0),\"\")","v":""},{"$f":"IF(ROW($A11)<=البداية!$N$2,ROW($A11),\"\")","v":11},{"$f":"IFERROR(VLOOKUP(50+F20,البداية!$M$9:N360,2,0),\"\")","v":"بدر51"}]
[{"$f":"IF(ROW($A12)<=البداية!$F$2,ROW($A12),\"\")","v":""},{"$f":"IFERROR(VLOOKUP(A21,البداية!M20:N361,2,0),\"\")","v":""},{"$f":"IFERROR(VLOOKUP(100+A21,البداية!$M$9:N361,2,0),\"\")","v":""},{"$f":"IFERROR(VLOOKUP(200+A21,البداية!$M$9:N361,2,0),\"\")","v":""},{"$f":"IFERROR(VLOOKUP(300+A21,البداية!$M$9:N361,2,0),\"\")","v":""},{"$f":"IF(ROW($A12)<=البداية!$N$2,ROW($A12),\"\")","v":12},{"$f":"IFERROR(VLOOKUP(50+F21,البداية!$M$9:N361,2,0),\"\")","v":"بدر52"}]
[{"$f":"IF(ROW($A13)<=البداية!$F$2,ROW($A13),\"\")","v":""},{"$f":"IFERROR(VLOOKUP(A22,البداية!M21:N362,2,0),\"\")","v":""},{"$f":"IFERROR(VLOOKUP(100+A22,البداية!$M$9:N362,2,0),\"\")","v":""},{"$f":"IFERROR(VLOOKUP(200+A22,البداية!$M$9:N362,2,0),\"\")","v":""},{"$f":"IFERROR(VLOOKUP(300+A22,البداية!$M$9:N362,2,0),\"\")","v":""},{"$f":"IF(ROW($A13)<=البداية!$N$2,ROW($A13),\"\")","v":13},{"$f":"IFERROR(VLOOKUP(50+F22,البداية!$M$9:N362,2,0),\"\")","v":"بدر53"}]
[{"$f":"IF(ROW($A14)<=البداية!$F$2,ROW($A14),\"\")","v":""},{"$f":"IFERROR(VLOOKUP(A23,البداية!M22:N363,2,0),\"\")","v":""},{"$f":"IFERROR(VLOOKUP(100+A23,البداية!$M$9:N363,2,0),\"\")","v":""},{"$f":"IFERROR(VLOOKUP(200+A23,البداية!$M$9:N363,2,0),\"\")","v":""},{"$f":"IFERROR(VLOOKUP(300+A23,البداية!$M$9:N363,2,0),\"\")","v":""},{"$f":"IF(ROW($A14)<=البداية!$N$2,ROW($A14),\"\")","v":14},{"$f":"IFERROR(VLOOKUP(50+F23,البداية!$M$9:N363,2,0),\"\")","v":"بدر54"}]
[{"$f":"IF(ROW($A15)<=البداية!$F$2,ROW($A15),\"\")","v":""},{"$f":"IFERROR(VLOOKUP(A24,البداية!M23:N364,2,0),\"\")","v":""},{"$f":"IFERROR(VLOOKUP(100+A24,البداية!$M$9:N364,2,0),\"\")","v":""},{"$f":"IFERROR(VLOOKUP(200+A24,البداية!$M$9:N364,2,0),\"\")","v":""},{"$f":"IFERROR(VLOOKUP(300+A24,البداية!$M$9:N364,2,0),\"\")","v":""},{"$f":"IF(ROW($A15)<=البداية!$N$2,ROW($A15),\"\")","v":""}]
[{"$f":"IF(ROW($A16)<=البداية!$F$2,ROW($A16),\"\")","v":""},{"$f":"IFERROR(VLOOKUP(A25,البداية!M24:N365,2,0),\"\")","v":""},{"$f":"IFERROR(VLOOKUP(100+A25,البداية!$M$9:N365,2,0),\"\")","v":""},{"$f":"IFERROR(VLOOKUP(200+A25,البداية!$M$9:N365,2,0),\"\")","v":""},{"$f":"IFERROR(VLOOKUP(300+A25,البداية!$M$9:N365,2,0),\"\")","v":""},{"$f":"IF(ROW($A16)<=البداية!$N$2,ROW($A16),\"\")","v":""}]
[{"$f":"IF(ROW($A17)<=البداية!$F$2,ROW($A17),\"\")","v":""},{"$f":"IFERROR(VLOOKUP(A26,البداية!M25:N366,2,0),\"\")","v":""},{"$f":"IFERROR(VLOOKUP(100+A26,البداية!$M$9:N366,2,0),\"\")","v":""},{"$f":"IFERROR(VLOOKUP(200+A26,البداية!$M$9:N366,2,0),\"\")","v":""},{"$f":"IFERROR(VLOOKUP(300+A26,البداية!$M$9:N366,2,0),\"\")","v":""},{"$f":"IF(ROW($A17)<=البداية!$N$2,ROW($A17),\"\")","v":""}]
[{"$f":"IF(ROW($A18)<=البداية!$F$2,ROW($A18),\"\")","v":""},{"$f":"IFERROR(VLOOKUP(A27,البداية!M26:N367,2,0),\"\")","v":""},{"$f":"IFERROR(VLOOKUP(100+A27,البداية!$M$9:N367,2,0),\"\")","v":""},{"$f":"IFERROR(VLOOKUP(200+A27,البداية!$M$9:N367,2,0),\"\")","v":""},{"$f":"IFERROR(VLOOKUP(300+A27,البداية!$M$9:N367,2,0),\"\")","v":""},{"$f":"IF(ROW($A18)<=البداية!$N$2,ROW($A18),\"\")","v":""}]
[{"$f":"IF(ROW($A19)<=البداية!$F$2,ROW($A19),\"\")","v":""},{"$f":"IFERROR(VLOOKUP(A28,البداية!M27:N368,2,0),\"\")","v":""},{"$f":"IFERROR(VLOOKUP(100+A28,البداية!$M$9:N368,2,0),\"\")","v":""},{"$f":"IFERROR(VLOOKUP(200+A28,البداية!$M$9:N368,2,0),\"\")","v":""},{"$f":"IFERROR(VLOOKUP(300+A28,البداية!$M$9:N368,2,0),\"\")","v":""},{"$f":"IF(ROW($A19)<=البداية!$N$2,ROW($A19),\"\")","v":""}]
[{"$f":"IF(ROW($A20)<=البداية!$F$2,ROW($A20),\"\")","v":""},{"$f":"IFERROR(VLOOKUP(A29,البداية!M28:N369,2,0),\"\")","v":""},{"$f":"IFERROR(VLOOKUP(100+A29,البداية!$M$9:N369,2,0),\"\")","v":""},{"$f":"IFERROR(VLOOKUP(200+A29,البداية!$M$9:N369,2,0),\"\")","v":""},{"$f":"IFERROR(VLOOKUP(300+A29,البداية!$M$9:N369,2,0),\"\")","v":""},{"$f":"IF(ROW($A20)<=البداية!$N$2,ROW($A20),\"\")","v":""}]
[{"$f":"IF(ROW($A21)<=البداية!$F$2,ROW($A21),\"\")","v":""},{"$f":"IFERROR(VLOOKUP(A30,البداية!M29:N370,2,0),\"\")","v":""},{"$f":"IFERROR(VLOOKUP(100+A30,البداية!$M$9:N370,2,0),\"\")","v":""},{"$f":"IFERROR(VLOOKUP(200+A30,البداية!$M$9:N370,2,0),\"\")","v":""},{"$f":"IFERROR(VLOOKUP(300+A30,البداية!$M$9:N370,2,0),\"\")","v":""},{"$f":"IF(ROW($A21)<=البداية!$N$2,ROW($A21),\"\")","v":""}]
[{"$f":"IF(ROW($A22)<=البداية!$F$2,ROW($A22),\"\")","v":""},{"$f":"IFERROR(VLOOKUP(A31,البداية!M30:N371,2,0),\"\")","v":""},{"$f":"IFERROR(VLOOKUP(100+A31,البداية!$M$9:N371,2,0),\"\")","v":""},{"$f":"IFERROR(VLOOKUP(200+A31,البداية!$M$9:N371,2,0),\"\")","v":""},{"$f":"IFERROR(VLOOKUP(300+A31,البداية!$M$9:N371,2,0),\"\")","v":""},{"$f":"IF(ROW($A22)<=البداية!$N$2,ROW($A22),\"\")","v":""}]
[{"$f":"IF(ROW($A23)<=البداية!$F$2,ROW($A23),\"\")","v":""},{"$f":"IFERROR(VLOOKUP(A32,البداية!M31:N372,2,0),\"\")","v":""},{"$f":"IFERROR(VLOOKUP(100+A32,البداية!$M$9:N372,2,0),\"\")","v":""},{"$f":"IFERROR(VLOOKUP(200+A32,البداية!$M$9:N372,2,0),\"\")","v":""},{"$f":"IFERROR(VLOOKUP(300+A32,البداية!$M$9:N372,2,0),\"\")","v":""},{"$f":"IF(ROW($A23)<=البداية!$N$2,ROW($A23),\"\")","v":""}]
[{"$f":"IF(ROW($A24)<=البداية!$F$2,ROW($A24),\"\")","v":""},{"$f":"IFERROR(VLOOKUP(A33,البداية!M32:N373,2,0),\"\")","v":""},{"$f":"IFERROR(VLOOKUP(100+A33,البداية!$M$9:N373,2,0),\"\")","v":""},{"$f":"IFERROR(VLOOKUP(200+A33,البداية!$M$9:N373,2,0),\"\")","v":""},{"$f":"IFERROR(VLOOKUP(300+A33,البداية!$M$9:N373,2,0),\"\")","v":""},{"$f":"IF(ROW($A24)<=البداية!$N$2,ROW($A24),\"\")","v":""}]
[{"$f":"IF(ROW($A25)<=البداية!$F$2,ROW($A25),\"\")","v":""},{"$f":"IFERROR(VLOOKUP(A34,البداية!M33:N374,2,0),\"\")","v":""},{"$f":"IFERROR(VLOOKUP(100+A34,البداية!$M$9:N374,2,0),\"\")","v":""},{"$f":"IFERROR(VLOOKUP(200+A34,البداية!$M$9:N374,2,0),\"\")","v":""},{"$f":"IFERROR(VLOOKUP(300+A34,البداية!$M$9:N374,2,0),\"\")","v":""},{"$f":"IF(ROW($A25)<=البداية!$N$2,ROW($A25),\"\")","v":""}]
[{"$f":"IF(ROW($A26)<=البداية!$F$2,ROW($A26),\"\")","v":""},{"$f":"IFERROR(VLOOKUP(A35,البداية!M34:N375,2,0),\"\")","v":""},{"$f":"IFERROR(VLOOKUP(100+A35,البداية!$M$9:N375,2,0),\"\")","v":""},{"$f":"IFERROR(VLOOKUP(200+A35,البداية!$M$9:N375,2,0),\"\")","v":""},{"$f":"IFERROR(VLOOKUP(300+A35,البداية!$M$9:N375,2,0),\"\")","v":""},"الرقم"," الاتصال"]
[{"$f":"IF(ROW($A27)<=البداية!$F$2,ROW($A27),\"\")","v":""},{"$f":"IFERROR(VLOOKUP(A36,البداية!M35:N376,2,0),\"\")","v":""},{"$f":"IFERROR(VLOOKUP(100+A36,البداية!$M$9:N376,2,0),\"\")","v":""},{"$f":"IFERROR(VLOOKUP(200+A36,البداية!$M$9:N376,2,0),\"\")","v":""},null,{"$f":"IF(ROW($A1)<=البداية!$N$3,ROW($A1),\"\")","v":1},{"$f":"IFERROR(VLOOKUP(80+F36,البداية!$M$9:N350,2,0),\"\")","v":"بدر63"}]
[{"$f":"IF(ROW($A28)<=البداية!$F$2,ROW($A28),\"\")","v":""},{"$f":"IFERROR(VLOOKUP(A37,البداية!M36:N377,2,0),\"\")","v":""},{"$f":"IFERROR(VLOOKUP(100+A37,البداية!$M$9:N377,2,0),\"\")","v":""},{"$f":"IFERROR(VLOOKUP(200+A37,البداية!$M$9:N377,2,0),\"\")","v":""},null,{"$f":"IF(ROW($A2)<=البداية!$N$3,ROW($A2),\"\")","v":2},{"$f":"IFERROR(VLOOKUP(80+F37,البداية!$M$9:N351,2,0),\"\")","v":"بدر64"}]
[{"$f":"IF(ROW($A29)<=البداية!$F$2,ROW($A29),\"\")","v":""},{"$f":"IFERROR(VLOOKUP(A38,البداية!M37:N378,2,0),\"\")","v":""},{"$f":"IFERROR(VLOOKUP(100+A38,البداية!$M$9:N378,2,0),\"\")","v":""},{"$f":"IFERROR(VLOOKUP(200+A38,البداية!$M$9:N378,2,0),\"\")","v":""},null,{"$f":"IF(ROW($A3)<=البداية!$N$3,ROW($A3),\"\")","v":""},{"$f":"IFERROR(VLOOKUP(80+F38,البداية!$M$9:N352,2,0),\"\")","v":""}]
[{"$f":"IF(ROW($A30)<=البداية!$F$2,ROW($A30),\"\")","v":""},{"$f":"IFERROR(VLOOKUP(A39,البداية!M38:N379,2,0),\"\")","v":""},{"$f":"IFERROR(VLOOKUP(100+A39,البداية!$M$9:N379,2,0),\"\")","v":""},{"$f":"IFERROR(VLOOKUP(200+A39,البداية!$M$9:N379,2,0),\"\")","v":""},null,{"$f":"IF(ROW($A4)<=البداية!$N$3,ROW($A4),\"\")","v":""},{"$f":"IFERROR(VLOOKUP(80+F39,البداية!$M$9:N353,2,0),\"\")","v":""}]
[{"$f":"IF(ROW($A31)<=البداية!$F$2,ROW($A31),\"\")","v":""},{"$f":"IFERROR(VLOOKUP(A40,البداية!M39:N380,2,0),\"\")","v":""},{"$f":"IFERROR(VLOOKUP(100+A40,البداية!$M$9:N380,2,0),\"\")","v":""},{"$f":"IFERROR(VLOOKUP(200+A40,البداية!$M$9:N380,2,0),\"\")","v":""},null,{"$f":"IF(ROW($A5)<=البداية!$N$3,ROW($A5),\"\")","v":""},{"$f":"IFERROR(VLOOKUP(80+F40,البداية!$M$9:N354,2,0),\"\")","v":""}]
[{"$f":"IF(ROW($A32)<=البداية!$F$2,ROW($A32),\"\")","v":""},{"$f":"IFERROR(VLOOKUP(A41,البداية!M40:N381,2,0),\"\")","v":""},{"$f":"IFERROR(VLOOKUP(100+A41,البداية!$M$9:N381,2,0),\"\")","v":""},{"$f":"IFERROR(VLOOKUP(200+A41,البداية!$M$9:N381,2,0),\"\")","v":""},null,{"$f":"IF(ROW($A6)<=البداية!$N$3,ROW($A6),\"\")","v":""},{"$f":"IFERROR(VLOOKUP(80+F41,البداية!$M$9:N355,2,0),\"\")","v":""}]
[{"$f":"IF(ROW($A33)<=البداية!$F$2,ROW($A33),\"\")","v":""},{"$f":"IFERROR(VLOOKUP(A42,البداية!M41:N382,2,0),\"\")","v":""},{"$f":"IFERROR(VLOOKUP(100+A42,البداية!$M$9:N382,2,0),\"\")","v":""},{"$f":"IFERROR(VLOOKUP(200+A42,البداية!$M$9:N382,2,0),\"\")","v":""},null,{"$f":"IF(ROW($A7)<=البداية!$N$3,ROW($A7),\"\")","v":""},{"$f":"IFERROR(VLOOKUP(80+F42,البداية!$M$9:N356,2,0),\"\")","v":""}]
[{"$f":"IF(ROW($A34)<=البداية!$F$2,ROW($A34),\"\")","v":""},{"$f":"IFERROR(VLOOKUP(A43,البداية!M42:N383,2,0),\"\")","v":""},{"$f":"IFERROR(VLOOKUP(100+A43,البداية!$M$9:N383,2,0),\"\")","v":""},{"$f":"IFERROR(VLOOKUP(200+A43,البداية!$M$9:N383,2,0),\"\")","v":""},null,{"$f":"IF(ROW($A8)<=البداية!$N$3,ROW($A8),\"\")","v":""},{"$f":"IFERROR(VLOOKUP(80+F43,البداية!$M$9:N357,2,0),\"\")","v":""}]
[{"$f":"IF(ROW($A35)<=البداية!$F$2,ROW($A35),\"\")","v":""},{"$f":"IFERROR(VLOOKUP(A44,البداية!M43:N384,2,0),\"\")","v":""},{"$f":"IFERROR(VLOOKUP(100+A44,البداية!$M$9:N384,2,0),\"\")","v":""},{"$f":"IFERROR(VLOOKUP(200+A44,البداية!$M$9:N384,2,0),\"\")","v":""},null,"رئيس المركز"]
[{"$f":"IF(ROW($A36)<=البداية!$F$2,ROW($A36),\"\")","v":""},null,{"$f":"IFERROR(VLOOKUP(100+A45,البداية!$M$9:N385,2,0),\"\")","v":""}]
[null,null,{"$f":"IFERROR(VLOOKUP(100+A46,البداية!$M$9:N386,2,0),\"\")","v":""},null,null,{"$f":"IFERROR(VLOOKUP(50+A46,البداية!$M$9:N386,2,0),\"\")","v":""}]
[null,null,{"$f":"IFERROR(VLOOKUP(100+A47,البداية!$M$9:N387,2,0),\"\")","v":""},null,null,{"$f":"IFERROR(VLOOKUP(50+A47,البداية!$M$9:N387,2,0),\"\")","v":""}]
[null,null,{"$f":"IFERROR(VLOOKUP(100+A48,البداية!$M$9:N388,2,0),\"\")","v":""},null,null,{"$f":"IFERROR(VLOOKUP(50+A48,البداية!$M$9:N388,2,0),\"\")","v":""}]